Organisation Name,Organisation Code,Unique Ref No,Effective Date,Directorate  where expenditure incurred,Supplier name ,Payment Date,Net Amount,Purpose of Spend,Procurement Classification (Higher Level),Procurement Classification (Lower Level),Capital/Revenue
Walsall Council,http://opendatacommunities.org/id/metropolitan-district-council/walsall,WC61- 1,31/10/2015,Economy & Environment,10 OUT OF 10 PRODUCTIONS LTD,26/10/2015,231.00,60500-GENERAL MATERIALS,Supplies & Services,"Equip,Furniture & Materials",Revenue
Walsall Council,http://opendatacommunities.org/id/metropolitan-district-council/walsall,WC61- 2,31/10/2015,Change and Governance,1ST ALDRIDGE AND 36TH WALSALL SCOUT GROUP,14/10/2015,"2,000.00",63000-PROFESSIONAL FEES AND SERVICES,Supplies & Services,Services,Revenue
Walsall Council,http://opendatacommunities.org/id/metropolitan-district-council/walsall,WC61- 3,31/10/2015,Childrens,247 CARS (WILLENHALL) LIMITED,27/10/2015,288.00,52000-WITH DRIVER-HIRE OF VEHICLES,Transport,Hire,Revenue
Walsall Council,http://opendatacommunities.org/id/metropolitan-district-council/walsall,WC61- 4,31/10/2015,Childrens,247 CARS (WILLENHALL) LIMITED,27/10/2015,648.00,52000-WITH DRIVER-HIRE OF VEHICLES,Transport,Hire,Revenue
Walsall Council,http://opendatacommunities.org/id/metropolitan-district-council/walsall,WC61- 5,31/10/2015,Childrens,247 CARS (WILLENHALL) LIMITED,27/10/2015,975.00,52000-WITH DRIVER-HIRE OF VEHICLES,Transport,Hire,Revenue
Walsall Council,http://opendatacommunities.org/id/metropolitan-district-council/walsall,WC61- 6,31/10/2015,Childrens,247 CARS (WILLENHALL) LIMITED,27/10/2015,"1,000.80",52000-WITH DRIVER-HIRE OF VEHICLES,Transport,Hire,Revenue
Walsall Council,http://opendatacommunities.org/id/metropolitan-district-council/walsall,WC61- 7,31/10/2015,Childrens,247 CARS (WILLENHALL) LIMITED,27/10/2015,"1,144.80",52000-WITH DRIVER-HIRE OF VEHICLES,Transport,Hire,Revenue
Walsall Council,http://opendatacommunities.org/id/metropolitan-district-council/walsall,WC61- 8,31/10/2015,Change and Governance,2ND BLOXWICH SCOUT GROUP,12/10/2015,"2,098.80",62515-MISCELLANEOUS SUPPLIES,Supplies & Services,Other Supplies & Services,Revenue
Walsall Council,http://opendatacommunities.org/id/metropolitan-district-council/walsall,WC61- 9,31/10/2015,Childrens,39 ESSEX STREET LLP PFA,22/10/2015,250.00,63116-EXTERNAL BARRISTERS-SERVICES-FEES,Supplies & Services,Other Supplies & Services,Revenue
Walsall Council,http://opendatacommunities.org/id/metropolitan-district-council/walsall,WC61- 10,31/10/2015,Childrens,39 ESSEX STREET LLP PFA,22/10/2015,"1,049.00",63116-EXTERNAL BARRISTERS-SERVICES-FEES,Supplies & Services,Other Supplies & Services,Revenue
Walsall Council,http://opendatacommunities.org/id/metropolitan-district-council/walsall,WC61- 11,31/10/2015,Childrens,39 ESSEX STREET LLP PFA,22/10/2015,"1,053.00",63116-EXTERNAL BARRISTERS-SERVICES-FEES,Supplies & Services,Other Supplies & Services,Revenue
Walsall Council,http://opendatacommunities.org/id/metropolitan-district-council/walsall,WC61- 12,31/10/2015,Childrens,39 ESSEX STREET LLP PFA,22/10/2015,"1,084.90",63116-EXTERNAL BARRISTERS-SERVICES-FEES,Supplies & Services,Other Supplies & Services,Revenue
Walsall Council,http://opendatacommunities.org/id/metropolitan-district-council/walsall,WC61- 13,31/10/2015,Change and Governance,4 SIGHT EYECARE CENTRE 002,19/10/2015,554.34,63102-CONSULTANTS FEES - CORPORATE,Supplies & Services,Services,Revenue
Walsall Council,http://opendatacommunities.org/id/metropolitan-district-council/walsall,WC61- 14,31/10/2015,Social Care & Inclusion,5 CARE SERVICES LTD,14/10/2015,"22,089.96",73372-DOMICILIARY CARE,Third Party Payments,Private Contractor Fees,Revenue
Walsall Council,http://opendatacommunities.org/id/metropolitan-district-council/walsall,WC61- 15,31/10/2015,Economy & Environment,7VIDEO LTD,21/10/2015,"2,010.00",01002-PROJECT FEES,Capital,Capital,Capital
Walsall Council,http://opendatacommunities.org/id/metropolitan-district-council/walsall,WC61- 16,31/10/2015,Economy & Environment,A ASHTON,26/10/2015,340.54,60500-GENERAL MATERIALS,Supplies & Services,"Equip,Furniture & Materials",Revenue
Walsall Council,http://opendatacommunities.org/id/metropolitan-district-council/walsall,WC61- 17,31/10/2015,Childrens,A B WASTE MANAGEMENT LTD,14/10/2015,340.00,52102-HIRE OF PLANT,Transport,Hire,Revenue
Walsall Council,http://opendatacommunities.org/id/metropolitan-district-council/walsall,WC61- 18,31/10/2015,Change and Governance,A D T FIRE AND SECURITY PLC,28/10/2015,407.49,73002-SECURITY-PRIV CONTRACTOR FEES,Third Party Payments,Private Contractor Fees,Revenue
Walsall Council,http://opendatacommunities.org/id/metropolitan-district-council/walsall,WC61- 19,31/10/2015,Childrens,A D T FIRE AND SECURITY PLC,14/10/2015,572.27,"40000-REPAIRS,ALTERATIONS & MAINTENANCE-PREM",Premises,Premises-Repairs & Maintenance,Revenue
Walsall Council,http://opendatacommunities.org/id/metropolitan-district-council/walsall,WC61- 20,31/10/2015,Economy & Environment,A F BLAKEMORE & SON LTD,12/10/2015,283.55,61009-BEVERAGES-PROVISIONS,Supplies & Services,Provisions,Revenue
Walsall Council,http://opendatacommunities.org/id/metropolitan-district-council/walsall,WC61- 21,31/10/2015,Social Care & Inclusion,A F BLAKEMORE & SON LTD,28/10/2015,292.02,61016-FOOD AND BEVERAGES-PROVISIONS,Supplies & Services,Provisions,Revenue
Walsall Council,http://opendatacommunities.org/id/metropolitan-district-council/walsall,WC61- 22,31/10/2015,Childrens,A F BLAKEMORE & SON LTD,09/10/2015,320.62,61305-CATERING,Supplies & Services,Provisions,Revenue
Walsall Council,http://opendatacommunities.org/id/metropolitan-district-council/walsall,WC61- 23,31/10/2015,Social Care & Inclusion,A F BLAKEMORE & SON LTD,19/10/2015,550.97,61016-FOOD AND BEVERAGES-PROVISIONS,Supplies & Services,Provisions,Revenue
Walsall Council,http://opendatacommunities.org/id/metropolitan-district-council/walsall,WC61- 24,31/10/2015,Economy & Environment,A F BLAKEMORE & SON LTD,12/10/2015,562.47,61002-DRY FOODS-PROVISIONS,Supplies & Services,Provisions,Revenue
Walsall Council,http://opendatacommunities.org/id/metropolitan-district-council/walsall,WC61- 25,31/10/2015,Social Care & Inclusion,A F BLAKEMORE & SON LTD,23/10/2015,584.69,60500-GENERAL MATERIALS,Supplies & Services,"Equip,Furniture & Materials",Revenue
Walsall Council,http://opendatacommunities.org/id/metropolitan-district-council/walsall,WC61- 26,31/10/2015,Social Care & Inclusion,A F BLAKEMORE & SON LTD,23/10/2015,592.84,60500-GENERAL MATERIALS,Supplies & Services,"Equip,Furniture & Materials",Revenue
Walsall Council,http://opendatacommunities.org/id/metropolitan-district-council/walsall,WC61- 27,31/10/2015,Economy & Environment,A F BLAKEMORE & SON LTD,23/10/2015,797.68,61008-CONFECTIONERY/SNACKS-PROVISIONS,Supplies & Services,Provisions,Revenue
Walsall Council,http://opendatacommunities.org/id/metropolitan-district-council/walsall,WC61- 28,31/10/2015,Change and Governance,A F BLAKEMORE & SON LTD,14/10/2015,"1,305.45",61016-FOOD AND BEVERAGES-PROVISIONS,Supplies & Services,Provisions,Revenue
Walsall Council,http://opendatacommunities.org/id/metropolitan-district-council/walsall,WC61- 29,31/10/2015,Childrens,REDACTED,26/10/2015,349.76,74006-HOLIDAY/CHRISTMAS ALLOWANCE-FOSTER CARERS-OTH AGENCY PROVISION,Third Party Payments,Private Contractor Fees,Revenue
Walsall Council,http://opendatacommunities.org/id/metropolitan-district-council/walsall,WC61- 30,31/10/2015,Economy & Environment,A KARIMS CHUCKERY PHARMACY,23/10/2015,400.00,71007-CONTRIBUTION TO PCT,Third Party Payments,Joint Arrangements,Revenue
Walsall Council,http://opendatacommunities.org/id/metropolitan-district-council/walsall,WC61- 31,31/10/2015,Childrens,REDACTED,09/10/2015,906.76,62515-MISCELLANEOUS SUPPLIES,Supplies & Services,Other Supplies & Services,Revenue
Walsall Council,http://opendatacommunities.org/id/metropolitan-district-council/walsall,WC61- 32,31/10/2015,Childrens,REDACTED,09/10/2015,985.76,74006-HOLIDAY/CHRISTMAS ALLOWANCE-FOSTER CARERS-OTH AGENCY PROVISION,Third Party Payments,Private Contractor Fees,Revenue
Walsall Council,http://opendatacommunities.org/id/metropolitan-district-council/walsall,WC61- 33,31/10/2015,Childrens,REDACTED,12/10/2015,345.24,76422-DIRECT PAYMENTS TO SOCIAL SERVICES CLIENTS,Transfer Payments,Transfer Payments,Revenue
Walsall Council,http://opendatacommunities.org/id/metropolitan-district-council/walsall,WC61- 34,31/10/2015,Childrens,ABACUS FOSTERING LTD,21/10/2015,"4,071.43",74037-INDEPENDENT FOSTER CARE-OTH AGENCY PROVISION,Third Party Payments,Private Contractor Fees,Revenue
Walsall Council,http://opendatacommunities.org/id/metropolitan-district-council/walsall,WC61- 35,31/10/2015,Childrens,ABACUS FOSTERING LTD,28/10/2015,"4,207.14",74037-INDEPENDENT FOSTER CARE-OTH AGENCY PROVISION,Third Party Payments,Private Contractor Fees,Revenue
Walsall Council,http://opendatacommunities.org/id/metropolitan-district-council/walsall,WC61- 36,31/10/2015,Childrens,REDACTED,26/10/2015,976.38,74006-HOLIDAY/CHRISTMAS ALLOWANCE-FOSTER CARERS-OTH AGENCY PROVISION,Third Party Payments,Private Contractor Fees,Revenue
Walsall Council,http://opendatacommunities.org/id/metropolitan-district-council/walsall,WC61- 37,31/10/2015,Social Care & Inclusion,ABBEY HEALTHCARE HOMES LTD,20/10/2015,"1,699.28",73373-RESIDENTIAL & NURSING CARE PLACEMENTS,Third Party Payments,Private Contractor Fees,Revenue
Walsall Council,http://opendatacommunities.org/id/metropolitan-district-council/walsall,WC61- 38,31/10/2015,Social Care & Inclusion,ABBEY HEALTHCARE HOMES LTD,20/10/2015,"1,699.28",73373-RESIDENTIAL & NURSING CARE PLACEMENTS,Third Party Payments,Private Contractor Fees,Revenue
Walsall Council,http://opendatacommunities.org/id/metropolitan-district-council/walsall,WC61- 39,31/10/2015,Social Care & Inclusion,ABBEY HEALTHCARE HOMES LTD,20/10/2015,"1,699.28",73373-RESIDENTIAL & NURSING CARE PLACEMENTS,Third Party Payments,Private Contractor Fees,Revenue
Walsall Council,http://opendatacommunities.org/id/metropolitan-district-council/walsall,WC61- 40,31/10/2015,Social Care & Inclusion,ABBEY HEALTHCARE HOMES LTD,20/10/2015,"1,699.28",73373-RESIDENTIAL & NURSING CARE PLACEMENTS,Third Party Payments,Private Contractor Fees,Revenue
Walsall Council,http://opendatacommunities.org/id/metropolitan-district-council/walsall,WC61- 41,31/10/2015,Social Care & Inclusion,ABBEY HEALTHCARE HOMES LTD,20/10/2015,"2,294.08",73373-RESIDENTIAL & NURSING CARE PLACEMENTS,Third Party Payments,Private Contractor Fees,Revenue
Walsall Council,http://opendatacommunities.org/id/metropolitan-district-council/walsall,WC61- 42,31/10/2015,Social Care & Inclusion,ABBEY HEALTHCARE HOMES LTD,20/10/2015,"2,294.08",73373-RESIDENTIAL & NURSING CARE PLACEMENTS,Third Party Payments,Private Contractor Fees,Revenue
Walsall Council,http://opendatacommunities.org/id/metropolitan-district-council/walsall,WC61- 43,31/10/2015,Social Care & Inclusion,ABBEY HEALTHCARE HOMES LTD,20/10/2015,"2,294.08",73373-RESIDENTIAL & NURSING CARE PLACEMENTS,Third Party Payments,Private Contractor Fees,Revenue
Walsall Council,http://opendatacommunities.org/id/metropolitan-district-council/walsall,WC61- 44,31/10/2015,Social Care & Inclusion,ABBEY HEALTHCARE HOMES LTD,20/10/2015,"2,294.08",73373-RESIDENTIAL & NURSING CARE PLACEMENTS,Third Party Payments,Private Contractor Fees,Revenue
Walsall Council,http://opendatacommunities.org/id/metropolitan-district-council/walsall,WC61- 45,31/10/2015,Childrens,ABC TEACHERS LIMITED,13/10/2015,692.97,34305-AGENCY STAFF-EMPLOYEES,Employees,Agency,Revenue
Walsall Council,http://opendatacommunities.org/id/metropolitan-district-council/walsall,WC61- 46,31/10/2015,Childrens,ABC TEACHERS LIMITED,19/10/2015,777.97,34305-AGENCY STAFF-EMPLOYEES,Employees,Agency,Revenue
Walsall Council,http://opendatacommunities.org/id/metropolitan-district-council/walsall,WC61- 47,31/10/2015,Social Care & Inclusion,REDACTED,12/10/2015,"2,357.99",76422-DIRECT PAYMENTS TO SOCIAL SERVICES CLIENTS,Transfer Payments,Transfer Payments,Revenue
Walsall Council,http://opendatacommunities.org/id/metropolitan-district-council/walsall,WC61- 48,31/10/2015,Childrens,ABLEWELL CARS,28/10/2015,848.00,52000-WITH DRIVER-HIRE OF VEHICLES,Transport,Hire,Revenue
Walsall Council,http://opendatacommunities.org/id/metropolitan-district-council/walsall,WC61- 49,31/10/2015,Social Care & Inclusion,ACCORD HOUSING ASSOCIATION LTD#135,09/10/2015,276.70,73374-SUPPORTED & OTHER ACCOMMODATION,Third Party Payments,Private Contractor Fees,Revenue
Walsall Council,http://opendatacommunities.org/id/metropolitan-district-council/walsall,WC61- 50,31/10/2015,Social Care & Inclusion,ACCORD HOUSING ASSOCIATION LTD#135,09/10/2015,277.54,73374-SUPPORTED & OTHER ACCOMMODATION,Third Party Payments,Private Contractor Fees,Revenue
Walsall Council,http://opendatacommunities.org/id/metropolitan-district-council/walsall,WC61- 51,31/10/2015,Social Care & Inclusion,ACCORD HOUSING ASSOCIATION LTD#135,22/10/2015,360.64,73372-DOMICILIARY CARE,Third Party Payments,Private Contractor Fees,Revenue
Walsall Council,http://opendatacommunities.org/id/metropolitan-district-council/walsall,WC61- 52,31/10/2015,Social Care & Inclusion,ACCORD HOUSING ASSOCIATION LTD#135,22/10/2015,387.88,73372-DOMICILIARY CARE,Third Party Payments,Private Contractor Fees,Revenue
Walsall Council,http://opendatacommunities.org/id/metropolitan-district-council/walsall,WC61- 53,31/10/2015,Social Care & Inclusion,ACCORD HOUSING ASSOCIATION LTD#135,22/10/2015,450.78,73372-DOMICILIARY CARE,Third Party Payments,Private Contractor Fees,Revenue
Walsall Council,http://opendatacommunities.org/id/metropolitan-district-council/walsall,WC61- 54,31/10/2015,Social Care & Inclusion,ACCORD HOUSING ASSOCIATION LTD#135,22/10/2015,450.78,73372-DOMICILIARY CARE,Third Party Payments,Private Contractor Fees,Revenue
Walsall Council,http://opendatacommunities.org/id/metropolitan-district-council/walsall,WC61- 55,31/10/2015,Social Care & Inclusion,ACCORD HOUSING ASSOCIATION LTD#135,08/10/2015,675.40,73374-SUPPORTED & OTHER ACCOMMODATION,Third Party Payments,Private Contractor Fees,Revenue
Walsall Council,http://opendatacommunities.org/id/metropolitan-district-council/walsall,WC61- 56,31/10/2015,Social Care & Inclusion,ACCORD HOUSING ASSOCIATION LTD#135,19/10/2015,697.64,73372-DOMICILIARY CARE,Third Party Payments,Private Contractor Fees,Revenue
Walsall Council,http://opendatacommunities.org/id/metropolitan-district-council/walsall,WC61- 57,31/10/2015,Social Care & Inclusion,ACCORD HOUSING ASSOCIATION LTD#135,08/10/2015,728.00,73372-DOMICILIARY CARE,Third Party Payments,Private Contractor Fees,Revenue
Walsall Council,http://opendatacommunities.org/id/metropolitan-district-council/walsall,WC61- 58,31/10/2015,Social Care & Inclusion,ACCORD HOUSING ASSOCIATION LTD#135,09/10/2015,728.00,73372-DOMICILIARY CARE,Third Party Payments,Private Contractor Fees,Revenue
Walsall Council,http://opendatacommunities.org/id/metropolitan-district-council/walsall,WC61- 59,31/10/2015,Social Care & Inclusion,ACCORD HOUSING ASSOCIATION LTD#135,21/10/2015,811.44,73374-SUPPORTED & OTHER ACCOMMODATION,Third Party Payments,Private Contractor Fees,Revenue
Walsall Council,http://opendatacommunities.org/id/metropolitan-district-council/walsall,WC61- 60,31/10/2015,Social Care & Inclusion,ACCORD HOUSING ASSOCIATION LTD#135,21/10/2015,811.44,73374-SUPPORTED & OTHER ACCOMMODATION,Third Party Payments,Private Contractor Fees,Revenue
Walsall Council,http://opendatacommunities.org/id/metropolitan-district-council/walsall,WC61- 61,31/10/2015,Social Care & Inclusion,ACCORD HOUSING ASSOCIATION LTD#135,22/10/2015,901.56,73372-DOMICILIARY CARE,Third Party Payments,Private Contractor Fees,Revenue
Walsall Council,http://opendatacommunities.org/id/metropolitan-district-council/walsall,WC61- 62,31/10/2015,Social Care & Inclusion,ACCORD HOUSING ASSOCIATION LTD#135,22/10/2015,901.56,73372-DOMICILIARY CARE,Third Party Payments,Private Contractor Fees,Revenue
Walsall Council,http://opendatacommunities.org/id/metropolitan-district-council/walsall,WC61- 63,31/10/2015,Social Care & Inclusion,ACCORD HOUSING ASSOCIATION LTD#135,22/10/2015,901.56,73372-DOMICILIARY CARE,Third Party Payments,Private Contractor Fees,Revenue
Walsall Council,http://opendatacommunities.org/id/metropolitan-district-council/walsall,WC61- 64,31/10/2015,Social Care & Inclusion,ACCORD HOUSING ASSOCIATION LTD#135,22/10/2015,901.56,73372-DOMICILIARY CARE,Third Party Payments,Private Contractor Fees,Revenue
Walsall Council,http://opendatacommunities.org/id/metropolitan-district-council/walsall,WC61- 65,31/10/2015,Social Care & Inclusion,ACCORD HOUSING ASSOCIATION LTD#135,22/10/2015,901.56,73372-DOMICILIARY CARE,Third Party Payments,Private Contractor Fees,Revenue
Walsall Council,http://opendatacommunities.org/id/metropolitan-district-council/walsall,WC61- 66,31/10/2015,Social Care & Inclusion,ACCORD HOUSING ASSOCIATION LTD#135,22/10/2015,901.56,73372-DOMICILIARY CARE,Third Party Payments,Private Contractor Fees,Revenue
Walsall Council,http://opendatacommunities.org/id/metropolitan-district-council/walsall,WC61- 67,31/10/2015,Social Care & Inclusion,ACCORD HOUSING ASSOCIATION LTD#135,22/10/2015,901.56,73372-DOMICILIARY CARE,Third Party Payments,Private Contractor Fees,Revenue
Walsall Council,http://opendatacommunities.org/id/metropolitan-district-council/walsall,WC61- 68,31/10/2015,Social Care & Inclusion,ACCORD HOUSING ASSOCIATION LTD#135,22/10/2015,901.56,73372-DOMICILIARY CARE,Third Party Payments,Private Contractor Fees,Revenue
Walsall Council,http://opendatacommunities.org/id/metropolitan-district-council/walsall,WC61- 69,31/10/2015,Social Care & Inclusion,ACCORD HOUSING ASSOCIATION LTD#135,13/10/2015,"4,191.40",73373-RESIDENTIAL & NURSING CARE PLACEMENTS,Third Party Payments,Private Contractor Fees,Revenue
Walsall Council,http://opendatacommunities.org/id/metropolitan-district-council/walsall,WC61- 70,31/10/2015,Social Care & Inclusion,ACCORD HOUSING ASSOCIATION LTD#135,13/10/2015,"4,591.84",73373-RESIDENTIAL & NURSING CARE PLACEMENTS,Third Party Payments,Private Contractor Fees,Revenue
Walsall Council,http://opendatacommunities.org/id/metropolitan-district-council/walsall,WC61- 71,31/10/2015,Social Care & Inclusion,ACCORD HOUSING ASSOCIATION LTD#135,13/10/2015,"4,591.84",73373-RESIDENTIAL & NURSING CARE PLACEMENTS,Third Party Payments,Private Contractor Fees,Revenue
Walsall Council,http://opendatacommunities.org/id/metropolitan-district-council/walsall,WC61- 72,31/10/2015,Social Care & Inclusion,ACCORD HOUSING ASSOCIATION LTD#135,13/10/2015,"4,591.84",73373-RESIDENTIAL & NURSING CARE PLACEMENTS,Third Party Payments,Private Contractor Fees,Revenue
Walsall Council,http://opendatacommunities.org/id/metropolitan-district-council/walsall,WC61- 73,31/10/2015,Social Care & Inclusion,ACCORD HOUSING ASSOCIATION LTD#135,13/10/2015,"4,591.84",73373-RESIDENTIAL & NURSING CARE PLACEMENTS,Third Party Payments,Private Contractor Fees,Revenue
Walsall Council,http://opendatacommunities.org/id/metropolitan-district-council/walsall,WC61- 74,31/10/2015,Social Care & Inclusion,ACCORD HOUSING ASSOCIATION LTD#135,13/10/2015,"6,408.73",73373-RESIDENTIAL & NURSING CARE PLACEMENTS,Third Party Payments,Private Contractor Fees,Revenue
Walsall Council,http://opendatacommunities.org/id/metropolitan-district-council/walsall,WC61- 75,31/10/2015,Social Care & Inclusion,ACCORD HOUSING ASSOCIATION LTD#135,13/10/2015,"6,408.73",73373-RESIDENTIAL & NURSING CARE PLACEMENTS,Third Party Payments,Private Contractor Fees,Revenue
Walsall Council,http://opendatacommunities.org/id/metropolitan-district-council/walsall,WC61- 76,31/10/2015,Social Care & Inclusion,ACCORD HOUSING ASSOCIATION LTD#135,13/10/2015,"6,408.73",73373-RESIDENTIAL & NURSING CARE PLACEMENTS,Third Party Payments,Private Contractor Fees,Revenue
Walsall Council,http://opendatacommunities.org/id/metropolitan-district-council/walsall,WC61- 77,31/10/2015,Social Care & Inclusion,ACCORD HOUSING ASSOCIATION LTD#135,14/10/2015,"10,343.41",73372-DOMICILIARY CARE,Third Party Payments,Private Contractor Fees,Revenue
Walsall Council,http://opendatacommunities.org/id/metropolitan-district-council/walsall,WC61- 78,31/10/2015,Social Care & Inclusion,ACCORD HOUSING ASSOCIATION LTD#135,14/10/2015,"26,857.10",73372-DOMICILIARY CARE,Third Party Payments,Private Contractor Fees,Revenue
Walsall Council,http://opendatacommunities.org/id/metropolitan-district-council/walsall,WC61- 79,31/10/2015,Social Care & Inclusion,ACE CARE AGENCY,28/10/2015,289.06,73372-DOMICILIARY CARE,Third Party Payments,Private Contractor Fees,Revenue
Walsall Council,http://opendatacommunities.org/id/metropolitan-district-council/walsall,WC61- 80,31/10/2015,Social Care & Inclusion,ACE CARE AGENCY,28/10/2015,402.40,73372-DOMICILIARY CARE,Third Party Payments,Private Contractor Fees,Revenue
Walsall Council,http://opendatacommunities.org/id/metropolitan-district-council/walsall,WC61- 81,31/10/2015,Social Care & Inclusion,ACE CARE AGENCY,28/10/2015,402.80,73372-DOMICILIARY CARE,Third Party Payments,Private Contractor Fees,Revenue
Walsall Council,http://opendatacommunities.org/id/metropolitan-district-council/walsall,WC61- 82,31/10/2015,Social Care & Inclusion,ACE CARE AGENCY,28/10/2015,402.80,73372-DOMICILIARY CARE,Third Party Payments,Private Contractor Fees,Revenue
Walsall Council,http://opendatacommunities.org/id/metropolitan-district-council/walsall,WC61- 83,31/10/2015,Social Care & Inclusion,ACE CARE AGENCY,28/10/2015,402.80,73372-DOMICILIARY CARE,Third Party Payments,Private Contractor Fees,Revenue
Walsall Council,http://opendatacommunities.org/id/metropolitan-district-council/walsall,WC61- 84,31/10/2015,Social Care & Inclusion,ACE CARE AGENCY,28/10/2015,402.80,73372-DOMICILIARY CARE,Third Party Payments,Private Contractor Fees,Revenue
Walsall Council,http://opendatacommunities.org/id/metropolitan-district-council/walsall,WC61- 85,31/10/2015,Social Care & Inclusion,ACE CARE AGENCY,28/10/2015,402.80,73372-DOMICILIARY CARE,Third Party Payments,Private Contractor Fees,Revenue
Walsall Council,http://opendatacommunities.org/id/metropolitan-district-council/walsall,WC61- 86,31/10/2015,Social Care & Inclusion,ACE CARE AGENCY,28/10/2015,413.40,73372-DOMICILIARY CARE,Third Party Payments,Private Contractor Fees,Revenue
Walsall Council,http://opendatacommunities.org/id/metropolitan-district-council/walsall,WC61- 87,31/10/2015,Social Care & Inclusion,ACE CARE AGENCY,28/10/2015,439.43,73372-DOMICILIARY CARE,Third Party Payments,Private Contractor Fees,Revenue
Walsall Council,http://opendatacommunities.org/id/metropolitan-district-council/walsall,WC61- 88,31/10/2015,Social Care & Inclusion,ACE CARE AGENCY,13/10/2015,607.05,73372-DOMICILIARY CARE,Third Party Payments,Private Contractor Fees,Revenue
Walsall Council,http://opendatacommunities.org/id/metropolitan-district-council/walsall,WC61- 89,31/10/2015,Social Care & Inclusion,ACE CARE AGENCY,28/10/2015,647.52,73372-DOMICILIARY CARE,Third Party Payments,Private Contractor Fees,Revenue
Walsall Council,http://opendatacommunities.org/id/metropolitan-district-council/walsall,WC61- 90,31/10/2015,Social Care & Inclusion,ACE CARE AGENCY,28/10/2015,798.18,73372-DOMICILIARY CARE,Third Party Payments,Private Contractor Fees,Revenue
Walsall Council,http://opendatacommunities.org/id/metropolitan-district-council/walsall,WC61- 91,31/10/2015,Social Care & Inclusion,ACE CARE AGENCY,28/10/2015,939.68,73372-DOMICILIARY CARE,Third Party Payments,Private Contractor Fees,Revenue
Walsall Council,http://opendatacommunities.org/id/metropolitan-district-council/walsall,WC61- 92,31/10/2015,Social Care & Inclusion,ACE CARE AGENCY,09/10/2015,"1,019.76",73372-DOMICILIARY CARE,Third Party Payments,Private Contractor Fees,Revenue
Walsall Council,http://opendatacommunities.org/id/metropolitan-district-council/walsall,WC61- 93,31/10/2015,Social Care & Inclusion,ACE CARE AGENCY,28/10/2015,"1,019.76",73372-DOMICILIARY CARE,Third Party Payments,Private Contractor Fees,Revenue
Walsall Council,http://opendatacommunities.org/id/metropolitan-district-council/walsall,WC61- 94,31/10/2015,Childrens,ACE RADIO CARS,28/10/2015,"2,049.60",52000-WITH DRIVER-HIRE OF VEHICLES,Transport,Hire,Revenue
Walsall Council,http://opendatacommunities.org/id/metropolitan-district-council/walsall,WC61- 95,31/10/2015,Social Care & Inclusion,ACEPAY LTD (COTTAGE NUR HOME),20/10/2015,"1,975.60",73373-RESIDENTIAL & NURSING CARE PLACEMENTS,Third Party Payments,Private Contractor Fees,Revenue
Walsall Council,http://opendatacommunities.org/id/metropolitan-district-council/walsall,WC61- 96,31/10/2015,Social Care & Inclusion,ACEPAY LTD (COTTAGE NUR HOME),20/10/2015,"1,975.60",73373-RESIDENTIAL & NURSING CARE PLACEMENTS,Third Party Payments,Private Contractor Fees,Revenue
Walsall Council,http://opendatacommunities.org/id/metropolitan-district-council/walsall,WC61- 97,31/10/2015,Social Care & Inclusion,ACEPAY LTD (COTTAGE NUR HOME),20/10/2015,"1,975.60",73373-RESIDENTIAL & NURSING CARE PLACEMENTS,Third Party Payments,Private Contractor Fees,Revenue
Walsall Council,http://opendatacommunities.org/id/metropolitan-district-council/walsall,WC61- 98,31/10/2015,Social Care & Inclusion,ACEPAY LTD (COTTAGE NUR HOME),20/10/2015,"2,018.20",73373-RESIDENTIAL & NURSING CARE PLACEMENTS,Third Party Payments,Private Contractor Fees,Revenue
Walsall Council,http://opendatacommunities.org/id/metropolitan-district-council/walsall,WC61- 99,31/10/2015,Social Care & Inclusion,ACEPAY LTD (COTTAGE NUR HOME),20/10/2015,"2,018.20",73373-RESIDENTIAL & NURSING CARE PLACEMENTS,Third Party Payments,Private Contractor Fees,Revenue
Walsall Council,http://opendatacommunities.org/id/metropolitan-district-council/walsall,WC61- 100,31/10/2015,Social Care & Inclusion,ACEPAY LTD (COTTAGE NUR HOME),20/10/2015,"2,018.20",73373-RESIDENTIAL & NURSING CARE PLACEMENTS,Third Party Payments,Private Contractor Fees,Revenue
Walsall Council,http://opendatacommunities.org/id/metropolitan-district-council/walsall,WC61- 101,31/10/2015,Social Care & Inclusion,ACEPAY LTD (COTTAGE NUR HOME),08/10/2015,"5,150.67",73373-RESIDENTIAL & NURSING CARE PLACEMENTS,Third Party Payments,Private Contractor Fees,Revenue
Walsall Council,http://opendatacommunities.org/id/metropolitan-district-council/walsall,WC61- 102,31/10/2015,Social Care & Inclusion,ACEPAY LTD (COTTAGE NUR HOME),13/10/2015,"9,525.21",73373-RESIDENTIAL & NURSING CARE PLACEMENTS,Third Party Payments,Private Contractor Fees,Revenue
Walsall Council,http://opendatacommunities.org/id/metropolitan-district-council/walsall,WC61- 103,31/10/2015,Social Care & Inclusion,ACORN REST HOME,27/10/2015,"1,493.24",73373-RESIDENTIAL & NURSING CARE PLACEMENTS,Third Party Payments,Private Contractor Fees,Revenue
Walsall Council,http://opendatacommunities.org/id/metropolitan-district-council/walsall,WC61- 104,31/10/2015,Childrens,ACORNS CHILDRENS HOSPICE TRUST,19/10/2015,750.00,63000-PROFESSIONAL FEES AND SERVICES,Supplies & Services,Services,Revenue
Walsall Council,http://opendatacommunities.org/id/metropolitan-district-council/walsall,WC61- 105,31/10/2015,Economy & Environment,ACTION DIGITAL MEDIA LTD,21/10/2015,296.33,"62521-INTERPRETATION,TRANSLATION & HUMAN AIDS TO TRANSCRIPTION",Supplies & Services,Services,Revenue
Walsall Council,http://opendatacommunities.org/id/metropolitan-district-council/walsall,WC61- 106,31/10/2015,Economy & Environment,ACTION DIGITAL MEDIA LTD,20/10/2015,719.00,62000-EXTERNAL PRINTING SERVICES,Supplies & Services,"Printing, Stationery & Office Exp",Revenue
Walsall Council,http://opendatacommunities.org/id/metropolitan-district-council/walsall,WC61- 107,31/10/2015,Social Care & Inclusion,ACTION ON HEARING LOSS,15/10/2015,"3,207.06",60006-NEW-FURNITURE & EQUIPMENT,Supplies & Services,"Equip,Furniture & Materials",Revenue
Walsall Council,http://opendatacommunities.org/id/metropolitan-district-council/walsall,WC61- 108,31/10/2015,Change and Governance,ADA BUILDERS & JOINERS,28/10/2015,"20,012.52",01045-PRIVATE GRANTS,Capital,Capital,Capital
Walsall Council,http://opendatacommunities.org/id/metropolitan-district-council/walsall,WC61- 109,31/10/2015,Childrens,REDACTED,12/10/2015,487.60,76422-DIRECT PAYMENTS TO SOCIAL SERVICES CLIENTS,Transfer Payments,Transfer Payments,Revenue
Walsall Council,http://opendatacommunities.org/id/metropolitan-district-council/walsall,WC61- 110,31/10/2015,Social Care & Inclusion,REDACTED,12/10/2015,417.48,76422-DIRECT PAYMENTS TO SOCIAL SERVICES CLIENTS,Transfer Payments,Transfer Payments,Revenue
Walsall Council,http://opendatacommunities.org/id/metropolitan-district-council/walsall,WC61- 111,31/10/2015,Social Care & Inclusion,REDACTED,12/10/2015,860.00,76422-DIRECT PAYMENTS TO SOCIAL SERVICES CLIENTS,Transfer Payments,Transfer Payments,Revenue
Walsall Council,http://opendatacommunities.org/id/metropolitan-district-council/walsall,WC61- 112,31/10/2015,Childrens,ADMIRAL SELF STORAGE LTD,29/10/2015,"1,564.29",63000-PROFESSIONAL FEES AND SERVICES,Supplies & Services,Services,Revenue
Walsall Council,http://opendatacommunities.org/id/metropolitan-district-council/walsall,WC61- 113,31/10/2015,Childrens,ADRIAN CARROLL LTD,19/10/2015,480.00,01006-SITE WORKS MAIN CONTRACTORS,Capital,Capital,Capital
Walsall Council,http://opendatacommunities.org/id/metropolitan-district-council/walsall,WC61- 114,31/10/2015,Childrens,ADRIAN CARROLL LTD,09/10/2015,"1,920.00",01006-SITE WORKS MAIN CONTRACTORS,Capital,Capital,Capital
Walsall Council,http://opendatacommunities.org/id/metropolitan-district-council/walsall,WC61- 115,31/10/2015,Childrens,REDACTED,26/10/2015,728.32,74006-HOLIDAY/CHRISTMAS ALLOWANCE-FOSTER CARERS-OTH AGENCY PROVISION,Third Party Payments,Private Contractor Fees,Revenue
Walsall Council,http://opendatacommunities.org/id/metropolitan-district-council/walsall,WC61- 116,31/10/2015,Social Care & Inclusion,ADVANCE HEALTH CARE (UK) LTD,28/10/2015,302.25,34305-AGENCY STAFF-EMPLOYEES,Employees,Agency,Revenue
Walsall Council,http://opendatacommunities.org/id/metropolitan-district-council/walsall,WC61- 117,31/10/2015,Social Care & Inclusion,ADVANCE HEALTH CARE (UK) LTD,28/10/2015,435.50,34305-AGENCY STAFF-EMPLOYEES,Employees,Agency,Revenue
Walsall Council,http://opendatacommunities.org/id/metropolitan-district-council/walsall,WC61- 118,31/10/2015,Social Care & Inclusion,ADVANCE HEALTH CARE (UK) LTD,28/10/2015,585.00,34305-AGENCY STAFF-EMPLOYEES,Employees,Agency,Revenue
Walsall Council,http://opendatacommunities.org/id/metropolitan-district-council/walsall,WC61- 119,31/10/2015,Social Care & Inclusion,ADVANCE HEALTH CARE (UK) LTD,14/10/2015,"39,308.06",73372-DOMICILIARY CARE,Third Party Payments,Private Contractor Fees,Revenue
Walsall Council,http://opendatacommunities.org/id/metropolitan-district-council/walsall,WC61- 120,31/10/2015,Economy & Environment,ADVANCE PHARMA LTD T/A PLECK PHARMACY,14/10/2015,260.06,71007-CONTRIBUTION TO PCT,Third Party Payments,Joint Arrangements,Revenue
Walsall Council,http://opendatacommunities.org/id/metropolitan-district-council/walsall,WC61- 121,31/10/2015,Economy & Environment,AECOM LIMITED,13/10/2015,"1,506.00",73025-PROFESSIONAL SERVICES-PRIV CONTRACTOR & OTHER AGENCIES,Third Party Payments,Private Contractor Fees,Revenue
Walsall Council,http://opendatacommunities.org/id/metropolitan-district-council/walsall,WC61- 122,31/10/2015,Childrens,AFTER ADOPTION,14/10/2015,"8,450.00",74000-OTHER AGENCY FEES,Third Party Payments,Private Contractor Fees,Revenue
Walsall Council,http://opendatacommunities.org/id/metropolitan-district-council/walsall,WC61- 123,31/10/2015,Change and Governance,AGGORA TECHNICAL LTD,27/10/2015,539.00,60006-NEW-FURNITURE & EQUIPMENT,Supplies & Services,"Equip,Furniture & Materials",Revenue
Walsall Council,http://opendatacommunities.org/id/metropolitan-district-council/walsall,WC61- 124,31/10/2015,Change and Governance,AGGORA TECHNICAL LTD,01/10/2015,714.00,60006-NEW-FURNITURE & EQUIPMENT,Supplies & Services,"Equip,Furniture & Materials",Revenue
Walsall Council,http://opendatacommunities.org/id/metropolitan-district-council/walsall,WC61- 125,31/10/2015,Change and Governance,AGGORA TECHNICAL LTD,27/10/2015,974.00,60006-NEW-FURNITURE & EQUIPMENT,Supplies & Services,"Equip,Furniture & Materials",Revenue
Walsall Council,http://opendatacommunities.org/id/metropolitan-district-council/walsall,WC61- 126,31/10/2015,Change and Governance,AGGORA TECHNICAL LTD,27/10/2015,"1,166.00",60006-NEW-FURNITURE & EQUIPMENT,Supplies & Services,"Equip,Furniture & Materials",Revenue
Walsall Council,http://opendatacommunities.org/id/metropolitan-district-council/walsall,WC61- 127,31/10/2015,Economy & Environment,AGROVISTA UK LTD,23/10/2015,317.84,60500-GENERAL MATERIALS,Supplies & Services,"Equip,Furniture & Materials",Revenue
Walsall Council,http://opendatacommunities.org/id/metropolitan-district-council/walsall,WC61- 128,31/10/2015,Social Care & Inclusion,REDACTED,12/10/2015,"1,882.00",76422-DIRECT PAYMENTS TO SOCIAL SERVICES CLIENTS,Transfer Payments,Transfer Payments,Revenue
Walsall Council,http://opendatacommunities.org/id/metropolitan-district-council/walsall,WC61- 129,31/10/2015,Economy & Environment,AIRSPACE GALLERY,21/10/2015,"1,500.00",62527-VISUAL ARTS,Supplies & Services,"Equip,Furniture & Materials",Revenue
Walsall Council,http://opendatacommunities.org/id/metropolitan-district-council/walsall,WC61- 130,31/10/2015,Social Care & Inclusion,REDACTED,12/10/2015,936.52,76422-DIRECT PAYMENTS TO SOCIAL SERVICES CLIENTS,Transfer Payments,Transfer Payments,Revenue
Walsall Council,http://opendatacommunities.org/id/metropolitan-district-council/walsall,WC61- 131,31/10/2015,Childrens,AJK TRAVEL,28/10/2015,938.70,52000-WITH DRIVER-HIRE OF VEHICLES,Transport,Hire,Revenue
Walsall Council,http://opendatacommunities.org/id/metropolitan-district-council/walsall,WC61- 132,31/10/2015,Childrens,AJK TRAVEL,28/10/2015,938.70,52000-WITH DRIVER-HIRE OF VEHICLES,Transport,Hire,Revenue
Walsall Council,http://opendatacommunities.org/id/metropolitan-district-council/walsall,WC61- 133,31/10/2015,Childrens,AJK TRAVEL,28/10/2015,"5,068.98",52000-WITH DRIVER-HIRE OF VEHICLES,Transport,Hire,Revenue
Walsall Council,http://opendatacommunities.org/id/metropolitan-district-council/walsall,WC61- 134,31/10/2015,Social Care & Inclusion,REDACTED,12/10/2015,667.80,76422-DIRECT PAYMENTS TO SOCIAL SERVICES CLIENTS,Transfer Payments,Transfer Payments,Revenue
Walsall Council,http://opendatacommunities.org/id/metropolitan-district-council/walsall,WC61- 135,31/10/2015,Social Care & Inclusion,ALDERGROVE MANOR CARE HOME,13/10/2015,"1,839.68",73373-RESIDENTIAL & NURSING CARE PLACEMENTS,Third Party Payments,Private Contractor Fees,Revenue
Walsall Council,http://opendatacommunities.org/id/metropolitan-district-council/walsall,WC61- 136,31/10/2015,Childrens,ALDRIDGE & BARONS LIMITED,28/10/2015,"1,346.76",53004-TAXIS-TRAVEL ALLOWANCES,Transport,Car Allowances,Revenue
Walsall Council,http://opendatacommunities.org/id/metropolitan-district-council/walsall,WC61- 137,31/10/2015,Childrens,ALDRIDGE & BARONS LIMITED,28/10/2015,"1,393.20",53004-TAXIS-TRAVEL ALLOWANCES,Transport,Car Allowances,Revenue
Walsall Council,http://opendatacommunities.org/id/metropolitan-district-council/walsall,WC61- 138,31/10/2015,Childrens,ALDRIDGE & BARONS LIMITED,28/10/2015,"1,578.96",53004-TAXIS-TRAVEL ALLOWANCES,Transport,Car Allowances,Revenue
Walsall Council,http://opendatacommunities.org/id/metropolitan-district-council/walsall,WC61- 139,31/10/2015,Childrens,ALDRIDGE & BARONS LIMITED,28/10/2015,"1,625.40",53004-TAXIS-TRAVEL ALLOWANCES,Transport,Car Allowances,Revenue
Walsall Council,http://opendatacommunities.org/id/metropolitan-district-council/walsall,WC61- 140,31/10/2015,Childrens,ALDRIDGE SCHOOL A SCIENCE COLLEGE.,14/10/2015,800.00,77300-ISB-FORMULA ALLOCATION,Transfer Payments,Transfer Payments,Revenue
Walsall Council,http://opendatacommunities.org/id/metropolitan-district-council/walsall,WC61- 141,31/10/2015,Childrens,ALDRIDGE SCHOOL A SCIENCE COLLEGE.,28/10/2015,"1,550.00",77300-ISB-FORMULA ALLOCATION,Transfer Payments,Transfer Payments,Revenue
Walsall Council,http://opendatacommunities.org/id/metropolitan-district-council/walsall,WC61- 142,31/10/2015,Childrens,ALDRIDGE SCHOOL A SCIENCE COLLEGE.,28/10/2015,"2,000.00",77300-ISB-FORMULA ALLOCATION,Transfer Payments,Transfer Payments,Revenue
Walsall Council,http://opendatacommunities.org/id/metropolitan-district-council/walsall,WC61- 143,31/10/2015,Change and Governance,ALDRIDGE YOUTH THEATRE,09/10/2015,750.00,62515-MISCELLANEOUS SUPPLIES,Supplies & Services,Other Supplies & Services,Revenue
Walsall Council,http://opendatacommunities.org/id/metropolitan-district-council/walsall,WC61- 144,31/10/2015,Economy & Environment,ALERE LTD,28/10/2015,"1,571.20",63000-PROFESSIONAL FEES AND SERVICES,Supplies & Services,Services,Revenue
Walsall Council,http://opendatacommunities.org/id/metropolitan-district-council/walsall,WC61- 145,31/10/2015,Social Care & Inclusion,REDACTED,12/10/2015,"1,204.00",76422-DIRECT PAYMENTS TO SOCIAL SERVICES CLIENTS,Transfer Payments,Transfer Payments,Revenue
Walsall Council,http://opendatacommunities.org/id/metropolitan-district-council/walsall,WC61- 146,31/10/2015,Economy & Environment,REDACTED,09/10/2015,270.00,63000-PROFESSIONAL FEES AND SERVICES,Supplies & Services,Services,Revenue
Walsall Council,http://opendatacommunities.org/id/metropolitan-district-council/walsall,WC61- 147,31/10/2015,Economy & Environment,REDACTED,09/10/2015,270.00,63000-PROFESSIONAL FEES AND SERVICES,Supplies & Services,Services,Revenue
Walsall Council,http://opendatacommunities.org/id/metropolitan-district-council/walsall,WC61- 148,31/10/2015,Economy & Environment,REDACTED,09/10/2015,270.00,63000-PROFESSIONAL FEES AND SERVICES,Supplies & Services,Services,Revenue
Walsall Council,http://opendatacommunities.org/id/metropolitan-district-council/walsall,WC61- 149,31/10/2015,Social Care & Inclusion,ALEXANDRA HOUSE CARE SERVICES LTD T/A STONEBRIDGE NURSING HOME,08/10/2015,"7,117.44",73373-RESIDENTIAL & NURSING CARE PLACEMENTS,Third Party Payments,Private Contractor Fees,Revenue
Walsall Council,http://opendatacommunities.org/id/metropolitan-district-council/walsall,WC61- 150,31/10/2015,Childrens,REDACTED,12/10/2015,582.66,76422-DIRECT PAYMENTS TO SOCIAL SERVICES CLIENTS,Transfer Payments,Transfer Payments,Revenue
Walsall Council,http://opendatacommunities.org/id/metropolitan-district-council/walsall,WC61- 151,31/10/2015,Childrens,ALFORD PRIMARY SCHOOL,14/10/2015,"1,786.00",77300-ISB-FORMULA ALLOCATION,Transfer Payments,Transfer Payments,Revenue
Walsall Council,http://opendatacommunities.org/id/metropolitan-district-council/walsall,WC61- 152,31/10/2015,Social Care & Inclusion,REDACTED,12/10/2015,854.00,76422-DIRECT PAYMENTS TO SOCIAL SERVICES CLIENTS,Transfer Payments,Transfer Payments,Revenue
Walsall Council,http://opendatacommunities.org/id/metropolitan-district-council/walsall,WC61- 153,31/10/2015,Social Care & Inclusion,REDACTED,12/10/2015,328.80,76422-DIRECT PAYMENTS TO SOCIAL SERVICES CLIENTS,Transfer Payments,Transfer Payments,Revenue
Walsall Council,http://opendatacommunities.org/id/metropolitan-district-council/walsall,WC61- 154,31/10/2015,Childrens,REDACTED,09/10/2015,"1,108.98",74006-HOLIDAY/CHRISTMAS ALLOWANCE-FOSTER CARERS-OTH AGENCY PROVISION,Third Party Payments,Private Contractor Fees,Revenue
Walsall Council,http://opendatacommunities.org/id/metropolitan-district-council/walsall,WC61- 155,31/10/2015,Childrens,REDACTED,09/10/2015,"1,445.32",62515-MISCELLANEOUS SUPPLIES,Supplies & Services,Other Supplies & Services,Revenue
Walsall Council,http://opendatacommunities.org/id/metropolitan-district-council/walsall,WC61- 156,31/10/2015,Childrens,REDACTED,26/10/2015,552.96,74006-HOLIDAY/CHRISTMAS ALLOWANCE-FOSTER CARERS-OTH AGENCY PROVISION,Third Party Payments,Private Contractor Fees,Revenue
Walsall Council,http://opendatacommunities.org/id/metropolitan-district-council/walsall,WC61- 157,31/10/2015,Change and Governance,ALLSORTS OFFICE SUPPLIES LTD,12/10/2015,"3,360.00",63800-COMPUTER EQUIPMENT AND SUPPLIES,Supplies & Services,Communications & Computing,Revenue
Walsall Council,http://opendatacommunities.org/id/metropolitan-district-council/walsall,WC61- 158,31/10/2015,Social Care & Inclusion,ALMA COURT,20/10/2015,"6,113.10",73373-RESIDENTIAL & NURSING CARE PLACEMENTS,Third Party Payments,Private Contractor Fees,Revenue
Walsall Council,http://opendatacommunities.org/id/metropolitan-district-council/walsall,WC61- 159,31/10/2015,Social Care & Inclusion,ALPHA HEALTH CARE LTD,08/10/2015,"-7,615.81",73373-RESIDENTIAL & NURSING CARE PLACEMENTS,Third Party Payments,Private Contractor Fees,Revenue
Walsall Council,http://opendatacommunities.org/id/metropolitan-district-council/walsall,WC61- 160,31/10/2015,Social Care & Inclusion,ALPHA HEALTH CARE LTD,08/10/2015,"-1,534.12",73373-RESIDENTIAL & NURSING CARE PLACEMENTS,Third Party Payments,Private Contractor Fees,Revenue
Walsall Council,http://opendatacommunities.org/id/metropolitan-district-council/walsall,WC61- 161,31/10/2015,Social Care & Inclusion,ALPHA HEALTH CARE LTD,27/10/2015,"-1,360.00",73373-RESIDENTIAL & NURSING CARE PLACEMENTS,Third Party Payments,Private Contractor Fees,Revenue
Walsall Council,http://opendatacommunities.org/id/metropolitan-district-council/walsall,WC61- 162,31/10/2015,Social Care & Inclusion,ALPHA HEALTH CARE LTD,08/10/2015,454.84,73373-RESIDENTIAL & NURSING CARE PLACEMENTS,Third Party Payments,Private Contractor Fees,Revenue
Walsall Council,http://opendatacommunities.org/id/metropolitan-district-council/walsall,WC61- 163,31/10/2015,Social Care & Inclusion,ALPHA HEALTH CARE LTD,08/10/2015,"1,093.06",73373-RESIDENTIAL & NURSING CARE PLACEMENTS,Third Party Payments,Private Contractor Fees,Revenue
Walsall Council,http://opendatacommunities.org/id/metropolitan-district-council/walsall,WC61- 164,31/10/2015,Social Care & Inclusion,ALPHA HEALTH CARE LTD,20/10/2015,"1,406.56",73373-RESIDENTIAL & NURSING CARE PLACEMENTS,Third Party Payments,Private Contractor Fees,Revenue
Walsall Council,http://opendatacommunities.org/id/metropolitan-district-council/walsall,WC61- 165,31/10/2015,Social Care & Inclusion,ALPHA HEALTH CARE LTD,20/10/2015,"1,413.08",73373-RESIDENTIAL & NURSING CARE PLACEMENTS,Third Party Payments,Private Contractor Fees,Revenue
Walsall Council,http://opendatacommunities.org/id/metropolitan-district-council/walsall,WC61- 166,31/10/2015,Social Care & Inclusion,ALPHA HEALTH CARE LTD,20/10/2015,"1,493.24",73373-RESIDENTIAL & NURSING CARE PLACEMENTS,Third Party Payments,Private Contractor Fees,Revenue
Walsall Council,http://opendatacommunities.org/id/metropolitan-district-council/walsall,WC61- 167,31/10/2015,Social Care & Inclusion,ALPHA HEALTH CARE LTD,08/10/2015,"1,494.00",73373-RESIDENTIAL & NURSING CARE PLACEMENTS,Third Party Payments,Private Contractor Fees,Revenue
Walsall Council,http://opendatacommunities.org/id/metropolitan-district-council/walsall,WC61- 168,31/10/2015,Social Care & Inclusion,ALPHA HEALTH CARE LTD,08/10/2015,"1,494.00",73373-RESIDENTIAL & NURSING CARE PLACEMENTS,Third Party Payments,Private Contractor Fees,Revenue
Walsall Council,http://opendatacommunities.org/id/metropolitan-district-council/walsall,WC61- 169,31/10/2015,Social Care & Inclusion,ALPHA HEALTH CARE LTD,08/10/2015,"1,494.00",73373-RESIDENTIAL & NURSING CARE PLACEMENTS,Third Party Payments,Private Contractor Fees,Revenue
Walsall Council,http://opendatacommunities.org/id/metropolitan-district-council/walsall,WC61- 170,31/10/2015,Social Care & Inclusion,ALPHA HEALTH CARE LTD,08/10/2015,"1,494.00",73373-RESIDENTIAL & NURSING CARE PLACEMENTS,Third Party Payments,Private Contractor Fees,Revenue
Walsall Council,http://opendatacommunities.org/id/metropolitan-district-council/walsall,WC61- 171,31/10/2015,Social Care & Inclusion,ALPHA HEALTH CARE LTD,20/10/2015,"1,510.08",73373-RESIDENTIAL & NURSING CARE PLACEMENTS,Third Party Payments,Private Contractor Fees,Revenue
Walsall Council,http://opendatacommunities.org/id/metropolitan-district-council/walsall,WC61- 172,31/10/2015,Social Care & Inclusion,ALPHA HEALTH CARE LTD,20/10/2015,"1,510.08",73373-RESIDENTIAL & NURSING CARE PLACEMENTS,Third Party Payments,Private Contractor Fees,Revenue
Walsall Council,http://opendatacommunities.org/id/metropolitan-district-council/walsall,WC61- 173,31/10/2015,Social Care & Inclusion,ALPHA HEALTH CARE LTD,20/10/2015,"1,510.08",73373-RESIDENTIAL & NURSING CARE PLACEMENTS,Third Party Payments,Private Contractor Fees,Revenue
Walsall Council,http://opendatacommunities.org/id/metropolitan-district-council/walsall,WC61- 174,31/10/2015,Social Care & Inclusion,ALPHA HEALTH CARE LTD,27/10/2015,"1,510.08",73373-RESIDENTIAL & NURSING CARE PLACEMENTS,Third Party Payments,Private Contractor Fees,Revenue
Walsall Council,http://opendatacommunities.org/id/metropolitan-district-council/walsall,WC61- 175,31/10/2015,Social Care & Inclusion,ALPHA HEALTH CARE LTD,20/10/2015,"1,527.60",73373-RESIDENTIAL & NURSING CARE PLACEMENTS,Third Party Payments,Private Contractor Fees,Revenue
Walsall Council,http://opendatacommunities.org/id/metropolitan-district-council/walsall,WC61- 176,31/10/2015,Social Care & Inclusion,ALPHA HEALTH CARE LTD,20/10/2015,"1,527.60",73373-RESIDENTIAL & NURSING CARE PLACEMENTS,Third Party Payments,Private Contractor Fees,Revenue
Walsall Council,http://opendatacommunities.org/id/metropolitan-district-council/walsall,WC61- 177,31/10/2015,Social Care & Inclusion,ALPHA HEALTH CARE LTD,20/10/2015,"1,527.60",73373-RESIDENTIAL & NURSING CARE PLACEMENTS,Third Party Payments,Private Contractor Fees,Revenue
Walsall Council,http://opendatacommunities.org/id/metropolitan-district-council/walsall,WC61- 178,31/10/2015,Social Care & Inclusion,ALPHA HEALTH CARE LTD,20/10/2015,"1,527.60",73373-RESIDENTIAL & NURSING CARE PLACEMENTS,Third Party Payments,Private Contractor Fees,Revenue
Walsall Council,http://opendatacommunities.org/id/metropolitan-district-council/walsall,WC61- 179,31/10/2015,Social Care & Inclusion,ALPHA HEALTH CARE LTD,20/10/2015,"1,527.60",73373-RESIDENTIAL & NURSING CARE PLACEMENTS,Third Party Payments,Private Contractor Fees,Revenue
Walsall Council,http://opendatacommunities.org/id/metropolitan-district-council/walsall,WC61- 180,31/10/2015,Social Care & Inclusion,ALPHA HEALTH CARE LTD,20/10/2015,"1,527.60",73373-RESIDENTIAL & NURSING CARE PLACEMENTS,Third Party Payments,Private Contractor Fees,Revenue
Walsall Council,http://opendatacommunities.org/id/metropolitan-district-council/walsall,WC61- 181,31/10/2015,Social Care & Inclusion,ALPHA HEALTH CARE LTD,20/10/2015,"1,527.60",73373-RESIDENTIAL & NURSING CARE PLACEMENTS,Third Party Payments,Private Contractor Fees,Revenue
Walsall Council,http://opendatacommunities.org/id/metropolitan-district-council/walsall,WC61- 182,31/10/2015,Social Care & Inclusion,ALPHA HEALTH CARE LTD,20/10/2015,"1,527.60",73373-RESIDENTIAL & NURSING CARE PLACEMENTS,Third Party Payments,Private Contractor Fees,Revenue
Walsall Council,http://opendatacommunities.org/id/metropolitan-district-council/walsall,WC61- 183,31/10/2015,Social Care & Inclusion,ALPHA HEALTH CARE LTD,20/10/2015,"1,527.60",73373-RESIDENTIAL & NURSING CARE PLACEMENTS,Third Party Payments,Private Contractor Fees,Revenue
Walsall Council,http://opendatacommunities.org/id/metropolitan-district-council/walsall,WC61- 184,31/10/2015,Social Care & Inclusion,ALPHA HEALTH CARE LTD,20/10/2015,"1,527.60",73373-RESIDENTIAL & NURSING CARE PLACEMENTS,Third Party Payments,Private Contractor Fees,Revenue
Walsall Council,http://opendatacommunities.org/id/metropolitan-district-council/walsall,WC61- 185,31/10/2015,Social Care & Inclusion,ALPHA HEALTH CARE LTD,20/10/2015,"1,527.60",73373-RESIDENTIAL & NURSING CARE PLACEMENTS,Third Party Payments,Private Contractor Fees,Revenue
Walsall Council,http://opendatacommunities.org/id/metropolitan-district-council/walsall,WC61- 186,31/10/2015,Social Care & Inclusion,ALPHA HEALTH CARE LTD,20/10/2015,"1,527.60",73373-RESIDENTIAL & NURSING CARE PLACEMENTS,Third Party Payments,Private Contractor Fees,Revenue
Walsall Council,http://opendatacommunities.org/id/metropolitan-district-council/walsall,WC61- 187,31/10/2015,Social Care & Inclusion,ALPHA HEALTH CARE LTD,27/10/2015,"1,527.60",73373-RESIDENTIAL & NURSING CARE PLACEMENTS,Third Party Payments,Private Contractor Fees,Revenue
Walsall Council,http://opendatacommunities.org/id/metropolitan-district-council/walsall,WC61- 188,31/10/2015,Social Care & Inclusion,ALPHA HEALTH CARE LTD,20/10/2015,"1,527.64",73373-RESIDENTIAL & NURSING CARE PLACEMENTS,Third Party Payments,Private Contractor Fees,Revenue
Walsall Council,http://opendatacommunities.org/id/metropolitan-district-council/walsall,WC61- 189,31/10/2015,Social Care & Inclusion,ALPHA HEALTH CARE LTD,08/10/2015,"1,542.80",73373-RESIDENTIAL & NURSING CARE PLACEMENTS,Third Party Payments,Private Contractor Fees,Revenue
Walsall Council,http://opendatacommunities.org/id/metropolitan-district-council/walsall,WC61- 190,31/10/2015,Social Care & Inclusion,ALPHA HEALTH CARE LTD,20/10/2015,"1,568.64",73373-RESIDENTIAL & NURSING CARE PLACEMENTS,Third Party Payments,Private Contractor Fees,Revenue
Walsall Council,http://opendatacommunities.org/id/metropolitan-district-council/walsall,WC61- 191,31/10/2015,Social Care & Inclusion,ALPHA HEALTH CARE LTD,20/10/2015,"1,568.64",73373-RESIDENTIAL & NURSING CARE PLACEMENTS,Third Party Payments,Private Contractor Fees,Revenue
Walsall Council,http://opendatacommunities.org/id/metropolitan-district-council/walsall,WC61- 192,31/10/2015,Social Care & Inclusion,ALPHA HEALTH CARE LTD,20/10/2015,"1,568.64",73373-RESIDENTIAL & NURSING CARE PLACEMENTS,Third Party Payments,Private Contractor Fees,Revenue
Walsall Council,http://opendatacommunities.org/id/metropolitan-district-council/walsall,WC61- 193,31/10/2015,Social Care & Inclusion,ALPHA HEALTH CARE LTD,20/10/2015,"1,568.64",73373-RESIDENTIAL & NURSING CARE PLACEMENTS,Third Party Payments,Private Contractor Fees,Revenue
Walsall Council,http://opendatacommunities.org/id/metropolitan-district-council/walsall,WC61- 194,31/10/2015,Social Care & Inclusion,ALPHA HEALTH CARE LTD,20/10/2015,"1,568.80",73373-RESIDENTIAL & NURSING CARE PLACEMENTS,Third Party Payments,Private Contractor Fees,Revenue
Walsall Council,http://opendatacommunities.org/id/metropolitan-district-council/walsall,WC61- 195,31/10/2015,Social Care & Inclusion,ALPHA HEALTH CARE LTD,20/10/2015,"1,630.60",73373-RESIDENTIAL & NURSING CARE PLACEMENTS,Third Party Payments,Private Contractor Fees,Revenue
Walsall Council,http://opendatacommunities.org/id/metropolitan-district-council/walsall,WC61- 196,31/10/2015,Social Care & Inclusion,ALPHA HEALTH CARE LTD,08/10/2015,"1,942.00",73373-RESIDENTIAL & NURSING CARE PLACEMENTS,Third Party Payments,Private Contractor Fees,Revenue
Walsall Council,http://opendatacommunities.org/id/metropolitan-district-council/walsall,WC61- 197,31/10/2015,Social Care & Inclusion,ALPHA HEALTH CARE LTD,08/10/2015,"1,942.00",73373-RESIDENTIAL & NURSING CARE PLACEMENTS,Third Party Payments,Private Contractor Fees,Revenue
Walsall Council,http://opendatacommunities.org/id/metropolitan-district-council/walsall,WC61- 198,31/10/2015,Social Care & Inclusion,ALPHA HEALTH CARE LTD,20/10/2015,"1,975.60",73373-RESIDENTIAL & NURSING CARE PLACEMENTS,Third Party Payments,Private Contractor Fees,Revenue
Walsall Council,http://opendatacommunities.org/id/metropolitan-district-council/walsall,WC61- 199,31/10/2015,Social Care & Inclusion,ALPHA HEALTH CARE LTD,20/10/2015,"2,058.32",73373-RESIDENTIAL & NURSING CARE PLACEMENTS,Third Party Payments,Private Contractor Fees,Revenue
Walsall Council,http://opendatacommunities.org/id/metropolitan-district-council/walsall,WC61- 200,31/10/2015,Social Care & Inclusion,ALPHA HEALTH CARE LTD,20/10/2015,"2,161.40",73373-RESIDENTIAL & NURSING CARE PLACEMENTS,Third Party Payments,Private Contractor Fees,Revenue
Walsall Council,http://opendatacommunities.org/id/metropolitan-district-council/walsall,WC61- 201,31/10/2015,Social Care & Inclusion,ALPHA HEALTH CARE LTD,20/10/2015,"2,521.44",73373-RESIDENTIAL & NURSING CARE PLACEMENTS,Third Party Payments,Private Contractor Fees,Revenue
Walsall Council,http://opendatacommunities.org/id/metropolitan-district-council/walsall,WC61- 202,31/10/2015,Social Care & Inclusion,ALPHA HEALTH CARE LTD,13/10/2015,"3,011.43",73373-RESIDENTIAL & NURSING CARE PLACEMENTS,Third Party Payments,Private Contractor Fees,Revenue
Walsall Council,http://opendatacommunities.org/id/metropolitan-district-council/walsall,WC61- 203,31/10/2015,Social Care & Inclusion,ALPHA HEALTH CARE LTD,20/10/2015,"5,413.72",73373-RESIDENTIAL & NURSING CARE PLACEMENTS,Third Party Payments,Private Contractor Fees,Revenue
Walsall Council,http://opendatacommunities.org/id/metropolitan-district-council/walsall,WC61- 204,31/10/2015,Social Care & Inclusion,ALPHA HEALTH CARE LTD,20/10/2015,"5,553.32",73373-RESIDENTIAL & NURSING CARE PLACEMENTS,Third Party Payments,Private Contractor Fees,Revenue
Walsall Council,http://opendatacommunities.org/id/metropolitan-district-council/walsall,WC61- 205,31/10/2015,Social Care & Inclusion,ALPHA HEALTH CARE LTD,08/10/2015,"7,416.64",73373-RESIDENTIAL & NURSING CARE PLACEMENTS,Third Party Payments,Private Contractor Fees,Revenue
Walsall Council,http://opendatacommunities.org/id/metropolitan-district-council/walsall,WC61- 206,31/10/2015,Childrens,REDACTED,26/10/2015,"1,500.88",74006-HOLIDAY/CHRISTMAS ALLOWANCE-FOSTER CARERS-OTH AGENCY PROVISION,Third Party Payments,Private Contractor Fees,Revenue
Walsall Council,http://opendatacommunities.org/id/metropolitan-district-council/walsall,WC61- 207,31/10/2015,Childrens,REDACTED,09/10/2015,652.80,74006-HOLIDAY/CHRISTMAS ALLOWANCE-FOSTER CARERS-OTH AGENCY PROVISION,Third Party Payments,Private Contractor Fees,Revenue
Walsall Council,http://opendatacommunities.org/id/metropolitan-district-council/walsall,WC61- 208,31/10/2015,Childrens,REDACTED,09/10/2015,"1,700.82",62515-MISCELLANEOUS SUPPLIES,Supplies & Services,Other Supplies & Services,Revenue
Walsall Council,http://opendatacommunities.org/id/metropolitan-district-council/walsall,WC61- 209,31/10/2015,Social Care & Inclusion,REDACTED,12/10/2015,756.00,76422-DIRECT PAYMENTS TO SOCIAL SERVICES CLIENTS,Transfer Payments,Transfer Payments,Revenue
Walsall Council,http://opendatacommunities.org/id/metropolitan-district-council/walsall,WC61- 210,31/10/2015,Social Care & Inclusion,REDACTED,12/10/2015,654.50,76422-DIRECT PAYMENTS TO SOCIAL SERVICES CLIENTS,Transfer Payments,Transfer Payments,Revenue
Walsall Council,http://opendatacommunities.org/id/metropolitan-district-council/walsall,WC61- 211,31/10/2015,Childrens,REDACTED,12/10/2015,312.92,76422-DIRECT PAYMENTS TO SOCIAL SERVICES CLIENTS,Transfer Payments,Transfer Payments,Revenue
Walsall Council,http://opendatacommunities.org/id/metropolitan-district-council/walsall,WC61- 212,31/10/2015,Change and Governance,AMEY LG LIMITED,27/10/2015,162.70,60006-NEW-FURNITURE & EQUIPMENT,Supplies & Services,"Equip,Furniture & Materials",Revenue
Walsall Council,http://opendatacommunities.org/id/metropolitan-district-council/walsall,WC61- 213,31/10/2015,Change and Governance,AMEY LG LIMITED,27/10/2015,162.70,60006-NEW-FURNITURE & EQUIPMENT,Supplies & Services,"Equip,Furniture & Materials",Revenue
Walsall Council,http://opendatacommunities.org/id/metropolitan-district-council/walsall,WC61- 214,31/10/2015,Economy & Environment,AMEY LG LIMITED,27/10/2015,404.70,73025-PROFESSIONAL SERVICES-PRIV CONTRACTOR & OTHER AGENCIES,Third Party Payments,Private Contractor Fees,Revenue
Walsall Council,http://opendatacommunities.org/id/metropolitan-district-council/walsall,WC61- 215,31/10/2015,Economy & Environment,AMEY LG LIMITED,23/10/2015,"1,141.91",73025-PROFESSIONAL SERVICES-PRIV CONTRACTOR & OTHER AGENCIES,Third Party Payments,Private Contractor Fees,Revenue
Walsall Council,http://opendatacommunities.org/id/metropolitan-district-council/walsall,WC61- 216,31/10/2015,Economy & Environment,AMEY LG LIMITED,21/10/2015,"1,158.81",73025-PROFESSIONAL SERVICES-PRIV CONTRACTOR & OTHER AGENCIES,Third Party Payments,Private Contractor Fees,Revenue
Walsall Council,http://opendatacommunities.org/id/metropolitan-district-council/walsall,WC61- 217,31/10/2015,Economy & Environment,AMEY LG LIMITED,21/10/2015,"1,592.56",73025-PROFESSIONAL SERVICES-PRIV CONTRACTOR & OTHER AGENCIES,Third Party Payments,Private Contractor Fees,Revenue
Walsall Council,http://opendatacommunities.org/id/metropolitan-district-council/walsall,WC61- 218,31/10/2015,Economy & Environment,AMEY LG LIMITED,09/10/2015,"10,131.42",73025-PROFESSIONAL SERVICES-PRIV CONTRACTOR & OTHER AGENCIES,Third Party Payments,Private Contractor Fees,Revenue
Walsall Council,http://opendatacommunities.org/id/metropolitan-district-council/walsall,WC61- 219,31/10/2015,Economy & Environment,AMEY LG LIMITED,28/10/2015,"17,968.65",73025-PROFESSIONAL SERVICES-PRIV CONTRACTOR & OTHER AGENCIES,Third Party Payments,Private Contractor Fees,Revenue
Walsall Council,http://opendatacommunities.org/id/metropolitan-district-council/walsall,WC61- 220,31/10/2015,Childrens,AMG NURSING CARE SERVICES,23/10/2015,"1,102.84",74036-EXTERNAL RESIDENTIAL CARE-OTH AGENCY PROVISION,Third Party Payments,Private Contractor Fees,Revenue
Walsall Council,http://opendatacommunities.org/id/metropolitan-district-council/walsall,WC61- 221,31/10/2015,Childrens,AMG NURSING CARE SERVICES,12/10/2015,"2,269.16",74036-EXTERNAL RESIDENTIAL CARE-OTH AGENCY PROVISION,Third Party Payments,Private Contractor Fees,Revenue
Walsall Council,http://opendatacommunities.org/id/metropolitan-district-council/walsall,WC61- 222,31/10/2015,Social Care & Inclusion,AMG NURSING CARE SERVICES,15/10/2015,"6,468.75",73372-DOMICILIARY CARE,Third Party Payments,Private Contractor Fees,Revenue
Walsall Council,http://opendatacommunities.org/id/metropolitan-district-council/walsall,WC61- 223,31/10/2015,Social Care & Inclusion,REDACTED,13/10/2015,"1,700.16",76422-DIRECT PAYMENTS TO SOCIAL SERVICES CLIENTS,Transfer Payments,Transfer Payments,Revenue
Walsall Council,http://opendatacommunities.org/id/metropolitan-district-council/walsall,WC61- 224,31/10/2015,Social Care & Inclusion,REDACTED,12/10/2015,945.00,76422-DIRECT PAYMENTS TO SOCIAL SERVICES CLIENTS,Transfer Payments,Transfer Payments,Revenue
Walsall Council,http://opendatacommunities.org/id/metropolitan-district-council/walsall,WC61- 225,31/10/2015,Childrens,REDACTED,26/10/2015,425.08,74006-HOLIDAY/CHRISTMAS ALLOWANCE-FOSTER CARERS-OTH AGENCY PROVISION,Third Party Payments,Private Contractor Fees,Revenue
Walsall Council,http://opendatacommunities.org/id/metropolitan-district-council/walsall,WC61- 226,31/10/2015,Social Care & Inclusion,REDACTED,12/10/2015,544.00,76422-DIRECT PAYMENTS TO SOCIAL SERVICES CLIENTS,Transfer Payments,Transfer Payments,Revenue
Walsall Council,http://opendatacommunities.org/id/metropolitan-district-council/walsall,WC61- 227,31/10/2015,Social Care & Inclusion,REDACTED,12/10/2015,813.00,76422-DIRECT PAYMENTS TO SOCIAL SERVICES CLIENTS,Transfer Payments,Transfer Payments,Revenue
Walsall Council,http://opendatacommunities.org/id/metropolitan-district-council/walsall,WC61- 228,31/10/2015,Social Care & Inclusion,ANCHOR,27/10/2015,"1,493.24",73373-RESIDENTIAL & NURSING CARE PLACEMENTS,Third Party Payments,Private Contractor Fees,Revenue
Walsall Council,http://opendatacommunities.org/id/metropolitan-district-council/walsall,WC61- 229,31/10/2015,Social Care & Inclusion,ANCHOR,27/10/2015,"1,493.24",73373-RESIDENTIAL & NURSING CARE PLACEMENTS,Third Party Payments,Private Contractor Fees,Revenue
Walsall Council,http://opendatacommunities.org/id/metropolitan-district-council/walsall,WC61- 230,31/10/2015,Social Care & Inclusion,ANCHOR,27/10/2015,"1,493.24",73373-RESIDENTIAL & NURSING CARE PLACEMENTS,Third Party Payments,Private Contractor Fees,Revenue
Walsall Council,http://opendatacommunities.org/id/metropolitan-district-council/walsall,WC61- 231,31/10/2015,Social Care & Inclusion,ANCHOR,27/10/2015,"1,568.64",73373-RESIDENTIAL & NURSING CARE PLACEMENTS,Third Party Payments,Private Contractor Fees,Revenue
Walsall Council,http://opendatacommunities.org/id/metropolitan-district-council/walsall,WC61- 232,31/10/2015,Social Care & Inclusion,ANCHOR,27/10/2015,"1,568.64",73373-RESIDENTIAL & NURSING CARE PLACEMENTS,Third Party Payments,Private Contractor Fees,Revenue
Walsall Council,http://opendatacommunities.org/id/metropolitan-district-council/walsall,WC61- 233,31/10/2015,Social Care & Inclusion,ANCHOR,27/10/2015,"1,568.64",73373-RESIDENTIAL & NURSING CARE PLACEMENTS,Third Party Payments,Private Contractor Fees,Revenue
Walsall Council,http://opendatacommunities.org/id/metropolitan-district-council/walsall,WC61- 234,31/10/2015,Social Care & Inclusion,ANCHOR,27/10/2015,"1,568.64",73373-RESIDENTIAL & NURSING CARE PLACEMENTS,Third Party Payments,Private Contractor Fees,Revenue
Walsall Council,http://opendatacommunities.org/id/metropolitan-district-council/walsall,WC61- 235,31/10/2015,Social Care & Inclusion,ANCHOR,27/10/2015,"1,568.64",73373-RESIDENTIAL & NURSING CARE PLACEMENTS,Third Party Payments,Private Contractor Fees,Revenue
Walsall Council,http://opendatacommunities.org/id/metropolitan-district-council/walsall,WC61- 236,31/10/2015,Social Care & Inclusion,ANCHOR,27/10/2015,"1,568.64",73373-RESIDENTIAL & NURSING CARE PLACEMENTS,Third Party Payments,Private Contractor Fees,Revenue
Walsall Council,http://opendatacommunities.org/id/metropolitan-district-council/walsall,WC61- 237,31/10/2015,Social Care & Inclusion,ANCHOR,27/10/2015,"1,568.64",73373-RESIDENTIAL & NURSING CARE PLACEMENTS,Third Party Payments,Private Contractor Fees,Revenue
Walsall Council,http://opendatacommunities.org/id/metropolitan-district-council/walsall,WC61- 238,31/10/2015,Social Care & Inclusion,ANCHOR,27/10/2015,"1,568.64",73373-RESIDENTIAL & NURSING CARE PLACEMENTS,Third Party Payments,Private Contractor Fees,Revenue
Walsall Council,http://opendatacommunities.org/id/metropolitan-district-council/walsall,WC61- 239,31/10/2015,Social Care & Inclusion,ANCHOR,27/10/2015,"1,568.64",73373-RESIDENTIAL & NURSING CARE PLACEMENTS,Third Party Payments,Private Contractor Fees,Revenue
Walsall Council,http://opendatacommunities.org/id/metropolitan-district-council/walsall,WC61- 240,31/10/2015,Social Care & Inclusion,ANCHOR,27/10/2015,"1,568.64",73373-RESIDENTIAL & NURSING CARE PLACEMENTS,Third Party Payments,Private Contractor Fees,Revenue
Walsall Council,http://opendatacommunities.org/id/metropolitan-district-council/walsall,WC61- 241,31/10/2015,Social Care & Inclusion,ANCHOR,27/10/2015,"1,568.64",73373-RESIDENTIAL & NURSING CARE PLACEMENTS,Third Party Payments,Private Contractor Fees,Revenue
Walsall Council,http://opendatacommunities.org/id/metropolitan-district-council/walsall,WC61- 242,31/10/2015,Social Care & Inclusion,ANCHOR,27/10/2015,"1,568.64",73373-RESIDENTIAL & NURSING CARE PLACEMENTS,Third Party Payments,Private Contractor Fees,Revenue
Walsall Council,http://opendatacommunities.org/id/metropolitan-district-council/walsall,WC61- 243,31/10/2015,Social Care & Inclusion,ANCHOR,27/10/2015,"1,568.64",73373-RESIDENTIAL & NURSING CARE PLACEMENTS,Third Party Payments,Private Contractor Fees,Revenue
Walsall Council,http://opendatacommunities.org/id/metropolitan-district-council/walsall,WC61- 244,31/10/2015,Social Care & Inclusion,ANCHOR,27/10/2015,"1,568.64",73373-RESIDENTIAL & NURSING CARE PLACEMENTS,Third Party Payments,Private Contractor Fees,Revenue
Walsall Council,http://opendatacommunities.org/id/metropolitan-district-council/walsall,WC61- 245,31/10/2015,Social Care & Inclusion,ANCHOR,27/10/2015,"1,568.64",73373-RESIDENTIAL & NURSING CARE PLACEMENTS,Third Party Payments,Private Contractor Fees,Revenue
Walsall Council,http://opendatacommunities.org/id/metropolitan-district-council/walsall,WC61- 246,31/10/2015,Social Care & Inclusion,ANCHOR,27/10/2015,"1,568.64",73373-RESIDENTIAL & NURSING CARE PLACEMENTS,Third Party Payments,Private Contractor Fees,Revenue
Walsall Council,http://opendatacommunities.org/id/metropolitan-district-council/walsall,WC61- 247,31/10/2015,Social Care & Inclusion,ANCHOR,27/10/2015,"1,568.64",73373-RESIDENTIAL & NURSING CARE PLACEMENTS,Third Party Payments,Private Contractor Fees,Revenue
Walsall Council,http://opendatacommunities.org/id/metropolitan-district-council/walsall,WC61- 248,31/10/2015,Social Care & Inclusion,ANCHOR,27/10/2015,"1,568.64",73373-RESIDENTIAL & NURSING CARE PLACEMENTS,Third Party Payments,Private Contractor Fees,Revenue
Walsall Council,http://opendatacommunities.org/id/metropolitan-district-council/walsall,WC61- 249,31/10/2015,Social Care & Inclusion,ANCHOR,27/10/2015,"1,568.64",73373-RESIDENTIAL & NURSING CARE PLACEMENTS,Third Party Payments,Private Contractor Fees,Revenue
Walsall Council,http://opendatacommunities.org/id/metropolitan-district-council/walsall,WC61- 250,31/10/2015,Social Care & Inclusion,ANCHOR,27/10/2015,"1,568.64",73373-RESIDENTIAL & NURSING CARE PLACEMENTS,Third Party Payments,Private Contractor Fees,Revenue
Walsall Council,http://opendatacommunities.org/id/metropolitan-district-council/walsall,WC61- 251,31/10/2015,Social Care & Inclusion,ANCHOR,27/10/2015,"1,568.64",73373-RESIDENTIAL & NURSING CARE PLACEMENTS,Third Party Payments,Private Contractor Fees,Revenue
Walsall Council,http://opendatacommunities.org/id/metropolitan-district-council/walsall,WC61- 252,31/10/2015,Social Care & Inclusion,ANCHOR,27/10/2015,"1,568.64",73373-RESIDENTIAL & NURSING CARE PLACEMENTS,Third Party Payments,Private Contractor Fees,Revenue
Walsall Council,http://opendatacommunities.org/id/metropolitan-district-council/walsall,WC61- 253,31/10/2015,Social Care & Inclusion,ANCHOR,27/10/2015,"1,568.64",73373-RESIDENTIAL & NURSING CARE PLACEMENTS,Third Party Payments,Private Contractor Fees,Revenue
Walsall Council,http://opendatacommunities.org/id/metropolitan-district-council/walsall,WC61- 254,31/10/2015,Social Care & Inclusion,ANCHOR,27/10/2015,"1,568.64",73373-RESIDENTIAL & NURSING CARE PLACEMENTS,Third Party Payments,Private Contractor Fees,Revenue
Walsall Council,http://opendatacommunities.org/id/metropolitan-district-council/walsall,WC61- 255,31/10/2015,Childrens,REDACTED,09/10/2015,569.55,74006-HOLIDAY/CHRISTMAS ALLOWANCE-FOSTER CARERS-OTH AGENCY PROVISION,Third Party Payments,Private Contractor Fees,Revenue
Walsall Council,http://opendatacommunities.org/id/metropolitan-district-council/walsall,WC61- 256,31/10/2015,Childrens,REDACTED,09/10/2015,"5,776.81",62515-MISCELLANEOUS SUPPLIES,Supplies & Services,Other Supplies & Services,Revenue
Walsall Council,http://opendatacommunities.org/id/metropolitan-district-council/walsall,WC61- 257,31/10/2015,Social Care & Inclusion,REDACTED,12/10/2015,378.00,76422-DIRECT PAYMENTS TO SOCIAL SERVICES CLIENTS,Transfer Payments,Transfer Payments,Revenue
Walsall Council,http://opendatacommunities.org/id/metropolitan-district-council/walsall,WC61- 258,31/10/2015,Childrens,REDACTED,09/10/2015,906.76,62515-MISCELLANEOUS SUPPLIES,Supplies & Services,Other Supplies & Services,Revenue
Walsall Council,http://opendatacommunities.org/id/metropolitan-district-council/walsall,WC61- 259,31/10/2015,Childrens,REDACTED,09/10/2015,985.76,74006-HOLIDAY/CHRISTMAS ALLOWANCE-FOSTER CARERS-OTH AGENCY PROVISION,Third Party Payments,Private Contractor Fees,Revenue
Walsall Council,http://opendatacommunities.org/id/metropolitan-district-council/walsall,WC61- 260,31/10/2015,Social Care & Inclusion,ANGEL COURT RESIDENTIAL CARE HOME,20/10/2015,392.16,73373-RESIDENTIAL & NURSING CARE PLACEMENTS,Third Party Payments,Private Contractor Fees,Revenue
Walsall Council,http://opendatacommunities.org/id/metropolitan-district-council/walsall,WC61- 261,31/10/2015,Social Care & Inclusion,ANGEL COURT RESIDENTIAL CARE HOME,20/10/2015,"1,736.71",73373-RESIDENTIAL & NURSING CARE PLACEMENTS,Third Party Payments,Private Contractor Fees,Revenue
Walsall Council,http://opendatacommunities.org/id/metropolitan-district-council/walsall,WC61- 262,31/10/2015,Social Care & Inclusion,ANGEL COURT RESIDENTIAL CARE HOME,20/10/2015,"1,817.71",73373-RESIDENTIAL & NURSING CARE PLACEMENTS,Third Party Payments,Private Contractor Fees,Revenue
Walsall Council,http://opendatacommunities.org/id/metropolitan-district-council/walsall,WC61- 263,31/10/2015,Social Care & Inclusion,ANGEL COURT RESIDENTIAL CARE HOME,20/10/2015,"1,899.10",73373-RESIDENTIAL & NURSING CARE PLACEMENTS,Third Party Payments,Private Contractor Fees,Revenue
Walsall Council,http://opendatacommunities.org/id/metropolitan-district-council/walsall,WC61- 264,31/10/2015,Social Care & Inclusion,ANGEL COURT RESIDENTIAL CARE HOME,13/10/2015,"3,496.87",73373-RESIDENTIAL & NURSING CARE PLACEMENTS,Third Party Payments,Private Contractor Fees,Revenue
Walsall Council,http://opendatacommunities.org/id/metropolitan-district-council/walsall,WC61- 265,31/10/2015,Social Care & Inclusion,ANGEL COURT RESIDENTIAL CARE HOME,13/10/2015,"10,730.33",73373-RESIDENTIAL & NURSING CARE PLACEMENTS,Third Party Payments,Private Contractor Fees,Revenue
Walsall Council,http://opendatacommunities.org/id/metropolitan-district-council/walsall,WC61- 266,31/10/2015,Childrens,REDACTED,26/10/2015,"1,952.76",74006-HOLIDAY/CHRISTMAS ALLOWANCE-FOSTER CARERS-OTH AGENCY PROVISION,Third Party Payments,Private Contractor Fees,Revenue
Walsall Council,http://opendatacommunities.org/id/metropolitan-district-council/walsall,WC61- 267,31/10/2015,Change and Governance,ANGLIA STAIRLIFTS LTD,23/10/2015,"3,445.00",01045-PRIVATE GRANTS,Capital,Capital,Capital
Walsall Council,http://opendatacommunities.org/id/metropolitan-district-council/walsall,WC61- 268,31/10/2015,Change and Governance,ANGLIA STAIRLIFTS LTD,14/10/2015,"3,715.00",01045-PRIVATE GRANTS,Capital,Capital,Capital
Walsall Council,http://opendatacommunities.org/id/metropolitan-district-council/walsall,WC61- 269,31/10/2015,Change and Governance,ANGLIA STAIRLIFTS LTD,14/10/2015,"4,405.00",01045-PRIVATE GRANTS,Capital,Capital,Capital
Walsall Council,http://opendatacommunities.org/id/metropolitan-district-council/walsall,WC61- 270,31/10/2015,Change and Governance,ANGLIA STAIRLIFTS LTD,23/10/2015,"4,765.00",01045-PRIVATE GRANTS,Capital,Capital,Capital
Walsall Council,http://opendatacommunities.org/id/metropolitan-district-council/walsall,WC61- 271,31/10/2015,Change and Governance,ANGLIA STAIRLIFTS LTD,23/10/2015,"4,805.00",01045-PRIVATE GRANTS,Capital,Capital,Capital
Walsall Council,http://opendatacommunities.org/id/metropolitan-district-council/walsall,WC61- 272,31/10/2015,Childrens,REDACTED,09/10/2015,925.00,62515-MISCELLANEOUS SUPPLIES,Supplies & Services,Other Supplies & Services,Revenue
Walsall Council,http://opendatacommunities.org/id/metropolitan-district-council/walsall,WC61- 273,31/10/2015,Childrens,REDACTED,09/10/2015,"1,461.24",74006-HOLIDAY/CHRISTMAS ALLOWANCE-FOSTER CARERS-OTH AGENCY PROVISION,Third Party Payments,Private Contractor Fees,Revenue
Walsall Council,http://opendatacommunities.org/id/metropolitan-district-council/walsall,WC61- 274,31/10/2015,Social Care & Inclusion,REDACTED,28/10/2015,870.63,73374-SUPPORTED & OTHER ACCOMMODATION,Third Party Payments,Private Contractor Fees,Revenue
Walsall Council,http://opendatacommunities.org/id/metropolitan-district-council/walsall,WC61- 275,31/10/2015,Social Care & Inclusion,REDACTED,16/10/2015,987.76,73374-SUPPORTED & OTHER ACCOMMODATION,Third Party Payments,Private Contractor Fees,Revenue
Walsall Council,http://opendatacommunities.org/id/metropolitan-district-council/walsall,WC61- 276,31/10/2015,Social Care & Inclusion,ANSON COURT RESIDENTIAL HOME,20/10/2015,"1,567.00",73373-RESIDENTIAL & NURSING CARE PLACEMENTS,Third Party Payments,Private Contractor Fees,Revenue
Walsall Council,http://opendatacommunities.org/id/metropolitan-district-council/walsall,WC61- 277,31/10/2015,Social Care & Inclusion,ANSON COURT RESIDENTIAL HOME,13/10/2015,"1,568.64",73373-RESIDENTIAL & NURSING CARE PLACEMENTS,Third Party Payments,Private Contractor Fees,Revenue
Walsall Council,http://opendatacommunities.org/id/metropolitan-district-council/walsall,WC61- 278,31/10/2015,Social Care & Inclusion,ANSON COURT RESIDENTIAL HOME,20/10/2015,"1,568.64",73373-RESIDENTIAL & NURSING CARE PLACEMENTS,Third Party Payments,Private Contractor Fees,Revenue
Walsall Council,http://opendatacommunities.org/id/metropolitan-district-council/walsall,WC61- 279,31/10/2015,Social Care & Inclusion,ANSON COURT RESIDENTIAL HOME,20/10/2015,"1,568.64",73373-RESIDENTIAL & NURSING CARE PLACEMENTS,Third Party Payments,Private Contractor Fees,Revenue
Walsall Council,http://opendatacommunities.org/id/metropolitan-district-council/walsall,WC61- 280,31/10/2015,Social Care & Inclusion,ANSON COURT RESIDENTIAL HOME,20/10/2015,"1,568.64",73373-RESIDENTIAL & NURSING CARE PLACEMENTS,Third Party Payments,Private Contractor Fees,Revenue
Walsall Council,http://opendatacommunities.org/id/metropolitan-district-council/walsall,WC61- 281,31/10/2015,Social Care & Inclusion,ANSON COURT RESIDENTIAL HOME,20/10/2015,"1,568.64",73373-RESIDENTIAL & NURSING CARE PLACEMENTS,Third Party Payments,Private Contractor Fees,Revenue
Walsall Council,http://opendatacommunities.org/id/metropolitan-district-council/walsall,WC61- 282,31/10/2015,Social Care & Inclusion,ANSON COURT RESIDENTIAL HOME,20/10/2015,"1,568.64",73373-RESIDENTIAL & NURSING CARE PLACEMENTS,Third Party Payments,Private Contractor Fees,Revenue
Walsall Council,http://opendatacommunities.org/id/metropolitan-district-council/walsall,WC61- 283,31/10/2015,Social Care & Inclusion,ANSON COURT RESIDENTIAL HOME,20/10/2015,"1,568.64",73373-RESIDENTIAL & NURSING CARE PLACEMENTS,Third Party Payments,Private Contractor Fees,Revenue
Walsall Council,http://opendatacommunities.org/id/metropolitan-district-council/walsall,WC61- 284,31/10/2015,Social Care & Inclusion,ANSON COURT RESIDENTIAL HOME,20/10/2015,"1,568.64",73373-RESIDENTIAL & NURSING CARE PLACEMENTS,Third Party Payments,Private Contractor Fees,Revenue
Walsall Council,http://opendatacommunities.org/id/metropolitan-district-council/walsall,WC61- 285,31/10/2015,Social Care & Inclusion,ANSON COURT RESIDENTIAL HOME,20/10/2015,"1,568.64",73373-RESIDENTIAL & NURSING CARE PLACEMENTS,Third Party Payments,Private Contractor Fees,Revenue
Walsall Council,http://opendatacommunities.org/id/metropolitan-district-council/walsall,WC61- 286,31/10/2015,Social Care & Inclusion,ANSON COURT RESIDENTIAL HOME,20/10/2015,"1,568.64",73373-RESIDENTIAL & NURSING CARE PLACEMENTS,Third Party Payments,Private Contractor Fees,Revenue
Walsall Council,http://opendatacommunities.org/id/metropolitan-district-council/walsall,WC61- 287,31/10/2015,Social Care & Inclusion,ANSON COURT RESIDENTIAL HOME,20/10/2015,"1,568.64",73373-RESIDENTIAL & NURSING CARE PLACEMENTS,Third Party Payments,Private Contractor Fees,Revenue
Walsall Council,http://opendatacommunities.org/id/metropolitan-district-council/walsall,WC61- 288,31/10/2015,Social Care & Inclusion,ANSON COURT RESIDENTIAL HOME,20/10/2015,"1,568.64",73373-RESIDENTIAL & NURSING CARE PLACEMENTS,Third Party Payments,Private Contractor Fees,Revenue
Walsall Council,http://opendatacommunities.org/id/metropolitan-district-council/walsall,WC61- 289,31/10/2015,Social Care & Inclusion,ANSON COURT RESIDENTIAL HOME,20/10/2015,"1,568.64",73373-RESIDENTIAL & NURSING CARE PLACEMENTS,Third Party Payments,Private Contractor Fees,Revenue
Walsall Council,http://opendatacommunities.org/id/metropolitan-district-council/walsall,WC61- 290,31/10/2015,Social Care & Inclusion,ANSON COURT RESIDENTIAL HOME,20/10/2015,"1,649.20",73373-RESIDENTIAL & NURSING CARE PLACEMENTS,Third Party Payments,Private Contractor Fees,Revenue
Walsall Council,http://opendatacommunities.org/id/metropolitan-district-council/walsall,WC61- 291,31/10/2015,Social Care & Inclusion,ANSON COURT RESIDENTIAL HOME,13/10/2015,"1,650.44",73373-RESIDENTIAL & NURSING CARE PLACEMENTS,Third Party Payments,Private Contractor Fees,Revenue
Walsall Council,http://opendatacommunities.org/id/metropolitan-district-council/walsall,WC61- 292,31/10/2015,Social Care & Inclusion,ANSON COURT RESIDENTIAL HOME,13/10/2015,"1,650.44",73373-RESIDENTIAL & NURSING CARE PLACEMENTS,Third Party Payments,Private Contractor Fees,Revenue
Walsall Council,http://opendatacommunities.org/id/metropolitan-district-council/walsall,WC61- 293,31/10/2015,Social Care & Inclusion,ANSON COURT RESIDENTIAL HOME,20/10/2015,"1,650.44",73373-RESIDENTIAL & NURSING CARE PLACEMENTS,Third Party Payments,Private Contractor Fees,Revenue
Walsall Council,http://opendatacommunities.org/id/metropolitan-district-council/walsall,WC61- 294,31/10/2015,Social Care & Inclusion,ANSON COURT RESIDENTIAL HOME,20/10/2015,"1,650.44",73373-RESIDENTIAL & NURSING CARE PLACEMENTS,Third Party Payments,Private Contractor Fees,Revenue
Walsall Council,http://opendatacommunities.org/id/metropolitan-district-council/walsall,WC61- 295,31/10/2015,Social Care & Inclusion,ANSON COURT RESIDENTIAL HOME,20/10/2015,"1,651.04",73373-RESIDENTIAL & NURSING CARE PLACEMENTS,Third Party Payments,Private Contractor Fees,Revenue
Walsall Council,http://opendatacommunities.org/id/metropolitan-district-council/walsall,WC61- 296,31/10/2015,Social Care & Inclusion,ANSON COURT RESIDENTIAL HOME,20/10/2015,"1,651.04",73373-RESIDENTIAL & NURSING CARE PLACEMENTS,Third Party Payments,Private Contractor Fees,Revenue
Walsall Council,http://opendatacommunities.org/id/metropolitan-district-council/walsall,WC61- 297,31/10/2015,Social Care & Inclusion,ANSON COURT RESIDENTIAL HOME,08/10/2015,"1,848.75",73373-RESIDENTIAL & NURSING CARE PLACEMENTS,Third Party Payments,Private Contractor Fees,Revenue
Walsall Council,http://opendatacommunities.org/id/metropolitan-district-council/walsall,WC61- 298,31/10/2015,Social Care & Inclusion,ANSON COURT RESIDENTIAL HOME,13/10/2015,"3,585.46",73373-RESIDENTIAL & NURSING CARE PLACEMENTS,Third Party Payments,Private Contractor Fees,Revenue
Walsall Council,http://opendatacommunities.org/id/metropolitan-district-council/walsall,WC61- 299,31/10/2015,Childrens,REDACTED,26/10/2015,"1,369.84",74006-HOLIDAY/CHRISTMAS ALLOWANCE-FOSTER CARERS-OTH AGENCY PROVISION,Third Party Payments,Private Contractor Fees,Revenue
Walsall Council,http://opendatacommunities.org/id/metropolitan-district-council/walsall,WC61- 300,31/10/2015,Childrens,REDACTED,26/10/2015,571.44,74006-HOLIDAY/CHRISTMAS ALLOWANCE-FOSTER CARERS-OTH AGENCY PROVISION,Third Party Payments,Private Contractor Fees,Revenue
Walsall Council,http://opendatacommunities.org/id/metropolitan-district-council/walsall,WC61- 301,31/10/2015,Economy & Environment,APC THEATRE SERVICES,09/10/2015,332.50,63000-PROFESSIONAL FEES AND SERVICES,Supplies & Services,Services,Revenue
Walsall Council,http://opendatacommunities.org/id/metropolitan-district-council/walsall,WC61- 302,31/10/2015,Economy & Environment,APCOA PARKING SERVICES (UK) LTD,16/10/2015,"47,960.78",73025-PROFESSIONAL SERVICES-PRIV CONTRACTOR & OTHER AGENCIES,Third Party Payments,Private Contractor Fees,Revenue
Walsall Council,http://opendatacommunities.org/id/metropolitan-district-council/walsall,WC61- 303,31/10/2015,Social Care & Inclusion,APNA HOUSE LTD,27/10/2015,"5,586.96",73373-RESIDENTIAL & NURSING CARE PLACEMENTS,Third Party Payments,Private Contractor Fees,Revenue
Walsall Council,http://opendatacommunities.org/id/metropolitan-district-council/walsall,WC61- 304,31/10/2015,Childrens,APPLEGREEN CHILDRENS CARE LTD,28/10/2015,"6,510.00",74036-EXTERNAL RESIDENTIAL CARE-OTH AGENCY PROVISION,Third Party Payments,Private Contractor Fees,Revenue
Walsall Council,http://opendatacommunities.org/id/metropolitan-district-council/walsall,WC61- 305,31/10/2015,Childrens,APPLEGREEN CHILDRENS CARE LTD,28/10/2015,"13,285.67",74036-EXTERNAL RESIDENTIAL CARE-OTH AGENCY PROVISION,Third Party Payments,Private Contractor Fees,Revenue
Walsall Council,http://opendatacommunities.org/id/metropolitan-district-council/walsall,WC61- 306,31/10/2015,Social Care & Inclusion,ARBORETUM NURSING HOME.,08/10/2015,-987.80,73373-RESIDENTIAL & NURSING CARE PLACEMENTS,Third Party Payments,Private Contractor Fees,Revenue
Walsall Council,http://opendatacommunities.org/id/metropolitan-district-council/walsall,WC61- 307,31/10/2015,Social Care & Inclusion,ARBORETUM NURSING HOME.,13/10/2015,"1,975.60",73373-RESIDENTIAL & NURSING CARE PLACEMENTS,Third Party Payments,Private Contractor Fees,Revenue
Walsall Council,http://opendatacommunities.org/id/metropolitan-district-council/walsall,WC61- 308,31/10/2015,Social Care & Inclusion,ARBORETUM NURSING HOME.,13/10/2015,"1,975.60",73373-RESIDENTIAL & NURSING CARE PLACEMENTS,Third Party Payments,Private Contractor Fees,Revenue
Walsall Council,http://opendatacommunities.org/id/metropolitan-district-council/walsall,WC61- 309,31/10/2015,Social Care & Inclusion,ARBORETUM NURSING HOME.,13/10/2015,"1,975.60",73373-RESIDENTIAL & NURSING CARE PLACEMENTS,Third Party Payments,Private Contractor Fees,Revenue
Walsall Council,http://opendatacommunities.org/id/metropolitan-district-council/walsall,WC61- 310,31/10/2015,Social Care & Inclusion,ARBORETUM NURSING HOME.,13/10/2015,"1,975.60",73373-RESIDENTIAL & NURSING CARE PLACEMENTS,Third Party Payments,Private Contractor Fees,Revenue
Walsall Council,http://opendatacommunities.org/id/metropolitan-district-council/walsall,WC61- 311,31/10/2015,Social Care & Inclusion,ARBORETUM NURSING HOME.,13/10/2015,"2,017.16",73373-RESIDENTIAL & NURSING CARE PLACEMENTS,Third Party Payments,Private Contractor Fees,Revenue
Walsall Council,http://opendatacommunities.org/id/metropolitan-district-council/walsall,WC61- 312,31/10/2015,Social Care & Inclusion,ARBORETUM NURSING HOME.,13/10/2015,"2,030.00",73373-RESIDENTIAL & NURSING CARE PLACEMENTS,Third Party Payments,Private Contractor Fees,Revenue
Walsall Council,http://opendatacommunities.org/id/metropolitan-district-council/walsall,WC61- 313,31/10/2015,Social Care & Inclusion,ARBORETUM NURSING HOME.,13/10/2015,"2,030.00",73373-RESIDENTIAL & NURSING CARE PLACEMENTS,Third Party Payments,Private Contractor Fees,Revenue
Walsall Council,http://opendatacommunities.org/id/metropolitan-district-council/walsall,WC61- 314,31/10/2015,Social Care & Inclusion,ARBORETUM NURSING HOME.,13/10/2015,"2,469.50",73373-RESIDENTIAL & NURSING CARE PLACEMENTS,Third Party Payments,Private Contractor Fees,Revenue
Walsall Council,http://opendatacommunities.org/id/metropolitan-district-council/walsall,WC61- 315,31/10/2015,Economy & Environment,ASA AWARDS,14/10/2015,262.78,60006-NEW-FURNITURE & EQUIPMENT,Supplies & Services,"Equip,Furniture & Materials",Revenue
Walsall Council,http://opendatacommunities.org/id/metropolitan-district-council/walsall,WC61- 316,31/10/2015,Social Care & Inclusion,ASH GRANGE CARE HOME,20/10/2015,"-1,704.17",73373-RESIDENTIAL & NURSING CARE PLACEMENTS,Third Party Payments,Private Contractor Fees,Revenue
Walsall Council,http://opendatacommunities.org/id/metropolitan-district-council/walsall,WC61- 317,31/10/2015,Social Care & Inclusion,ASH GRANGE CARE HOME,20/10/2015,-994.10,73373-RESIDENTIAL & NURSING CARE PLACEMENTS,Third Party Payments,Private Contractor Fees,Revenue
Walsall Council,http://opendatacommunities.org/id/metropolitan-district-council/walsall,WC61- 318,31/10/2015,Social Care & Inclusion,ASH GRANGE CARE HOME,08/10/2015,-591.47,73373-RESIDENTIAL & NURSING CARE PLACEMENTS,Third Party Payments,Private Contractor Fees,Revenue
Walsall Council,http://opendatacommunities.org/id/metropolitan-district-council/walsall,WC61- 319,31/10/2015,Social Care & Inclusion,ASH GRANGE CARE HOME,20/10/2015,312.94,73373-RESIDENTIAL & NURSING CARE PLACEMENTS,Third Party Payments,Private Contractor Fees,Revenue
Walsall Council,http://opendatacommunities.org/id/metropolitan-district-council/walsall,WC61- 320,31/10/2015,Social Care & Inclusion,ASH GRANGE CARE HOME,20/10/2015,568.05,73373-RESIDENTIAL & NURSING CARE PLACEMENTS,Third Party Payments,Private Contractor Fees,Revenue
Walsall Council,http://opendatacommunities.org/id/metropolitan-district-council/walsall,WC61- 321,31/10/2015,Social Care & Inclusion,ASH GRANGE CARE HOME,08/10/2015,860.32,73373-RESIDENTIAL & NURSING CARE PLACEMENTS,Third Party Payments,Private Contractor Fees,Revenue
Walsall Council,http://opendatacommunities.org/id/metropolitan-district-council/walsall,WC61- 322,31/10/2015,Social Care & Inclusion,ASH GRANGE CARE HOME,20/10/2015,"1,344.25",73373-RESIDENTIAL & NURSING CARE PLACEMENTS,Third Party Payments,Private Contractor Fees,Revenue
Walsall Council,http://opendatacommunities.org/id/metropolitan-district-council/walsall,WC61- 323,31/10/2015,Social Care & Inclusion,ASH GRANGE CARE HOME,13/10/2015,"1,505.56",73373-RESIDENTIAL & NURSING CARE PLACEMENTS,Third Party Payments,Private Contractor Fees,Revenue
Walsall Council,http://opendatacommunities.org/id/metropolitan-district-council/walsall,WC61- 324,31/10/2015,Social Care & Inclusion,ASH GRANGE CARE HOME,20/10/2015,"1,505.56",73373-RESIDENTIAL & NURSING CARE PLACEMENTS,Third Party Payments,Private Contractor Fees,Revenue
Walsall Council,http://opendatacommunities.org/id/metropolitan-district-council/walsall,WC61- 325,31/10/2015,Social Care & Inclusion,ASH GRANGE CARE HOME,08/10/2015,"1,988.20",73373-RESIDENTIAL & NURSING CARE PLACEMENTS,Third Party Payments,Private Contractor Fees,Revenue
Walsall Council,http://opendatacommunities.org/id/metropolitan-district-council/walsall,WC61- 326,31/10/2015,Social Care & Inclusion,ASH GRANGE CARE HOME,13/10/2015,"1,988.20",73373-RESIDENTIAL & NURSING CARE PLACEMENTS,Third Party Payments,Private Contractor Fees,Revenue
Walsall Council,http://opendatacommunities.org/id/metropolitan-district-council/walsall,WC61- 327,31/10/2015,Social Care & Inclusion,ASH GRANGE CARE HOME,13/10/2015,"1,988.20",73373-RESIDENTIAL & NURSING CARE PLACEMENTS,Third Party Payments,Private Contractor Fees,Revenue
Walsall Council,http://opendatacommunities.org/id/metropolitan-district-council/walsall,WC61- 328,31/10/2015,Social Care & Inclusion,ASH GRANGE CARE HOME,13/10/2015,"1,988.20",73373-RESIDENTIAL & NURSING CARE PLACEMENTS,Third Party Payments,Private Contractor Fees,Revenue
Walsall Council,http://opendatacommunities.org/id/metropolitan-district-council/walsall,WC61- 329,31/10/2015,Social Care & Inclusion,ASH GRANGE CARE HOME,13/10/2015,"1,988.20",73373-RESIDENTIAL & NURSING CARE PLACEMENTS,Third Party Payments,Private Contractor Fees,Revenue
Walsall Council,http://opendatacommunities.org/id/metropolitan-district-council/walsall,WC61- 330,31/10/2015,Social Care & Inclusion,ASH GRANGE CARE HOME,13/10/2015,"1,988.20",73373-RESIDENTIAL & NURSING CARE PLACEMENTS,Third Party Payments,Private Contractor Fees,Revenue
Walsall Council,http://opendatacommunities.org/id/metropolitan-district-council/walsall,WC61- 331,31/10/2015,Social Care & Inclusion,ASH GRANGE CARE HOME,13/10/2015,"1,988.20",73373-RESIDENTIAL & NURSING CARE PLACEMENTS,Third Party Payments,Private Contractor Fees,Revenue
Walsall Council,http://opendatacommunities.org/id/metropolitan-district-council/walsall,WC61- 332,31/10/2015,Social Care & Inclusion,ASH GRANGE CARE HOME,20/10/2015,"1,988.20",73373-RESIDENTIAL & NURSING CARE PLACEMENTS,Third Party Payments,Private Contractor Fees,Revenue
Walsall Council,http://opendatacommunities.org/id/metropolitan-district-council/walsall,WC61- 333,31/10/2015,Social Care & Inclusion,ASH GRANGE CARE HOME,20/10/2015,"1,988.20",73373-RESIDENTIAL & NURSING CARE PLACEMENTS,Third Party Payments,Private Contractor Fees,Revenue
Walsall Council,http://opendatacommunities.org/id/metropolitan-district-council/walsall,WC61- 334,31/10/2015,Social Care & Inclusion,ASH GRANGE CARE HOME,20/10/2015,"1,988.20",73373-RESIDENTIAL & NURSING CARE PLACEMENTS,Third Party Payments,Private Contractor Fees,Revenue
Walsall Council,http://opendatacommunities.org/id/metropolitan-district-council/walsall,WC61- 335,31/10/2015,Social Care & Inclusion,ASH GRANGE CARE HOME,13/10/2015,"1,988.36",73373-RESIDENTIAL & NURSING CARE PLACEMENTS,Third Party Payments,Private Contractor Fees,Revenue
Walsall Council,http://opendatacommunities.org/id/metropolitan-district-council/walsall,WC61- 336,31/10/2015,Social Care & Inclusion,ASH GRANGE CARE HOME,20/10/2015,"2,065.64",73373-RESIDENTIAL & NURSING CARE PLACEMENTS,Third Party Payments,Private Contractor Fees,Revenue
Walsall Council,http://opendatacommunities.org/id/metropolitan-district-council/walsall,WC61- 337,31/10/2015,Social Care & Inclusion,ASH GRANGE CARE HOME,13/10/2015,"2,943.72",73373-RESIDENTIAL & NURSING CARE PLACEMENTS,Third Party Payments,Private Contractor Fees,Revenue
Walsall Council,http://opendatacommunities.org/id/metropolitan-district-council/walsall,WC61- 338,31/10/2015,Social Care & Inclusion,ASH GRANGE CARE HOME,22/10/2015,"14,700.00",73019-PSE'S-PRIV CONTRACTOR FEES,Third Party Payments,Private Contractor Fees,Revenue
Walsall Council,http://opendatacommunities.org/id/metropolitan-district-council/walsall,WC61- 339,31/10/2015,Social Care & Inclusion,ASHBOURNE LODGE,13/10/2015,"2,103.83",73373-RESIDENTIAL & NURSING CARE PLACEMENTS,Third Party Payments,Private Contractor Fees,Revenue
Walsall Council,http://opendatacommunities.org/id/metropolitan-district-council/walsall,WC61- 340,31/10/2015,Social Care & Inclusion,ASHBOURNE LODGE,13/10/2015,"2,173.96",73373-RESIDENTIAL & NURSING CARE PLACEMENTS,Third Party Payments,Private Contractor Fees,Revenue
Walsall Council,http://opendatacommunities.org/id/metropolitan-district-council/walsall,WC61- 341,31/10/2015,Economy & Environment,ASKEWS AND HOLTS LIBRARY SERVICES LTD,16/10/2015,266.89,60501-LIBRARY BOOKS,Supplies & Services,"Equip,Furniture & Materials",Revenue
Walsall Council,http://opendatacommunities.org/id/metropolitan-district-council/walsall,WC61- 342,31/10/2015,Economy & Environment,ASKEWS AND HOLTS LIBRARY SERVICES LTD,28/10/2015,287.25,60501-LIBRARY BOOKS,Supplies & Services,"Equip,Furniture & Materials",Revenue
Walsall Council,http://opendatacommunities.org/id/metropolitan-district-council/walsall,WC61- 343,31/10/2015,Economy & Environment,ASKEWS AND HOLTS LIBRARY SERVICES LTD,15/10/2015,294.80,60501-LIBRARY BOOKS,Supplies & Services,"Equip,Furniture & Materials",Revenue
Walsall Council,http://opendatacommunities.org/id/metropolitan-district-council/walsall,WC61- 344,31/10/2015,Economy & Environment,ASKEWS AND HOLTS LIBRARY SERVICES LTD,16/10/2015,378.44,60501-LIBRARY BOOKS,Supplies & Services,"Equip,Furniture & Materials",Revenue
Walsall Council,http://opendatacommunities.org/id/metropolitan-district-council/walsall,WC61- 345,31/10/2015,Economy & Environment,ASKEWS AND HOLTS LIBRARY SERVICES LTD,19/10/2015,576.14,60501-LIBRARY BOOKS,Supplies & Services,"Equip,Furniture & Materials",Revenue
Walsall Council,http://opendatacommunities.org/id/metropolitan-district-council/walsall,WC61- 346,31/10/2015,Economy & Environment,ASKEWS AND HOLTS LIBRARY SERVICES LTD,28/10/2015,635.56,60501-LIBRARY BOOKS,Supplies & Services,"Equip,Furniture & Materials",Revenue
Walsall Council,http://opendatacommunities.org/id/metropolitan-district-council/walsall,WC61- 347,31/10/2015,Economy & Environment,ASKEWS AND HOLTS LIBRARY SERVICES LTD,15/10/2015,713.58,60501-LIBRARY BOOKS,Supplies & Services,"Equip,Furniture & Materials",Revenue
Walsall Council,http://opendatacommunities.org/id/metropolitan-district-council/walsall,WC61- 348,31/10/2015,Economy & Environment,ASKEWS AND HOLTS LIBRARY SERVICES LTD,15/10/2015,"1,385.93",60501-LIBRARY BOOKS,Supplies & Services,"Equip,Furniture & Materials",Revenue
Walsall Council,http://opendatacommunities.org/id/metropolitan-district-council/walsall,WC61- 349,31/10/2015,Social Care & Inclusion,REDACTED,12/10/2015,493.00,76422-DIRECT PAYMENTS TO SOCIAL SERVICES CLIENTS,Transfer Payments,Transfer Payments,Revenue
Walsall Council,http://opendatacommunities.org/id/metropolitan-district-council/walsall,WC61- 350,31/10/2015,Economy & Environment,ASPINALL VERDI LIMITED,19/10/2015,437.50,01001-OTHER CONSULTANTS FEES,Capital,Capital,Capital
Walsall Council,http://opendatacommunities.org/id/metropolitan-district-council/walsall,WC61- 351,31/10/2015,Economy & Environment,ASPINALL VERDI LIMITED,19/10/2015,838.00,01001-OTHER CONSULTANTS FEES,Capital,Capital,Capital
Walsall Council,http://opendatacommunities.org/id/metropolitan-district-council/walsall,WC61- 352,31/10/2015,Childrens,ASTON CHILDRENS CARE,23/10/2015,"10,628.35",74036-EXTERNAL RESIDENTIAL CARE-OTH AGENCY PROVISION,Third Party Payments,Private Contractor Fees,Revenue
Walsall Council,http://opendatacommunities.org/id/metropolitan-district-council/walsall,WC61- 353,31/10/2015,Economy & Environment,AUDIENCE SYSTEMS LTD,12/10/2015,"1,042.80",63000-PROFESSIONAL FEES AND SERVICES,Supplies & Services,Services,Revenue
Walsall Council,http://opendatacommunities.org/id/metropolitan-district-council/walsall,WC61- 354,31/10/2015,Change and Governance,AURORA GRAPHICS & DISPLAYS LTD,28/10/2015,636.00,62008-OUTWORK-PRINT ROOM,Supplies & Services,"Printing, Stationery & Office Exp",Revenue
Walsall Council,http://opendatacommunities.org/id/metropolitan-district-council/walsall,WC61- 355,31/10/2015,Childrens,AUTISM WEST MIDLANDS,19/10/2015,525.00,30030-EXTERNAL TRAINING,Employees,Training,Revenue
Walsall Council,http://opendatacommunities.org/id/metropolitan-district-council/walsall,WC61- 356,31/10/2015,Social Care & Inclusion,AUTISM WEST MIDLANDS,08/10/2015,"7,237.75",73373-RESIDENTIAL & NURSING CARE PLACEMENTS,Third Party Payments,Private Contractor Fees,Revenue
Walsall Council,http://opendatacommunities.org/id/metropolitan-district-council/walsall,WC61- 357,31/10/2015,Social Care & Inclusion,AUTISM WEST MIDLANDS,27/10/2015,"7,479.01",73373-RESIDENTIAL & NURSING CARE PLACEMENTS,Third Party Payments,Private Contractor Fees,Revenue
Walsall Council,http://opendatacommunities.org/id/metropolitan-district-council/walsall,WC61- 358,31/10/2015,Social Care & Inclusion,AUTISM WEST MIDLANDS 001,08/10/2015,"4,838.06",73373-RESIDENTIAL & NURSING CARE PLACEMENTS,Third Party Payments,Private Contractor Fees,Revenue
Walsall Council,http://opendatacommunities.org/id/metropolitan-district-council/walsall,WC61- 359,31/10/2015,Social Care & Inclusion,AUTISM WEST MIDLANDS 001,27/10/2015,"4,999.33",73373-RESIDENTIAL & NURSING CARE PLACEMENTS,Third Party Payments,Private Contractor Fees,Revenue
Walsall Council,http://opendatacommunities.org/id/metropolitan-district-council/walsall,WC61- 360,31/10/2015,Economy & Environment,AVANTGARDE PHARMA LTD T/A AL-SHAFA PHARMACY,28/10/2015,449.70,71007-CONTRIBUTION TO PCT,Third Party Payments,Joint Arrangements,Revenue
Walsall Council,http://opendatacommunities.org/id/metropolitan-district-council/walsall,WC61- 361,31/10/2015,Economy & Environment,AVANTGARDE PHARMA LTD T/A AL-SHAFA PHARMACY,28/10/2015,612.88,71007-CONTRIBUTION TO PCT,Third Party Payments,Joint Arrangements,Revenue
Walsall Council,http://opendatacommunities.org/id/metropolitan-district-council/walsall,WC61- 362,31/10/2015,Social Care & Inclusion,REDACTED,12/10/2015,777.00,76422-DIRECT PAYMENTS TO SOCIAL SERVICES CLIENTS,Transfer Payments,Transfer Payments,Revenue
Walsall Council,http://opendatacommunities.org/id/metropolitan-district-council/walsall,WC61- 363,31/10/2015,Economy & Environment,AXIELL LIMITED,19/10/2015,495.81,63000-PROFESSIONAL FEES AND SERVICES,Supplies & Services,Services,Revenue
Walsall Council,http://opendatacommunities.org/id/metropolitan-district-council/walsall,WC61- 364,31/10/2015,Economy & Environment,AXIELL LIMITED,26/10/2015,"16,830.75",63800-COMPUTER EQUIPMENT AND SUPPLIES,Supplies & Services,Communications & Computing,Revenue
Walsall Council,http://opendatacommunities.org/id/metropolitan-district-council/walsall,WC61- 365,31/10/2015,Childrens,REDACTED,12/10/2015,"1,284.00",76422-DIRECT PAYMENTS TO SOCIAL SERVICES CLIENTS,Transfer Payments,Transfer Payments,Revenue
Walsall Council,http://opendatacommunities.org/id/metropolitan-district-council/walsall,WC61- 366,31/10/2015,Social Care & Inclusion,REDACTED,12/10/2015,"2,652.00",76422-DIRECT PAYMENTS TO SOCIAL SERVICES CLIENTS,Transfer Payments,Transfer Payments,Revenue
Walsall Council,http://opendatacommunities.org/id/metropolitan-district-council/walsall,WC61- 367,31/10/2015,Childrens,REDACTED,09/10/2015,906.76,62515-MISCELLANEOUS SUPPLIES,Supplies & Services,Other Supplies & Services,Revenue
Walsall Council,http://opendatacommunities.org/id/metropolitan-district-council/walsall,WC61- 368,31/10/2015,Childrens,REDACTED,09/10/2015,985.76,74006-HOLIDAY/CHRISTMAS ALLOWANCE-FOSTER CARERS-OTH AGENCY PROVISION,Third Party Payments,Private Contractor Fees,Revenue
Walsall Council,http://opendatacommunities.org/id/metropolitan-district-council/walsall,WC61- 369,31/10/2015,Childrens,REDACTED,09/10/2015,"1,445.32",62515-MISCELLANEOUS SUPPLIES,Supplies & Services,Other Supplies & Services,Revenue
Walsall Council,http://opendatacommunities.org/id/metropolitan-district-council/walsall,WC61- 370,31/10/2015,Childrens,REDACTED,09/10/2015,"2,094.74",74006-HOLIDAY/CHRISTMAS ALLOWANCE-FOSTER CARERS-OTH AGENCY PROVISION,Third Party Payments,Private Contractor Fees,Revenue
Walsall Council,http://opendatacommunities.org/id/metropolitan-district-council/walsall,WC61- 371,31/10/2015,Economy & Environment,B&Q WAREHOUSE PLC,13/10/2015,315.17,60512-LOOSE TOOLS & CONSUMABLES,Supplies & Services,"Equip,Furniture & Materials",Revenue
Walsall Council,http://opendatacommunities.org/id/metropolitan-district-council/walsall,WC61- 372,31/10/2015,Social Care & Inclusion,REDACTED,12/10/2015,863.20,76422-DIRECT PAYMENTS TO SOCIAL SERVICES CLIENTS,Transfer Payments,Transfer Payments,Revenue
Walsall Council,http://opendatacommunities.org/id/metropolitan-district-council/walsall,WC61- 373,31/10/2015,Economy & Environment,BAKER HALL PARTNERSHIP,28/10/2015,833.25,63248-SURVEYS & PROF SERVICES-PAYMENT TO CONTRACTOR,Supplies & Services,Services,Revenue
Walsall Council,http://opendatacommunities.org/id/metropolitan-district-council/walsall,WC61- 374,31/10/2015,Economy & Environment,BAKER HALL PARTNERSHIP,28/10/2015,"1,095.25",63248-SURVEYS & PROF SERVICES-PAYMENT TO CONTRACTOR,Supplies & Services,Services,Revenue
Walsall Council,http://opendatacommunities.org/id/metropolitan-district-council/walsall,WC61- 375,31/10/2015,Social Care & Inclusion,REDACTED,12/10/2015,"2,849.92",76422-DIRECT PAYMENTS TO SOCIAL SERVICES CLIENTS,Transfer Payments,Transfer Payments,Revenue
Walsall Council,http://opendatacommunities.org/id/metropolitan-district-council/walsall,WC61- 376,31/10/2015,Social Care & Inclusion,REDACTED,12/10/2015,620.00,76422-DIRECT PAYMENTS TO SOCIAL SERVICES CLIENTS,Transfer Payments,Transfer Payments,Revenue
Walsall Council,http://opendatacommunities.org/id/metropolitan-district-council/walsall,WC61- 377,31/10/2015,Social Care & Inclusion,REDACTED,12/10/2015,"2,979.66",76422-DIRECT PAYMENTS TO SOCIAL SERVICES CLIENTS,Transfer Payments,Transfer Payments,Revenue
Walsall Council,http://opendatacommunities.org/id/metropolitan-district-council/walsall,WC61- 378,31/10/2015,Social Care & Inclusion,REDACTED,12/10/2015,"2,680.55",76422-DIRECT PAYMENTS TO SOCIAL SERVICES CLIENTS,Transfer Payments,Transfer Payments,Revenue
Walsall Council,http://opendatacommunities.org/id/metropolitan-district-council/walsall,WC61- 379,31/10/2015,Social Care & Inclusion,REDACTED,12/10/2015,"1,536.08",76422-DIRECT PAYMENTS TO SOCIAL SERVICES CLIENTS,Transfer Payments,Transfer Payments,Revenue
Walsall Council,http://opendatacommunities.org/id/metropolitan-district-council/walsall,WC61- 380,31/10/2015,Social Care & Inclusion,REDACTED,12/10/2015,632.52,76422-DIRECT PAYMENTS TO SOCIAL SERVICES CLIENTS,Transfer Payments,Transfer Payments,Revenue
Walsall Council,http://opendatacommunities.org/id/metropolitan-district-council/walsall,WC61- 381,31/10/2015,Economy & Environment,BARCHAM TREES PLC,12/10/2015,213.00,41001-GROUNDS MAINTENANCE,Premises,Premises-Repairs & Maintenance,Revenue
Walsall Council,http://opendatacommunities.org/id/metropolitan-district-council/walsall,WC61- 382,31/10/2015,Economy & Environment,BARCHAM TREES PLC,23/10/2015,500.60,60500-GENERAL MATERIALS,Supplies & Services,"Equip,Furniture & Materials",Revenue
Walsall Council,http://opendatacommunities.org/id/metropolitan-district-council/walsall,WC61- 383,31/10/2015,Economy & Environment,BARHALE PLC,27/10/2015,225.00,63800-COMPUTER EQUIPMENT AND SUPPLIES,Supplies & Services,Communications & Computing,Revenue
Walsall Council,http://opendatacommunities.org/id/metropolitan-district-council/walsall,WC61- 384,31/10/2015,Economy & Environment,BARHALE PLC,21/10/2015,540.00,30030-EXTERNAL TRAINING,Employees,Training,Revenue
Walsall Council,http://opendatacommunities.org/id/metropolitan-district-council/walsall,WC61- 385,31/10/2015,Childrens,BARNARDOS SERVICES LTD,16/10/2015,"4,627.86",74037-INDEPENDENT FOSTER CARE-OTH AGENCY PROVISION,Third Party Payments,Private Contractor Fees,Revenue
Walsall Council,http://opendatacommunities.org/id/metropolitan-district-council/walsall,WC61- 386,31/10/2015,Change and Governance,BARONS COURT HOTEL,26/10/2015,933.33,75501-BED & BREAKFAST PAYMENTS,Third Party Payments,Private Contractor Fees,Revenue
Walsall Council,http://opendatacommunities.org/id/metropolitan-district-council/walsall,WC61- 387,31/10/2015,Childrens,BEADEN POWERLEC LIMITED,26/10/2015,482.00,01006-SITE WORKS MAIN CONTRACTORS,Capital,Capital,Capital
Walsall Council,http://opendatacommunities.org/id/metropolitan-district-council/walsall,WC61- 388,31/10/2015,Childrens,REDACTED,09/10/2015,925.00,62515-MISCELLANEOUS SUPPLIES,Supplies & Services,Other Supplies & Services,Revenue
Walsall Council,http://opendatacommunities.org/id/metropolitan-district-council/walsall,WC61- 389,31/10/2015,Childrens,REDACTED,09/10/2015,"1,301.84",74006-HOLIDAY/CHRISTMAS ALLOWANCE-FOSTER CARERS-OTH AGENCY PROVISION,Third Party Payments,Private Contractor Fees,Revenue
Walsall Council,http://opendatacommunities.org/id/metropolitan-district-council/walsall,WC61- 390,31/10/2015,Social Care & Inclusion,BEARWOOD NURSING HOME LTD,20/10/2015,"1,527.60",73373-RESIDENTIAL & NURSING CARE PLACEMENTS,Third Party Payments,Private Contractor Fees,Revenue
Walsall Council,http://opendatacommunities.org/id/metropolitan-district-council/walsall,WC61- 391,31/10/2015,Social Care & Inclusion,REDACTED,12/10/2015,641.76,76422-DIRECT PAYMENTS TO SOCIAL SERVICES CLIENTS,Transfer Payments,Transfer Payments,Revenue
Walsall Council,http://opendatacommunities.org/id/metropolitan-district-council/walsall,WC61- 392,31/10/2015,Childrens,REDACTED,09/10/2015,354.48,62515-MISCELLANEOUS SUPPLIES,Supplies & Services,Other Supplies & Services,Revenue
Walsall Council,http://opendatacommunities.org/id/metropolitan-district-council/walsall,WC61- 393,31/10/2015,Childrens,REDACTED,09/10/2015,571.44,74006-HOLIDAY/CHRISTMAS ALLOWANCE-FOSTER CARERS-OTH AGENCY PROVISION,Third Party Payments,Private Contractor Fees,Revenue
Walsall Council,http://opendatacommunities.org/id/metropolitan-district-council/walsall,WC61- 394,31/10/2015,Social Care & Inclusion,BELLEVUE COURT CARE HOME,13/10/2015,"1,532.96",73373-RESIDENTIAL & NURSING CARE PLACEMENTS,Third Party Payments,Private Contractor Fees,Revenue
Walsall Council,http://opendatacommunities.org/id/metropolitan-district-council/walsall,WC61- 395,31/10/2015,Social Care & Inclusion,BELLEVUE COURT CARE HOME,13/10/2015,"1,540.20",73373-RESIDENTIAL & NURSING CARE PLACEMENTS,Third Party Payments,Private Contractor Fees,Revenue
Walsall Council,http://opendatacommunities.org/id/metropolitan-district-council/walsall,WC61- 396,31/10/2015,Social Care & Inclusion,BELLEVUE COURT CARE HOME,13/10/2015,"1,577.52",73373-RESIDENTIAL & NURSING CARE PLACEMENTS,Third Party Payments,Private Contractor Fees,Revenue
Walsall Council,http://opendatacommunities.org/id/metropolitan-district-council/walsall,WC61- 397,31/10/2015,Social Care & Inclusion,REDACTED,12/10/2015,"2,205.00",76422-DIRECT PAYMENTS TO SOCIAL SERVICES CLIENTS,Transfer Payments,Transfer Payments,Revenue
Walsall Council,http://opendatacommunities.org/id/metropolitan-district-council/walsall,WC61- 398,31/10/2015,Economy & Environment,BENTLEY MILL WAY ALLOTMENTS ASSOCIATION,21/10/2015,250.00,66500-GRANTS TO OTHER ORGS,Third Party Payments,Grants to Other Orgs,Revenue
Walsall Council,http://opendatacommunities.org/id/metropolitan-district-council/walsall,WC61- 399,31/10/2015,Social Care & Inclusion,REDACTED,12/10/2015,424.56,76422-DIRECT PAYMENTS TO SOCIAL SERVICES CLIENTS,Transfer Payments,Transfer Payments,Revenue
Walsall Council,http://opendatacommunities.org/id/metropolitan-district-council/walsall,WC61- 400,31/10/2015,Social Care & Inclusion,REDACTED,12/10/2015,912.00,76422-DIRECT PAYMENTS TO SOCIAL SERVICES CLIENTS,Transfer Payments,Transfer Payments,Revenue
Walsall Council,http://opendatacommunities.org/id/metropolitan-district-council/walsall,WC61- 401,31/10/2015,Childrens,REDACTED,09/10/2015,"1,045.32",62515-MISCELLANEOUS SUPPLIES,Supplies & Services,Other Supplies & Services,Revenue
Walsall Council,http://opendatacommunities.org/id/metropolitan-district-council/walsall,WC61- 402,31/10/2015,Childrens,REDACTED,09/10/2015,"1,714.32",74006-HOLIDAY/CHRISTMAS ALLOWANCE-FOSTER CARERS-OTH AGENCY PROVISION,Third Party Payments,Private Contractor Fees,Revenue
Walsall Council,http://opendatacommunities.org/id/metropolitan-district-council/walsall,WC61- 403,31/10/2015,Social Care & Inclusion,REDACTED,12/10/2015,968.00,76422-DIRECT PAYMENTS TO SOCIAL SERVICES CLIENTS,Transfer Payments,Transfer Payments,Revenue
Walsall Council,http://opendatacommunities.org/id/metropolitan-district-council/walsall,WC61- 404,31/10/2015,Social Care & Inclusion,BESCOT LODGE RESIDENTIAL CARE HOME,20/10/2015,"-1,456.59",73373-RESIDENTIAL & NURSING CARE PLACEMENTS,Third Party Payments,Private Contractor Fees,Revenue
Walsall Council,http://opendatacommunities.org/id/metropolitan-district-council/walsall,WC61- 405,31/10/2015,Social Care & Inclusion,BESCOT LODGE RESIDENTIAL CARE HOME,20/10/2015,639.96,73373-RESIDENTIAL & NURSING CARE PLACEMENTS,Third Party Payments,Private Contractor Fees,Revenue
Walsall Council,http://opendatacommunities.org/id/metropolitan-district-council/walsall,WC61- 406,31/10/2015,Social Care & Inclusion,BESCOT LODGE RESIDENTIAL CARE HOME,08/10/2015,906.61,73373-RESIDENTIAL & NURSING CARE PLACEMENTS,Third Party Payments,Private Contractor Fees,Revenue
Walsall Council,http://opendatacommunities.org/id/metropolitan-district-council/walsall,WC61- 407,31/10/2015,Social Care & Inclusion,BESCOT LODGE RESIDENTIAL CARE HOME,13/10/2015,"1,653.23",73373-RESIDENTIAL & NURSING CARE PLACEMENTS,Third Party Payments,Private Contractor Fees,Revenue
Walsall Council,http://opendatacommunities.org/id/metropolitan-district-council/walsall,WC61- 408,31/10/2015,Social Care & Inclusion,BESCOT LODGE RESIDENTIAL CARE HOME,13/10/2015,"1,653.23",73373-RESIDENTIAL & NURSING CARE PLACEMENTS,Third Party Payments,Private Contractor Fees,Revenue
Walsall Council,http://opendatacommunities.org/id/metropolitan-district-council/walsall,WC61- 409,31/10/2015,Social Care & Inclusion,BESCOT LODGE RESIDENTIAL CARE HOME,13/10/2015,"1,653.23",73373-RESIDENTIAL & NURSING CARE PLACEMENTS,Third Party Payments,Private Contractor Fees,Revenue
Walsall Council,http://opendatacommunities.org/id/metropolitan-district-council/walsall,WC61- 410,31/10/2015,Social Care & Inclusion,BESCOT LODGE RESIDENTIAL CARE HOME,13/10/2015,"1,736.71",73373-RESIDENTIAL & NURSING CARE PLACEMENTS,Third Party Payments,Private Contractor Fees,Revenue
Walsall Council,http://opendatacommunities.org/id/metropolitan-district-council/walsall,WC61- 411,31/10/2015,Social Care & Inclusion,BESCOT LODGE RESIDENTIAL CARE HOME,13/10/2015,"1,736.71",73373-RESIDENTIAL & NURSING CARE PLACEMENTS,Third Party Payments,Private Contractor Fees,Revenue
Walsall Council,http://opendatacommunities.org/id/metropolitan-district-council/walsall,WC61- 412,31/10/2015,Social Care & Inclusion,BESCOT LODGE RESIDENTIAL CARE HOME,13/10/2015,"1,736.71",73373-RESIDENTIAL & NURSING CARE PLACEMENTS,Third Party Payments,Private Contractor Fees,Revenue
Walsall Council,http://opendatacommunities.org/id/metropolitan-district-council/walsall,WC61- 413,31/10/2015,Social Care & Inclusion,BESCOT LODGE RESIDENTIAL CARE HOME,13/10/2015,"1,755.35",73373-RESIDENTIAL & NURSING CARE PLACEMENTS,Third Party Payments,Private Contractor Fees,Revenue
Walsall Council,http://opendatacommunities.org/id/metropolitan-district-council/walsall,WC61- 414,31/10/2015,Social Care & Inclusion,BESCOT LODGE RESIDENTIAL CARE HOME,08/10/2015,"3,626.44",73373-RESIDENTIAL & NURSING CARE PLACEMENTS,Third Party Payments,Private Contractor Fees,Revenue
Walsall Council,http://opendatacommunities.org/id/metropolitan-district-council/walsall,WC61- 415,31/10/2015,Social Care & Inclusion,BESCOT LODGE RESIDENTIAL CARE HOME,08/10/2015,"3,641.49",73373-RESIDENTIAL & NURSING CARE PLACEMENTS,Third Party Payments,Private Contractor Fees,Revenue
Walsall Council,http://opendatacommunities.org/id/metropolitan-district-council/walsall,WC61- 416,31/10/2015,Economy & Environment,BESCOT STADIUM SUNDAY MARKET LTD,23/10/2015,"3,500.00",73025-PROFESSIONAL SERVICES-PRIV CONTRACTOR & OTHER AGENCIES,Third Party Payments,Private Contractor Fees,Revenue
Walsall Council,http://opendatacommunities.org/id/metropolitan-district-council/walsall,WC61- 417,31/10/2015,Social Care & Inclusion,BESWICK HOUSE SUPPORTED ACCOMMODATION LTD,23/10/2015,"15,045.79",73365-BLOCK GROSS-SUPPORTING PEOPLE,Third Party Payments,Private Contractor Fees,Revenue
Walsall Council,http://opendatacommunities.org/id/metropolitan-district-council/walsall,WC61- 418,31/10/2015,Social Care & Inclusion,BETHPHAGE.,28/10/2015,650.00,73374-SUPPORTED & OTHER ACCOMMODATION,Third Party Payments,Private Contractor Fees,Revenue
Walsall Council,http://opendatacommunities.org/id/metropolitan-district-council/walsall,WC61- 419,31/10/2015,Social Care & Inclusion,BETHPHAGE.,14/10/2015,812.50,73374-SUPPORTED & OTHER ACCOMMODATION,Third Party Payments,Private Contractor Fees,Revenue
Walsall Council,http://opendatacommunities.org/id/metropolitan-district-council/walsall,WC61- 420,31/10/2015,Social Care & Inclusion,BETHPHAGE.,28/10/2015,"1,403.96",73374-SUPPORTED & OTHER ACCOMMODATION,Third Party Payments,Private Contractor Fees,Revenue
Walsall Council,http://opendatacommunities.org/id/metropolitan-district-council/walsall,WC61- 421,31/10/2015,Social Care & Inclusion,BETHPHAGE.,28/10/2015,"1,439.24",73374-SUPPORTED & OTHER ACCOMMODATION,Third Party Payments,Private Contractor Fees,Revenue
Walsall Council,http://opendatacommunities.org/id/metropolitan-district-council/walsall,WC61- 422,31/10/2015,Social Care & Inclusion,BETHPHAGE.,28/10/2015,"1,768.00",73374-SUPPORTED & OTHER ACCOMMODATION,Third Party Payments,Private Contractor Fees,Revenue
Walsall Council,http://opendatacommunities.org/id/metropolitan-district-council/walsall,WC61- 423,31/10/2015,Social Care & Inclusion,BETHPHAGE.,14/10/2015,"1,799.05",73374-SUPPORTED & OTHER ACCOMMODATION,Third Party Payments,Private Contractor Fees,Revenue
Walsall Council,http://opendatacommunities.org/id/metropolitan-district-council/walsall,WC61- 424,31/10/2015,Social Care & Inclusion,BETHPHAGE.,14/10/2015,"1,806.10",73374-SUPPORTED & OTHER ACCOMMODATION,Third Party Payments,Private Contractor Fees,Revenue
Walsall Council,http://opendatacommunities.org/id/metropolitan-district-council/walsall,WC61- 425,31/10/2015,Social Care & Inclusion,BETHPHAGE.,28/10/2015,"3,831.92",73374-SUPPORTED & OTHER ACCOMMODATION,Third Party Payments,Private Contractor Fees,Revenue
Walsall Council,http://opendatacommunities.org/id/metropolitan-district-council/walsall,WC61- 426,31/10/2015,Social Care & Inclusion,REDACTED,12/10/2015,949.52,76422-DIRECT PAYMENTS TO SOCIAL SERVICES CLIENTS,Transfer Payments,Transfer Payments,Revenue
Walsall Council,http://opendatacommunities.org/id/metropolitan-district-council/walsall,WC61- 427,31/10/2015,Social Care & Inclusion,REDACTED,12/10/2015,"1,984.70",76422-DIRECT PAYMENTS TO SOCIAL SERVICES CLIENTS,Transfer Payments,Transfer Payments,Revenue
Walsall Council,http://opendatacommunities.org/id/metropolitan-district-council/walsall,WC61- 428,31/10/2015,Change and Governance,BFA SAFETY TRAINING,23/10/2015,295.00,30030-EXTERNAL TRAINING,Employees,Training,Revenue
Walsall Council,http://opendatacommunities.org/id/metropolitan-district-council/walsall,WC61- 429,31/10/2015,Change and Governance,BFA SAFETY TRAINING,23/10/2015,495.00,30030-EXTERNAL TRAINING,Employees,Training,Revenue
Walsall Council,http://opendatacommunities.org/id/metropolitan-district-council/walsall,WC61- 430,31/10/2015,Economy & Environment,BIFFA WASTE SERVICES LTD,15/10/2015,595.09,73005-LANDFILL PTYS-PRIV CONTRACTOR FEES,Third Party Payments,Private Contractor Fees,Revenue
Walsall Council,http://opendatacommunities.org/id/metropolitan-district-council/walsall,WC61- 431,31/10/2015,Economy & Environment,BIFFA WASTE SERVICES LTD,14/10/2015,713.36,73005-LANDFILL PTYS-PRIV CONTRACTOR FEES,Third Party Payments,Private Contractor Fees,Revenue
Walsall Council,http://opendatacommunities.org/id/metropolitan-district-council/walsall,WC61- 432,31/10/2015,Economy & Environment,BIFFA WASTE SERVICES LTD,15/10/2015,"1,358.46",73005-LANDFILL PTYS-PRIV CONTRACTOR FEES,Third Party Payments,Private Contractor Fees,Revenue
Walsall Council,http://opendatacommunities.org/id/metropolitan-district-council/walsall,WC61- 433,31/10/2015,Economy & Environment,BIFFA WASTE SERVICES LTD,15/10/2015,"3,715.34",73039-LANDFILL TAX-PRIV CONTRACTOR FEES,Third Party Payments,Private Contractor Fees,Revenue
Walsall Council,http://opendatacommunities.org/id/metropolitan-district-council/walsall,WC61- 434,31/10/2015,Economy & Environment,BIFFA WASTE SERVICES LTD,14/10/2015,"4,453.79",73039-LANDFILL TAX-PRIV CONTRACTOR FEES,Third Party Payments,Private Contractor Fees,Revenue
Walsall Council,http://opendatacommunities.org/id/metropolitan-district-council/walsall,WC61- 435,31/10/2015,Economy & Environment,BIFFA WASTE SERVICES LTD,15/10/2015,"8,481.36",73039-LANDFILL TAX-PRIV CONTRACTOR FEES,Third Party Payments,Private Contractor Fees,Revenue
Walsall Council,http://opendatacommunities.org/id/metropolitan-district-council/walsall,WC61- 436,31/10/2015,Childrens,REDACTED,12/10/2015,487.72,76422-DIRECT PAYMENTS TO SOCIAL SERVICES CLIENTS,Transfer Payments,Transfer Payments,Revenue
Walsall Council,http://opendatacommunities.org/id/metropolitan-district-council/walsall,WC61- 437,31/10/2015,Childrens,REDACTED,12/10/2015,537.20,76422-DIRECT PAYMENTS TO SOCIAL SERVICES CLIENTS,Transfer Payments,Transfer Payments,Revenue
Walsall Council,http://opendatacommunities.org/id/metropolitan-district-council/walsall,WC61- 438,31/10/2015,Childrens,BIRCHILLS C OF E COMMUNITY ACADEMY,19/10/2015,"8,499.84",66505-OTHER-GRANTS TO OTHER ORGS,Third Party Payments,Grants to Other Orgs,Revenue
Walsall Council,http://opendatacommunities.org/id/metropolitan-district-council/walsall,WC61- 439,31/10/2015,Change and Governance,BIRMINGHAM CITY COUNCIL,14/10/2015,"1,000.00",64001-COURSE/CONFERENCE EXPENSES,Supplies & Services,Other Supplies & Services,Revenue
Walsall Council,http://opendatacommunities.org/id/metropolitan-district-council/walsall,WC61- 440,31/10/2015,Change and Governance,BIRMINGHAM CITY COUNCIL,28/10/2015,"16,639.00",64500-PUBLICATIONS/ORGANISATIONS-SUBSCRIPTIONS,Supplies & Services,Subscriptions,Revenue
Walsall Council,http://opendatacommunities.org/id/metropolitan-district-council/walsall,WC61- 441,31/10/2015,Economy & Environment,BLACK COUNTRY CONSORTIUM LIMITED,23/10/2015,"2,856.47",63000-PROFESSIONAL FEES AND SERVICES,Supplies & Services,Services,Revenue
Walsall Council,http://opendatacommunities.org/id/metropolitan-district-council/walsall,WC61- 442,31/10/2015,Economy & Environment,BLACK COUNTRY CONSORTIUM LIMITED,29/10/2015,"56,872.92",66500-GRANTS TO OTHER ORGS,Third Party Payments,Grants to Other Orgs,Revenue
Walsall Council,http://opendatacommunities.org/id/metropolitan-district-council/walsall,WC61- 443,31/10/2015,Economy & Environment,BLACK COUNTRY CONSORTIUM LIMITED,22/10/2015,"74,514.37",66500-GRANTS TO OTHER ORGS,Third Party Payments,Grants to Other Orgs,Revenue
Walsall Council,http://opendatacommunities.org/id/metropolitan-district-council/walsall,WC61- 444,31/10/2015,Social Care & Inclusion,BLACK COUNTRY PARTNERSHIP NHS,19/10/2015,"5,400.00",71007-CONTRIBUTION TO PCT,Third Party Payments,Joint Arrangements,Revenue
Walsall Council,http://opendatacommunities.org/id/metropolitan-district-council/walsall,WC61- 445,31/10/2015,Social Care & Inclusion,BLACK COUNTRY PARTNERSHIP NHS,19/10/2015,"5,400.00",71007-CONTRIBUTION TO PCT,Third Party Payments,Joint Arrangements,Revenue
Walsall Council,http://opendatacommunities.org/id/metropolitan-district-council/walsall,WC61- 446,31/10/2015,Social Care & Inclusion,BLACK COUNTRY PARTNERSHIP NHS,19/10/2015,"7,200.00",71007-CONTRIBUTION TO PCT,Third Party Payments,Joint Arrangements,Revenue
Walsall Council,http://opendatacommunities.org/id/metropolitan-district-council/walsall,WC61- 447,31/10/2015,Social Care & Inclusion,BLACK COUNTRY PARTNERSHIP NHS,19/10/2015,"10,800.00",71007-CONTRIBUTION TO PCT,Third Party Payments,Joint Arrangements,Revenue
Walsall Council,http://opendatacommunities.org/id/metropolitan-district-council/walsall,WC61- 448,31/10/2015,Social Care & Inclusion,BLACK COUNTRY PARTNERSHIP NHS,19/10/2015,"15,810.00",71007-CONTRIBUTION TO PCT,Third Party Payments,Joint Arrangements,Revenue
Walsall Council,http://opendatacommunities.org/id/metropolitan-district-council/walsall,WC61- 449,31/10/2015,Social Care & Inclusion,BLACK COUNTRY PARTNERSHIP NHS,19/10/2015,"18,000.00",71007-CONTRIBUTION TO PCT,Third Party Payments,Joint Arrangements,Revenue
Walsall Council,http://opendatacommunities.org/id/metropolitan-district-council/walsall,WC61- 450,31/10/2015,Social Care & Inclusion,BLACK COUNTRY PARTNERSHIP NHS,19/10/2015,"18,600.00",71007-CONTRIBUTION TO PCT,Third Party Payments,Joint Arrangements,Revenue
Walsall Council,http://opendatacommunities.org/id/metropolitan-district-council/walsall,WC61- 451,31/10/2015,Social Care & Inclusion,BLACK COUNTRY PARTNERSHIP NHS,26/10/2015,"31,620.00",71007-CONTRIBUTION TO PCT,Third Party Payments,Joint Arrangements,Revenue
Walsall Council,http://opendatacommunities.org/id/metropolitan-district-council/walsall,WC61- 452,31/10/2015,Economy & Environment,BLACK COUNTRY TOURING,23/10/2015,250.00,63000-PROFESSIONAL FEES AND SERVICES,Supplies & Services,Services,Revenue
Walsall Council,http://opendatacommunities.org/id/metropolitan-district-council/walsall,WC61- 453,31/10/2015,Childrens,BLAKENALL HEATH JMI SCHOOL,27/10/2015,"55,920.00",77302-ISB-SCHOOL STANDARDS GRANT,Transfer Payments,Transfer Payments,Revenue
Walsall Council,http://opendatacommunities.org/id/metropolitan-district-council/walsall,WC61- 454,31/10/2015,Childrens,BLAKENALL HEATH JMI SCHOOL,19/10/2015,"88,933.93",77300-ISB-FORMULA ALLOCATION,Transfer Payments,Transfer Payments,Revenue
Walsall Council,http://opendatacommunities.org/id/metropolitan-district-council/walsall,WC61- 455,31/10/2015,Childrens,BLOXWICH ACADEMY,12/10/2015,579.16,42005-OTHER-ENERGY COSTS,Premises,Utilities,Revenue
Walsall Council,http://opendatacommunities.org/id/metropolitan-district-council/walsall,WC61- 456,31/10/2015,Social Care & Inclusion,BLOXWICH COMMUNITY PARTNERSHIP.,19/10/2015,"4,400.00",43000-RENTS,Premises,Rent,Revenue
Walsall Council,http://opendatacommunities.org/id/metropolitan-district-council/walsall,WC61- 457,31/10/2015,Childrens,BLOXWICH COMMUNITY PARTNERSHIP.,09/10/2015,"33,936.75",66500-GRANTS TO OTHER ORGS,Third Party Payments,Grants to Other Orgs,Revenue
Walsall Council,http://opendatacommunities.org/id/metropolitan-district-council/walsall,WC61- 458,31/10/2015,Economy & Environment,BME UNITED LTD,23/10/2015,570.00,63000-PROFESSIONAL FEES AND SERVICES,Supplies & Services,Services,Revenue
Walsall Council,http://opendatacommunities.org/id/metropolitan-district-council/walsall,WC61- 459,31/10/2015,Economy & Environment,BME UNITED LTD,23/10/2015,"3,040.00",63000-PROFESSIONAL FEES AND SERVICES,Supplies & Services,Services,Revenue
Walsall Council,http://opendatacommunities.org/id/metropolitan-district-council/walsall,WC61- 460,31/10/2015,Childrens,BOGUSIA TQM,09/10/2015,450.00,63000-PROFESSIONAL FEES AND SERVICES,Supplies & Services,Services,Revenue
Walsall Council,http://opendatacommunities.org/id/metropolitan-district-council/walsall,WC61- 461,31/10/2015,Social Care & Inclusion,BOLDMERE COURT CARE HOME,13/10/2015,"1,691.27",73373-RESIDENTIAL & NURSING CARE PLACEMENTS,Third Party Payments,Private Contractor Fees,Revenue
Walsall Council,http://opendatacommunities.org/id/metropolitan-district-council/walsall,WC61- 462,31/10/2015,Social Care & Inclusion,BOLDMERE COURT CARE HOME,13/10/2015,"1,691.27",73373-RESIDENTIAL & NURSING CARE PLACEMENTS,Third Party Payments,Private Contractor Fees,Revenue
Walsall Council,http://opendatacommunities.org/id/metropolitan-district-council/walsall,WC61- 463,31/10/2015,Economy & Environment,BOOKS ASIA,22/10/2015,253.98,60501-LIBRARY BOOKS,Supplies & Services,"Equip,Furniture & Materials",Revenue
Walsall Council,http://opendatacommunities.org/id/metropolitan-district-council/walsall,WC61- 464,31/10/2015,Economy & Environment,BOOKS ASIA,22/10/2015,291.83,60501-LIBRARY BOOKS,Supplies & Services,"Equip,Furniture & Materials",Revenue
Walsall Council,http://opendatacommunities.org/id/metropolitan-district-council/walsall,WC61- 465,31/10/2015,Childrens,BOULTON TRAVEL LIMITED,01/10/2015,"1,651.00",52000-WITH DRIVER-HIRE OF VEHICLES,Transport,Hire,Revenue
Walsall Council,http://opendatacommunities.org/id/metropolitan-district-council/walsall,WC61- 466,31/10/2015,Childrens,BOULTON TRAVEL LIMITED,28/10/2015,"2,260.00",52000-WITH DRIVER-HIRE OF VEHICLES,Transport,Hire,Revenue
Walsall Council,http://opendatacommunities.org/id/metropolitan-district-council/walsall,WC61- 467,31/10/2015,Social Care & Inclusion,BOWDEN DERRA PARK,20/10/2015,"10,502.76",73373-RESIDENTIAL & NURSING CARE PLACEMENTS,Third Party Payments,Private Contractor Fees,Revenue
Walsall Council,http://opendatacommunities.org/id/metropolitan-district-council/walsall,WC61- 468,31/10/2015,Social Care & Inclusion,BRADLEY ENVIRONMENTAL,19/10/2015,597.00,60500-GENERAL MATERIALS,Supplies & Services,"Equip,Furniture & Materials",Revenue
Walsall Council,http://opendatacommunities.org/id/metropolitan-district-council/walsall,WC61- 469,31/10/2015,Childrens,BRELMAYNE LTD,23/10/2015,220.00,60008-MAINTENANCE-FURNITURE & EQUIPMENT,Supplies & Services,"Equip,Furniture & Materials",Revenue
Walsall Council,http://opendatacommunities.org/id/metropolitan-district-council/walsall,WC61- 470,31/10/2015,Change and Governance,BRELMAYNE LTD,09/10/2015,422.89,"40000-REPAIRS,ALTERATIONS & MAINTENANCE-PREM",Premises,Premises-Repairs & Maintenance,Revenue
Walsall Council,http://opendatacommunities.org/id/metropolitan-district-council/walsall,WC61- 471,31/10/2015,Change and Governance,BRELMAYNE LTD,12/10/2015,"1,932.00","40000-REPAIRS,ALTERATIONS & MAINTENANCE-PREM",Premises,Premises-Repairs & Maintenance,Revenue
Walsall Council,http://opendatacommunities.org/id/metropolitan-district-council/walsall,WC61- 472,31/10/2015,Social Care & Inclusion,REDACTED,12/10/2015,440.00,76422-DIRECT PAYMENTS TO SOCIAL SERVICES CLIENTS,Transfer Payments,Transfer Payments,Revenue
Walsall Council,http://opendatacommunities.org/id/metropolitan-district-council/walsall,WC61- 473,31/10/2015,Childrens,REDACTED,09/10/2015,"1,301.84",74006-HOLIDAY/CHRISTMAS ALLOWANCE-FOSTER CARERS-OTH AGENCY PROVISION,Third Party Payments,Private Contractor Fees,Revenue
Walsall Council,http://opendatacommunities.org/id/metropolitan-district-council/walsall,WC61- 474,31/10/2015,Childrens,REDACTED,09/10/2015,"1,557.52",62515-MISCELLANEOUS SUPPLIES,Supplies & Services,Other Supplies & Services,Revenue
Walsall Council,http://opendatacommunities.org/id/metropolitan-district-council/walsall,WC61- 475,31/10/2015,Social Care & Inclusion,REDACTED,12/10/2015,544.00,76422-DIRECT PAYMENTS TO SOCIAL SERVICES CLIENTS,Transfer Payments,Transfer Payments,Revenue
Walsall Council,http://opendatacommunities.org/id/metropolitan-district-council/walsall,WC61- 476,31/10/2015,Social Care & Inclusion,REDACTED,09/10/2015,"2,935.24",73374-SUPPORTED & OTHER ACCOMMODATION,Third Party Payments,Private Contractor Fees,Revenue
Walsall Council,http://opendatacommunities.org/id/metropolitan-district-council/walsall,WC61- 477,31/10/2015,Social Care & Inclusion,REDACTED,28/10/2015,"2,935.24",73374-SUPPORTED & OTHER ACCOMMODATION,Third Party Payments,Private Contractor Fees,Revenue
Walsall Council,http://opendatacommunities.org/id/metropolitan-district-council/walsall,WC61- 478,31/10/2015,Social Care & Inclusion,REDACTED,12/10/2015,493.20,76422-DIRECT PAYMENTS TO SOCIAL SERVICES CLIENTS,Transfer Payments,Transfer Payments,Revenue
Walsall Council,http://opendatacommunities.org/id/metropolitan-district-council/walsall,WC61- 479,31/10/2015,Social Care & Inclusion,REDACTED,12/10/2015,"1,294.80",76422-DIRECT PAYMENTS TO SOCIAL SERVICES CLIENTS,Transfer Payments,Transfer Payments,Revenue
Walsall Council,http://opendatacommunities.org/id/metropolitan-district-council/walsall,WC61- 480,31/10/2015,Social Care & Inclusion,REDACTED,12/10/2015,697.00,76422-DIRECT PAYMENTS TO SOCIAL SERVICES CLIENTS,Transfer Payments,Transfer Payments,Revenue
Walsall Council,http://opendatacommunities.org/id/metropolitan-district-council/walsall,WC61- 481,31/10/2015,Economy & Environment,BRIDGEALL LIBRARIES LTD,15/10/2015,"10,558.00",64500-PUBLICATIONS/ORGANISATIONS-SUBSCRIPTIONS,Supplies & Services,Subscriptions,Revenue
Walsall Council,http://opendatacommunities.org/id/metropolitan-district-council/walsall,WC61- 482,31/10/2015,Social Care & Inclusion,BRIDGEWOOD HEALTH CARE LTD,13/10/2015,"5,513.72",73373-RESIDENTIAL & NURSING CARE PLACEMENTS,Third Party Payments,Private Contractor Fees,Revenue
Walsall Council,http://opendatacommunities.org/id/metropolitan-district-council/walsall,WC61- 483,31/10/2015,Change and Governance,BRISTOW & SUTOR,14/10/2015,435.56,63102-CONSULTANTS FEES - CORPORATE,Supplies & Services,Services,Revenue
Walsall Council,http://opendatacommunities.org/id/metropolitan-district-council/walsall,WC61- 484,31/10/2015,Change and Governance,BRITISH GAS BUSINESS,12/10/2015,226.63,42001-GAS METERED-ENERGY COSTS,Premises,Utilities,Revenue
Walsall Council,http://opendatacommunities.org/id/metropolitan-district-council/walsall,WC61- 485,31/10/2015,Childrens,BRITISH GAS BUSINESS,09/10/2015,337.05,42001-GAS METERED-ENERGY COSTS,Premises,Utilities,Revenue
Walsall Council,http://opendatacommunities.org/id/metropolitan-district-council/walsall,WC61- 486,31/10/2015,Economy & Environment,BRITISH TELECOM 001,29/10/2015,"10,949.30",63601-COSTS (NOT INTERNAL RECHARGES)-TELEPHONES,Supplies & Services,Communications & Computing,Revenue
Walsall Council,http://opendatacommunities.org/id/metropolitan-district-council/walsall,WC61- 487,31/10/2015,Economy & Environment,BRITISH TELECOMMUNICATIONS LTD,14/10/2015,"2,708.40",01009-SITE WORKS - OTHER CONTRACTORS,Capital,Capital,Capital
Walsall Council,http://opendatacommunities.org/id/metropolitan-district-council/walsall,WC61- 488,31/10/2015,Economy & Environment,BROADWAY PHARMACY,28/10/2015,114.50,63000-PROFESSIONAL FEES AND SERVICES,Supplies & Services,Services,Revenue
Walsall Council,http://opendatacommunities.org/id/metropolitan-district-council/walsall,WC61- 489,31/10/2015,Economy & Environment,BROADWAY PHARMACY,28/10/2015,114.50,63000-PROFESSIONAL FEES AND SERVICES,Supplies & Services,Services,Revenue
Walsall Council,http://opendatacommunities.org/id/metropolitan-district-council/walsall,WC61- 490,31/10/2015,Economy & Environment,BROADWAY PHARMACY,28/10/2015,236.53,71007-CONTRIBUTION TO PCT,Third Party Payments,Joint Arrangements,Revenue
Walsall Council,http://opendatacommunities.org/id/metropolitan-district-council/walsall,WC61- 491,31/10/2015,Economy & Environment,BROADWAY PHARMACY,28/10/2015,473.83,71007-CONTRIBUTION TO PCT,Third Party Payments,Joint Arrangements,Revenue
Walsall Council,http://opendatacommunities.org/id/metropolitan-district-council/walsall,WC61- 492,31/10/2015,Childrens,BROADWAY TRAVEL CONNECTIONS,28/10/2015,904.00,52000-WITH DRIVER-HIRE OF VEHICLES,Transport,Hire,Revenue
Walsall Council,http://opendatacommunities.org/id/metropolitan-district-council/walsall,WC61- 493,31/10/2015,Childrens,BROADWAY TRAVEL CONNECTIONS,28/10/2015,"1,017.00",52000-WITH DRIVER-HIRE OF VEHICLES,Transport,Hire,Revenue
Walsall Council,http://opendatacommunities.org/id/metropolitan-district-council/walsall,WC61- 494,31/10/2015,Childrens,BROADWAY TRAVEL CONNECTIONS,28/10/2015,"1,695.00",52000-WITH DRIVER-HIRE OF VEHICLES,Transport,Hire,Revenue
Walsall Council,http://opendatacommunities.org/id/metropolitan-district-council/walsall,WC61- 495,31/10/2015,Economy & Environment,BROOK YOUNG PEOPLE,01/10/2015,"5,933.50",63000-PROFESSIONAL FEES AND SERVICES,Supplies & Services,Services,Revenue
Walsall Council,http://opendatacommunities.org/id/metropolitan-district-council/walsall,WC61- 496,31/10/2015,Change and Governance,BROWNHILLS ASPHALT TARMACADAM,28/10/2015,420.00,73025-PROFESSIONAL SERVICES-PRIV CONTRACTOR & OTHER AGENCIES,Third Party Payments,Private Contractor Fees,Revenue
Walsall Council,http://opendatacommunities.org/id/metropolitan-district-council/walsall,WC61- 497,31/10/2015,Economy & Environment,BROWNHILLS ASPHALT TARMACADAM,21/10/2015,520.00,60500-GENERAL MATERIALS,Supplies & Services,"Equip,Furniture & Materials",Revenue
Walsall Council,http://opendatacommunities.org/id/metropolitan-district-council/walsall,WC61- 498,31/10/2015,Economy & Environment,BROWNHILLS ASPHALT TARMACADAM,08/10/2015,650.00,60006-NEW-FURNITURE & EQUIPMENT,Supplies & Services,"Equip,Furniture & Materials",Revenue
Walsall Council,http://opendatacommunities.org/id/metropolitan-district-council/walsall,WC61- 499,31/10/2015,Economy & Environment,BROWNHILLS ASPHALT TARMACADAM,26/10/2015,"1,185.00",73025-PROFESSIONAL SERVICES-PRIV CONTRACTOR & OTHER AGENCIES,Third Party Payments,Private Contractor Fees,Revenue
Walsall Council,http://opendatacommunities.org/id/metropolitan-district-council/walsall,WC61- 500,31/10/2015,Change and Governance,BROWNHILLS ASPHALT TARMACADAM,16/10/2015,"1,750.00",73025-PROFESSIONAL SERVICES-PRIV CONTRACTOR & OTHER AGENCIES,Third Party Payments,Private Contractor Fees,Revenue
Walsall Council,http://opendatacommunities.org/id/metropolitan-district-council/walsall,WC61- 501,31/10/2015,Economy & Environment,BROWNHILLS ASPHALT TARMACADAM,28/10/2015,"2,400.00",60500-GENERAL MATERIALS,Supplies & Services,"Equip,Furniture & Materials",Revenue
Walsall Council,http://opendatacommunities.org/id/metropolitan-district-council/walsall,WC61- 502,31/10/2015,Economy & Environment,BROWNHILLS ASPHALT TARMACADAM,26/10/2015,"2,470.00",60006-NEW-FURNITURE & EQUIPMENT,Supplies & Services,"Equip,Furniture & Materials",Revenue
Walsall Council,http://opendatacommunities.org/id/metropolitan-district-council/walsall,WC61- 503,31/10/2015,Economy & Environment,BROWNHILLS ASPHALT TARMACADAM,21/10/2015,"2,490.00",60500-GENERAL MATERIALS,Supplies & Services,"Equip,Furniture & Materials",Revenue
Walsall Council,http://opendatacommunities.org/id/metropolitan-district-council/walsall,WC61- 504,31/10/2015,Economy & Environment,BROWNHILLS ASPHALT TARMACADAM,27/10/2015,"2,774.00",73025-PROFESSIONAL SERVICES-PRIV CONTRACTOR & OTHER AGENCIES,Third Party Payments,Private Contractor Fees,Revenue
Walsall Council,http://opendatacommunities.org/id/metropolitan-district-council/walsall,WC61- 505,31/10/2015,Change and Governance,BROWNHILLS ASPHALT TARMACADAM,19/10/2015,"4,598.00","40000-REPAIRS,ALTERATIONS & MAINTENANCE-PREM",Premises,Premises-Repairs & Maintenance,Revenue
Walsall Council,http://opendatacommunities.org/id/metropolitan-district-council/walsall,WC61- 506,31/10/2015,Social Care & Inclusion,REDACTED,12/10/2015,"1,445.00",76422-DIRECT PAYMENTS TO SOCIAL SERVICES CLIENTS,Transfer Payments,Transfer Payments,Revenue
Walsall Council,http://opendatacommunities.org/id/metropolitan-district-council/walsall,WC61- 507,31/10/2015,Change and Governance,REDACTED,19/10/2015,300.00,"40000-REPAIRS,ALTERATIONS & MAINTENANCE-PREM",Premises,Premises-Repairs & Maintenance,Revenue
Walsall Council,http://opendatacommunities.org/id/metropolitan-district-council/walsall,WC61- 508,31/10/2015,Economy & Environment,REDACTED,12/10/2015,600.00,"62521-INTERPRETATION,TRANSLATION & HUMAN AIDS TO TRANSCRIPTION",Supplies & Services,Services,Revenue
Walsall Council,http://opendatacommunities.org/id/metropolitan-district-council/walsall,WC61- 509,31/10/2015,Change and Governance,BT PLC,09/10/2015,"-4,629.93",63601-COSTS (NOT INTERNAL RECHARGES)-TELEPHONES,Supplies & Services,Communications & Computing,Revenue
Walsall Council,http://opendatacommunities.org/id/metropolitan-district-council/walsall,WC61- 510,31/10/2015,Change and Governance,BT PLC,12/10/2015,970.00,63603-COST OF CALLS-TELEPHONES,Supplies & Services,Communications & Computing,Revenue
Walsall Council,http://opendatacommunities.org/id/metropolitan-district-council/walsall,WC61- 511,31/10/2015,Change and Governance,BT PLC,19/10/2015,"1,543.01",63601-COSTS (NOT INTERNAL RECHARGES)-TELEPHONES,Supplies & Services,Communications & Computing,Revenue
Walsall Council,http://opendatacommunities.org/id/metropolitan-district-council/walsall,WC61- 512,31/10/2015,Change and Governance,BT PLC,16/10/2015,"12,089.77",63601-COSTS (NOT INTERNAL RECHARGES)-TELEPHONES,Supplies & Services,Communications & Computing,Revenue
Walsall Council,http://opendatacommunities.org/id/metropolitan-district-council/walsall,WC61- 513,31/10/2015,Social Care & Inclusion,BUPA CARE HOMES (CFHCARE) LTD,13/10/2015,0.01,73373-RESIDENTIAL & NURSING CARE PLACEMENTS,Third Party Payments,Private Contractor Fees,Revenue
Walsall Council,http://opendatacommunities.org/id/metropolitan-district-council/walsall,WC61- 514,31/10/2015,Social Care & Inclusion,BUPA CARE HOMES (CFHCARE) LTD,13/10/2015,"1,490.80",73373-RESIDENTIAL & NURSING CARE PLACEMENTS,Third Party Payments,Private Contractor Fees,Revenue
Walsall Council,http://opendatacommunities.org/id/metropolitan-district-council/walsall,WC61- 515,31/10/2015,Social Care & Inclusion,BUPA CARE HOMES (CFHCARE) LTD,13/10/2015,"1,527.60",73373-RESIDENTIAL & NURSING CARE PLACEMENTS,Third Party Payments,Private Contractor Fees,Revenue
Walsall Council,http://opendatacommunities.org/id/metropolitan-district-council/walsall,WC61- 516,31/10/2015,Social Care & Inclusion,BUPA CARE HOMES (CFHCARE) LTD,13/10/2015,"1,533.16",73373-RESIDENTIAL & NURSING CARE PLACEMENTS,Third Party Payments,Private Contractor Fees,Revenue
Walsall Council,http://opendatacommunities.org/id/metropolitan-district-council/walsall,WC61- 517,31/10/2015,Social Care & Inclusion,BUPA CARE HOMES (CFHCARE) LTD,13/10/2015,"1,755.68",73373-RESIDENTIAL & NURSING CARE PLACEMENTS,Third Party Payments,Private Contractor Fees,Revenue
Walsall Council,http://opendatacommunities.org/id/metropolitan-district-council/walsall,WC61- 518,31/10/2015,Social Care & Inclusion,BUPA CARE HOMES (CFHCARE) LTD,13/10/2015,"3,129.80",73373-RESIDENTIAL & NURSING CARE PLACEMENTS,Third Party Payments,Private Contractor Fees,Revenue
Walsall Council,http://opendatacommunities.org/id/metropolitan-district-council/walsall,WC61- 519,31/10/2015,Economy & Environment,BURROWS GM LTD,19/10/2015,349.45,41001-GROUNDS MAINTENANCE,Premises,Premises-Repairs & Maintenance,Revenue
Walsall Council,http://opendatacommunities.org/id/metropolitan-district-council/walsall,WC61- 520,31/10/2015,Economy & Environment,BURTON ADDICTION CENTRE,12/10/2015,"1,360.00",63000-PROFESSIONAL FEES AND SERVICES,Supplies & Services,Services,Revenue
Walsall Council,http://opendatacommunities.org/id/metropolitan-district-council/walsall,WC61- 521,31/10/2015,Social Care & Inclusion,BUSH HOME LTD,27/10/2015,"1,490.96",73373-RESIDENTIAL & NURSING CARE PLACEMENTS,Third Party Payments,Private Contractor Fees,Revenue
Walsall Council,http://opendatacommunities.org/id/metropolitan-district-council/walsall,WC61- 522,31/10/2015,Social Care & Inclusion,BUSH HOME LTD,27/10/2015,"1,493.24",73373-RESIDENTIAL & NURSING CARE PLACEMENTS,Third Party Payments,Private Contractor Fees,Revenue
Walsall Council,http://opendatacommunities.org/id/metropolitan-district-council/walsall,WC61- 523,31/10/2015,Social Care & Inclusion,BUSH HOME LTD,27/10/2015,"1,493.24",73373-RESIDENTIAL & NURSING CARE PLACEMENTS,Third Party Payments,Private Contractor Fees,Revenue
Walsall Council,http://opendatacommunities.org/id/metropolitan-district-council/walsall,WC61- 524,31/10/2015,Social Care & Inclusion,BUSH HOME LTD,27/10/2015,"1,493.24",73373-RESIDENTIAL & NURSING CARE PLACEMENTS,Third Party Payments,Private Contractor Fees,Revenue
Walsall Council,http://opendatacommunities.org/id/metropolitan-district-council/walsall,WC61- 525,31/10/2015,Social Care & Inclusion,BUSH HOME LTD,27/10/2015,"1,493.24",73373-RESIDENTIAL & NURSING CARE PLACEMENTS,Third Party Payments,Private Contractor Fees,Revenue
Walsall Council,http://opendatacommunities.org/id/metropolitan-district-council/walsall,WC61- 526,31/10/2015,Social Care & Inclusion,BUSH HOME LTD,27/10/2015,"1,568.64",73373-RESIDENTIAL & NURSING CARE PLACEMENTS,Third Party Payments,Private Contractor Fees,Revenue
Walsall Council,http://opendatacommunities.org/id/metropolitan-district-council/walsall,WC61- 527,31/10/2015,Social Care & Inclusion,BUSH HOME LTD,27/10/2015,"1,568.64",73373-RESIDENTIAL & NURSING CARE PLACEMENTS,Third Party Payments,Private Contractor Fees,Revenue
Walsall Council,http://opendatacommunities.org/id/metropolitan-district-council/walsall,WC61- 528,31/10/2015,Social Care & Inclusion,BUSH HOME LTD,27/10/2015,"1,568.64",73373-RESIDENTIAL & NURSING CARE PLACEMENTS,Third Party Payments,Private Contractor Fees,Revenue
Walsall Council,http://opendatacommunities.org/id/metropolitan-district-council/walsall,WC61- 529,31/10/2015,Social Care & Inclusion,BUSH HOME LTD,27/10/2015,"1,568.64",73373-RESIDENTIAL & NURSING CARE PLACEMENTS,Third Party Payments,Private Contractor Fees,Revenue
Walsall Council,http://opendatacommunities.org/id/metropolitan-district-council/walsall,WC61- 530,31/10/2015,Social Care & Inclusion,BUSH HOME LTD,27/10/2015,"1,568.64",73373-RESIDENTIAL & NURSING CARE PLACEMENTS,Third Party Payments,Private Contractor Fees,Revenue
Walsall Council,http://opendatacommunities.org/id/metropolitan-district-council/walsall,WC61- 531,31/10/2015,Social Care & Inclusion,BUSH HOME LTD,27/10/2015,"1,568.64",73373-RESIDENTIAL & NURSING CARE PLACEMENTS,Third Party Payments,Private Contractor Fees,Revenue
Walsall Council,http://opendatacommunities.org/id/metropolitan-district-council/walsall,WC61- 532,31/10/2015,Social Care & Inclusion,BUSH HOME LTD,27/10/2015,"1,568.64",73373-RESIDENTIAL & NURSING CARE PLACEMENTS,Third Party Payments,Private Contractor Fees,Revenue
Walsall Council,http://opendatacommunities.org/id/metropolitan-district-council/walsall,WC61- 533,31/10/2015,Social Care & Inclusion,BUSH HOME LTD,27/10/2015,"1,568.64",73373-RESIDENTIAL & NURSING CARE PLACEMENTS,Third Party Payments,Private Contractor Fees,Revenue
Walsall Council,http://opendatacommunities.org/id/metropolitan-district-council/walsall,WC61- 534,31/10/2015,Social Care & Inclusion,BUSH HOME LTD,27/10/2015,"1,568.64",73373-RESIDENTIAL & NURSING CARE PLACEMENTS,Third Party Payments,Private Contractor Fees,Revenue
Walsall Council,http://opendatacommunities.org/id/metropolitan-district-council/walsall,WC61- 535,31/10/2015,Social Care & Inclusion,BUSH HOME LTD,27/10/2015,"1,568.64",73373-RESIDENTIAL & NURSING CARE PLACEMENTS,Third Party Payments,Private Contractor Fees,Revenue
Walsall Council,http://opendatacommunities.org/id/metropolitan-district-council/walsall,WC61- 536,31/10/2015,Childrens,BY THE BRIDGE,16/10/2015,"6,121.39",74037-INDEPENDENT FOSTER CARE-OTH AGENCY PROVISION,Third Party Payments,Private Contractor Fees,Revenue
Walsall Council,http://opendatacommunities.org/id/metropolitan-district-council/walsall,WC61- 537,31/10/2015,Social Care & Inclusion,C & V ORCHARD MANOR LTD,08/10/2015,952.38,73373-RESIDENTIAL & NURSING CARE PLACEMENTS,Third Party Payments,Private Contractor Fees,Revenue
Walsall Council,http://opendatacommunities.org/id/metropolitan-district-council/walsall,WC61- 538,31/10/2015,Social Care & Inclusion,C & V ORCHARD MANOR LTD,08/10/2015,"1,472.16",73373-RESIDENTIAL & NURSING CARE PLACEMENTS,Third Party Payments,Private Contractor Fees,Revenue
Walsall Council,http://opendatacommunities.org/id/metropolitan-district-council/walsall,WC61- 539,31/10/2015,Social Care & Inclusion,C & V ORCHARD MANOR LTD,08/10/2015,"1,472.16",73373-RESIDENTIAL & NURSING CARE PLACEMENTS,Third Party Payments,Private Contractor Fees,Revenue
Walsall Council,http://opendatacommunities.org/id/metropolitan-district-council/walsall,WC61- 540,31/10/2015,Social Care & Inclusion,C & V ORCHARD MANOR LTD,08/10/2015,"1,472.16",73373-RESIDENTIAL & NURSING CARE PLACEMENTS,Third Party Payments,Private Contractor Fees,Revenue
Walsall Council,http://opendatacommunities.org/id/metropolitan-district-council/walsall,WC61- 541,31/10/2015,Social Care & Inclusion,C & V ORCHARD MANOR LTD,08/10/2015,"1,493.24",73373-RESIDENTIAL & NURSING CARE PLACEMENTS,Third Party Payments,Private Contractor Fees,Revenue
Walsall Council,http://opendatacommunities.org/id/metropolitan-district-council/walsall,WC61- 542,31/10/2015,Social Care & Inclusion,C & V ORCHARD MANOR LTD,08/10/2015,"1,493.24",73373-RESIDENTIAL & NURSING CARE PLACEMENTS,Third Party Payments,Private Contractor Fees,Revenue
Walsall Council,http://opendatacommunities.org/id/metropolitan-district-council/walsall,WC61- 543,31/10/2015,Social Care & Inclusion,C & V ORCHARD MANOR LTD,08/10/2015,"1,493.24",73373-RESIDENTIAL & NURSING CARE PLACEMENTS,Third Party Payments,Private Contractor Fees,Revenue
Walsall Council,http://opendatacommunities.org/id/metropolitan-district-council/walsall,WC61- 544,31/10/2015,Social Care & Inclusion,C & V ORCHARD MANOR LTD,08/10/2015,"1,493.32",73373-RESIDENTIAL & NURSING CARE PLACEMENTS,Third Party Payments,Private Contractor Fees,Revenue
Walsall Council,http://opendatacommunities.org/id/metropolitan-district-council/walsall,WC61- 545,31/10/2015,Social Care & Inclusion,C & V ORCHARD MANOR LTD,08/10/2015,"1,493.32",73373-RESIDENTIAL & NURSING CARE PLACEMENTS,Third Party Payments,Private Contractor Fees,Revenue
Walsall Council,http://opendatacommunities.org/id/metropolitan-district-council/walsall,WC61- 546,31/10/2015,Social Care & Inclusion,C & V ORCHARD MANOR LTD,08/10/2015,"1,566.20",73373-RESIDENTIAL & NURSING CARE PLACEMENTS,Third Party Payments,Private Contractor Fees,Revenue
Walsall Council,http://opendatacommunities.org/id/metropolitan-district-council/walsall,WC61- 547,31/10/2015,Social Care & Inclusion,C & V ORCHARD MANOR LTD,13/10/2015,"1,566.20",73373-RESIDENTIAL & NURSING CARE PLACEMENTS,Third Party Payments,Private Contractor Fees,Revenue
Walsall Council,http://opendatacommunities.org/id/metropolitan-district-council/walsall,WC61- 548,31/10/2015,Social Care & Inclusion,C & V ORCHARD RESIDENTIAL LTD,27/10/2015,"1,493.24",73373-RESIDENTIAL & NURSING CARE PLACEMENTS,Third Party Payments,Private Contractor Fees,Revenue
Walsall Council,http://opendatacommunities.org/id/metropolitan-district-council/walsall,WC61- 549,31/10/2015,Social Care & Inclusion,C & V ORCHARD RESIDENTIAL LTD,27/10/2015,"1,493.24",73373-RESIDENTIAL & NURSING CARE PLACEMENTS,Third Party Payments,Private Contractor Fees,Revenue
Walsall Council,http://opendatacommunities.org/id/metropolitan-district-council/walsall,WC61- 550,31/10/2015,Social Care & Inclusion,C & V ORCHARD RESIDENTIAL LTD,27/10/2015,"1,566.20",73373-RESIDENTIAL & NURSING CARE PLACEMENTS,Third Party Payments,Private Contractor Fees,Revenue
Walsall Council,http://opendatacommunities.org/id/metropolitan-district-council/walsall,WC61- 551,31/10/2015,Social Care & Inclusion,C & V ORCHARD RESIDENTIAL LTD,27/10/2015,"1,566.20",73373-RESIDENTIAL & NURSING CARE PLACEMENTS,Third Party Payments,Private Contractor Fees,Revenue
Walsall Council,http://opendatacommunities.org/id/metropolitan-district-council/walsall,WC61- 552,31/10/2015,Social Care & Inclusion,C & V ORCHARD RESIDENTIAL LTD,27/10/2015,"1,566.20",73373-RESIDENTIAL & NURSING CARE PLACEMENTS,Third Party Payments,Private Contractor Fees,Revenue
Walsall Council,http://opendatacommunities.org/id/metropolitan-district-council/walsall,WC61- 553,31/10/2015,Social Care & Inclusion,C & V ORCHARD RESIDENTIAL LTD,27/10/2015,"1,566.20",73373-RESIDENTIAL & NURSING CARE PLACEMENTS,Third Party Payments,Private Contractor Fees,Revenue
Walsall Council,http://opendatacommunities.org/id/metropolitan-district-council/walsall,WC61- 554,31/10/2015,Social Care & Inclusion,C & V ORCHARD RESIDENTIAL LTD,27/10/2015,"1,566.20",73373-RESIDENTIAL & NURSING CARE PLACEMENTS,Third Party Payments,Private Contractor Fees,Revenue
Walsall Council,http://opendatacommunities.org/id/metropolitan-district-council/walsall,WC61- 555,31/10/2015,Social Care & Inclusion,C & V ORCHARD RESIDENTIAL LTD,27/10/2015,"1,568.16",73373-RESIDENTIAL & NURSING CARE PLACEMENTS,Third Party Payments,Private Contractor Fees,Revenue
Walsall Council,http://opendatacommunities.org/id/metropolitan-district-council/walsall,WC61- 556,31/10/2015,Social Care & Inclusion,C & V ORCHARD RESIDENTIAL LTD,27/10/2015,"1,568.60",73373-RESIDENTIAL & NURSING CARE PLACEMENTS,Third Party Payments,Private Contractor Fees,Revenue
Walsall Council,http://opendatacommunities.org/id/metropolitan-district-council/walsall,WC61- 557,31/10/2015,Social Care & Inclusion,C & V ORCHARD RESIDENTIAL LTD,27/10/2015,"1,568.60",73373-RESIDENTIAL & NURSING CARE PLACEMENTS,Third Party Payments,Private Contractor Fees,Revenue
Walsall Council,http://opendatacommunities.org/id/metropolitan-district-council/walsall,WC61- 558,31/10/2015,Social Care & Inclusion,C & V ORCHARD RESIDENTIAL LTD,27/10/2015,"1,568.64",73373-RESIDENTIAL & NURSING CARE PLACEMENTS,Third Party Payments,Private Contractor Fees,Revenue
Walsall Council,http://opendatacommunities.org/id/metropolitan-district-council/walsall,WC61- 559,31/10/2015,Social Care & Inclusion,C & V ORCHARD RESIDENTIAL LTD,27/10/2015,"1,568.64",73373-RESIDENTIAL & NURSING CARE PLACEMENTS,Third Party Payments,Private Contractor Fees,Revenue
Walsall Council,http://opendatacommunities.org/id/metropolitan-district-council/walsall,WC61- 560,31/10/2015,Social Care & Inclusion,C & V ORCHARD RESIDENTIAL LTD,27/10/2015,"1,759.89",73373-RESIDENTIAL & NURSING CARE PLACEMENTS,Third Party Payments,Private Contractor Fees,Revenue
Walsall Council,http://opendatacommunities.org/id/metropolitan-district-council/walsall,WC61- 561,31/10/2015,Social Care & Inclusion,C & V ORCHARD RESIDENTIAL LTD,27/10/2015,"6,274.40",73373-RESIDENTIAL & NURSING CARE PLACEMENTS,Third Party Payments,Private Contractor Fees,Revenue
Walsall Council,http://opendatacommunities.org/id/metropolitan-district-council/walsall,WC61- 562,31/10/2015,Economy & Environment,C ART ART TRANSPORT LTD,29/10/2015,"1,100.00",73032-TRANSPORTATION-PRIV CONTRACTOR FEES,Third Party Payments,Private Contractor Fees,Revenue
Walsall Council,http://opendatacommunities.org/id/metropolitan-district-council/walsall,WC61- 563,31/10/2015,Childrens,REDACTED,09/10/2015,"4,317.64",62515-MISCELLANEOUS SUPPLIES,Supplies & Services,Other Supplies & Services,Revenue
Walsall Council,http://opendatacommunities.org/id/metropolitan-district-council/walsall,WC61- 564,31/10/2015,Childrens,REDACTED,09/10/2015,"4,803.81",74006-HOLIDAY/CHRISTMAS ALLOWANCE-FOSTER CARERS-OTH AGENCY PROVISION,Third Party Payments,Private Contractor Fees,Revenue
Walsall Council,http://opendatacommunities.org/id/metropolitan-district-council/walsall,WC61- 565,31/10/2015,Childrens,REDACTED,09/10/2015,"1,445.32",62515-MISCELLANEOUS SUPPLIES,Supplies & Services,Other Supplies & Services,Revenue
Walsall Council,http://opendatacommunities.org/id/metropolitan-district-council/walsall,WC61- 566,31/10/2015,Childrens,REDACTED,09/10/2015,"1,461.24",74006-HOLIDAY/CHRISTMAS ALLOWANCE-FOSTER CARERS-OTH AGENCY PROVISION,Third Party Payments,Private Contractor Fees,Revenue
Walsall Council,http://opendatacommunities.org/id/metropolitan-district-council/walsall,WC61- 567,31/10/2015,Economy & Environment,C P DAVIDSON & SONS LTD,21/10/2015,208.55,60514-MATERIALS TO STORES,Supplies & Services,"Equip,Furniture & Materials",Revenue
Walsall Council,http://opendatacommunities.org/id/metropolitan-district-council/walsall,WC61- 568,31/10/2015,Economy & Environment,C P DAVIDSON & SONS LTD,29/10/2015,280.63,73025-PROFESSIONAL SERVICES-PRIV CONTRACTOR & OTHER AGENCIES,Third Party Payments,Private Contractor Fees,Revenue
Walsall Council,http://opendatacommunities.org/id/metropolitan-district-council/walsall,WC61- 569,31/10/2015,Economy & Environment,C P DAVIDSON & SONS LTD,29/10/2015,325.00,73025-PROFESSIONAL SERVICES-PRIV CONTRACTOR & OTHER AGENCIES,Third Party Payments,Private Contractor Fees,Revenue
Walsall Council,http://opendatacommunities.org/id/metropolitan-district-council/walsall,WC61- 570,31/10/2015,Economy & Environment,C P DAVIDSON & SONS LTD,16/10/2015,377.19,60514-MATERIALS TO STORES,Supplies & Services,"Equip,Furniture & Materials",Revenue
Walsall Council,http://opendatacommunities.org/id/metropolitan-district-council/walsall,WC61- 571,31/10/2015,Economy & Environment,C P DAVIDSON & SONS LTD,16/10/2015,381.12,60514-MATERIALS TO STORES,Supplies & Services,"Equip,Furniture & Materials",Revenue
Walsall Council,http://opendatacommunities.org/id/metropolitan-district-council/walsall,WC61- 572,31/10/2015,Economy & Environment,C P DAVIDSON & SONS LTD,28/10/2015,407.33,60500-GENERAL MATERIALS,Supplies & Services,"Equip,Furniture & Materials",Revenue
Walsall Council,http://opendatacommunities.org/id/metropolitan-district-council/walsall,WC61- 573,31/10/2015,Economy & Environment,C P DAVIDSON & SONS LTD,28/10/2015,915.51,60500-GENERAL MATERIALS,Supplies & Services,"Equip,Furniture & Materials",Revenue
Walsall Council,http://opendatacommunities.org/id/metropolitan-district-council/walsall,WC61- 574,31/10/2015,Economy & Environment,C P DAVIDSON & SONS LTD,23/10/2015,"3,150.00",52003-OPERATING LEASES-VEHICLES,Central,Leasing,Revenue
Walsall Council,http://opendatacommunities.org/id/metropolitan-district-council/walsall,WC61- 575,31/10/2015,Childrens,REDACTED,26/10/2015,"1,142.88",74006-HOLIDAY/CHRISTMAS ALLOWANCE-FOSTER CARERS-OTH AGENCY PROVISION,Third Party Payments,Private Contractor Fees,Revenue
Walsall Council,http://opendatacommunities.org/id/metropolitan-district-council/walsall,WC61- 576,31/10/2015,Change and Governance,CADLINE LTD,23/10/2015,"20,161.00",63820-RECHARGE FOR MAINTENANCE/APPLICATION COSTS-COMPUTER,Supplies & Services,Communications & Computing,Revenue
Walsall Council,http://opendatacommunities.org/id/metropolitan-district-council/walsall,WC61- 577,31/10/2015,Social Care & Inclusion,CALDMORE AREA HOUSING ASS LTD,21/10/2015,273.91,73374-SUPPORTED & OTHER ACCOMMODATION,Third Party Payments,Private Contractor Fees,Revenue
Walsall Council,http://opendatacommunities.org/id/metropolitan-district-council/walsall,WC61- 578,31/10/2015,Social Care & Inclusion,CALDMORE AREA HOUSING ASS LTD,21/10/2015,345.24,73372-DOMICILIARY CARE,Third Party Payments,Private Contractor Fees,Revenue
Walsall Council,http://opendatacommunities.org/id/metropolitan-district-council/walsall,WC61- 579,31/10/2015,Social Care & Inclusion,CALDMORE AREA HOUSING ASS LTD,22/10/2015,347.51,73372-DOMICILIARY CARE,Third Party Payments,Private Contractor Fees,Revenue
Walsall Council,http://opendatacommunities.org/id/metropolitan-district-council/walsall,WC61- 580,31/10/2015,Social Care & Inclusion,CALDMORE AREA HOUSING ASS LTD,08/10/2015,442.38,73373-RESIDENTIAL & NURSING CARE PLACEMENTS,Third Party Payments,Private Contractor Fees,Revenue
Walsall Council,http://opendatacommunities.org/id/metropolitan-district-council/walsall,WC61- 581,31/10/2015,Social Care & Inclusion,CALDMORE AREA HOUSING ASS LTD,15/10/2015,576.80,73374-SUPPORTED & OTHER ACCOMMODATION,Third Party Payments,Private Contractor Fees,Revenue
Walsall Council,http://opendatacommunities.org/id/metropolitan-district-council/walsall,WC61- 582,31/10/2015,Social Care & Inclusion,CALDMORE AREA HOUSING ASS LTD,15/10/2015,576.80,73374-SUPPORTED & OTHER ACCOMMODATION,Third Party Payments,Private Contractor Fees,Revenue
Walsall Council,http://opendatacommunities.org/id/metropolitan-district-council/walsall,WC61- 583,31/10/2015,Social Care & Inclusion,CALDMORE AREA HOUSING ASS LTD,22/10/2015,618.45,73372-DOMICILIARY CARE,Third Party Payments,Private Contractor Fees,Revenue
Walsall Council,http://opendatacommunities.org/id/metropolitan-district-council/walsall,WC61- 584,31/10/2015,Social Care & Inclusion,CALDMORE AREA HOUSING ASS LTD,20/10/2015,633.26,73373-RESIDENTIAL & NURSING CARE PLACEMENTS,Third Party Payments,Private Contractor Fees,Revenue
Walsall Council,http://opendatacommunities.org/id/metropolitan-district-council/walsall,WC61- 585,31/10/2015,Social Care & Inclusion,CALDMORE AREA HOUSING ASS LTD,20/10/2015,721.00,73374-SUPPORTED & OTHER ACCOMMODATION,Third Party Payments,Private Contractor Fees,Revenue
Walsall Council,http://opendatacommunities.org/id/metropolitan-district-council/walsall,WC61- 586,31/10/2015,Social Care & Inclusion,CALDMORE AREA HOUSING ASS LTD,21/10/2015,721.00,73374-SUPPORTED & OTHER ACCOMMODATION,Third Party Payments,Private Contractor Fees,Revenue
Walsall Council,http://opendatacommunities.org/id/metropolitan-district-council/walsall,WC61- 587,31/10/2015,Social Care & Inclusion,CALDMORE AREA HOUSING ASS LTD,21/10/2015,721.00,73374-SUPPORTED & OTHER ACCOMMODATION,Third Party Payments,Private Contractor Fees,Revenue
Walsall Council,http://opendatacommunities.org/id/metropolitan-district-council/walsall,WC61- 588,31/10/2015,Social Care & Inclusion,CALDMORE AREA HOUSING ASS LTD,21/10/2015,721.00,73374-SUPPORTED & OTHER ACCOMMODATION,Third Party Payments,Private Contractor Fees,Revenue
Walsall Council,http://opendatacommunities.org/id/metropolitan-district-council/walsall,WC61- 589,31/10/2015,Social Care & Inclusion,CALDMORE AREA HOUSING ASS LTD,21/10/2015,721.00,73374-SUPPORTED & OTHER ACCOMMODATION,Third Party Payments,Private Contractor Fees,Revenue
Walsall Council,http://opendatacommunities.org/id/metropolitan-district-council/walsall,WC61- 590,31/10/2015,Social Care & Inclusion,CALDMORE AREA HOUSING ASS LTD,20/10/2015,"2,533.04",73373-RESIDENTIAL & NURSING CARE PLACEMENTS,Third Party Payments,Private Contractor Fees,Revenue
Walsall Council,http://opendatacommunities.org/id/metropolitan-district-council/walsall,WC61- 591,31/10/2015,Social Care & Inclusion,CALDMORE AREA HOUSING ASS LTD,20/10/2015,"2,533.04",73373-RESIDENTIAL & NURSING CARE PLACEMENTS,Third Party Payments,Private Contractor Fees,Revenue
Walsall Council,http://opendatacommunities.org/id/metropolitan-district-council/walsall,WC61- 592,31/10/2015,Social Care & Inclusion,CALDMORE AREA HOUSING ASS LTD,20/10/2015,"2,533.04",73373-RESIDENTIAL & NURSING CARE PLACEMENTS,Third Party Payments,Private Contractor Fees,Revenue
Walsall Council,http://opendatacommunities.org/id/metropolitan-district-council/walsall,WC61- 593,31/10/2015,Social Care & Inclusion,CALDMORE AREA HOUSING ASS LTD,20/10/2015,"2,533.04",73373-RESIDENTIAL & NURSING CARE PLACEMENTS,Third Party Payments,Private Contractor Fees,Revenue
Walsall Council,http://opendatacommunities.org/id/metropolitan-district-council/walsall,WC61- 594,31/10/2015,Social Care & Inclusion,CALDMORE AREA HOUSING ASS LTD,20/10/2015,"2,533.04",73373-RESIDENTIAL & NURSING CARE PLACEMENTS,Third Party Payments,Private Contractor Fees,Revenue
Walsall Council,http://opendatacommunities.org/id/metropolitan-district-council/walsall,WC61- 595,31/10/2015,Social Care & Inclusion,CALDMORE AREA HOUSING ASS LTD,20/10/2015,"2,533.04",73373-RESIDENTIAL & NURSING CARE PLACEMENTS,Third Party Payments,Private Contractor Fees,Revenue
Walsall Council,http://opendatacommunities.org/id/metropolitan-district-council/walsall,WC61- 596,31/10/2015,Social Care & Inclusion,CALDMORE AREA HOUSING ASS LTD,20/10/2015,"2,533.04",73373-RESIDENTIAL & NURSING CARE PLACEMENTS,Third Party Payments,Private Contractor Fees,Revenue
Walsall Council,http://opendatacommunities.org/id/metropolitan-district-council/walsall,WC61- 597,31/10/2015,Social Care & Inclusion,CALDMORE AREA HOUSING ASS LTD,20/10/2015,"2,533.04",73373-RESIDENTIAL & NURSING CARE PLACEMENTS,Third Party Payments,Private Contractor Fees,Revenue
Walsall Council,http://opendatacommunities.org/id/metropolitan-district-council/walsall,WC61- 598,31/10/2015,Social Care & Inclusion,CALDMORE AREA HOUSING ASS LTD,08/10/2015,"2,654.27",73373-RESIDENTIAL & NURSING CARE PLACEMENTS,Third Party Payments,Private Contractor Fees,Revenue
Walsall Council,http://opendatacommunities.org/id/metropolitan-district-council/walsall,WC61- 599,31/10/2015,Social Care & Inclusion,CALDMORE AREA HOUSING ASS LTD,20/10/2015,"2,661.92",73374-SUPPORTED & OTHER ACCOMMODATION,Third Party Payments,Private Contractor Fees,Revenue
Walsall Council,http://opendatacommunities.org/id/metropolitan-district-council/walsall,WC61- 600,31/10/2015,Change and Governance,CALDMORE VILLAGE FESTIVAL GROUP,21/10/2015,"2,500.00",01006-SITE WORKS MAIN CONTRACTORS,Capital,Capital,Capital
Walsall Council,http://opendatacommunities.org/id/metropolitan-district-council/walsall,WC61- 601,31/10/2015,Childrens,REDACTED,26/10/2015,373.76,74006-HOLIDAY/CHRISTMAS ALLOWANCE-FOSTER CARERS-OTH AGENCY PROVISION,Third Party Payments,Private Contractor Fees,Revenue
Walsall Council,http://opendatacommunities.org/id/metropolitan-district-council/walsall,WC61- 602,31/10/2015,Childrens,REDACTED,12/10/2015,287.70,76422-DIRECT PAYMENTS TO SOCIAL SERVICES CLIENTS,Transfer Payments,Transfer Payments,Revenue
Walsall Council,http://opendatacommunities.org/id/metropolitan-district-council/walsall,WC61- 603,31/10/2015,Childrens,CAMBIAN WHINFELL SCHOOLS LTD,21/10/2015,"25,938.13",63000-PROFESSIONAL FEES AND SERVICES,Supplies & Services,Services,Revenue
Walsall Council,http://opendatacommunities.org/id/metropolitan-district-council/walsall,WC61- 604,31/10/2015,Economy & Environment,CANAL & RIVER TRUST,26/10/2015,"6,142.48",01001-OTHER CONSULTANTS FEES,Capital,Capital,Capital
Walsall Council,http://opendatacommunities.org/id/metropolitan-district-council/walsall,WC61- 605,31/10/2015,Holding Accounts,CAPITA SPECIALIST INSURANCE SOLUTIONS,09/10/2015,"10,949.10",89012-TEACHERS SICKNESS SCHEME PREMIUM INSURANCE POLICY,Supplies & Services,Other Supplies & Services,Revenue
Walsall Council,http://opendatacommunities.org/id/metropolitan-district-council/walsall,WC61- 606,31/10/2015,Capital Financing,CAPITA TREASURY SOLUTIONS LIMITED,12/10/2015,"4,500.00",63000-PROFESSIONAL FEES AND SERVICES,Supplies & Services,Services,Revenue
Walsall Council,http://opendatacommunities.org/id/metropolitan-district-council/walsall,WC61- 607,31/10/2015,Childrens,CAPSTONE FOSTER CARE (SOUTH EAST) LIMITED,16/10/2015,350.10,74037-INDEPENDENT FOSTER CARE-OTH AGENCY PROVISION,Third Party Payments,Private Contractor Fees,Revenue
Walsall Council,http://opendatacommunities.org/id/metropolitan-district-council/walsall,WC61- 608,31/10/2015,Childrens,CAPSTONE FOSTER CARE (SOUTH EAST) LIMITED,16/10/2015,"2,681.27",74037-INDEPENDENT FOSTER CARE-OTH AGENCY PROVISION,Third Party Payments,Private Contractor Fees,Revenue
Walsall Council,http://opendatacommunities.org/id/metropolitan-district-council/walsall,WC61- 609,31/10/2015,Childrens,CAPSTONE FOSTER CARE (SOUTH EAST) LIMITED,16/10/2015,"2,681.27",74037-INDEPENDENT FOSTER CARE-OTH AGENCY PROVISION,Third Party Payments,Private Contractor Fees,Revenue
Walsall Council,http://opendatacommunities.org/id/metropolitan-district-council/walsall,WC61- 610,31/10/2015,Childrens,CAPSTONE FOSTER CARE (SOUTH EAST) LIMITED,23/10/2015,"2,770.65",74037-INDEPENDENT FOSTER CARE-OTH AGENCY PROVISION,Third Party Payments,Private Contractor Fees,Revenue
Walsall Council,http://opendatacommunities.org/id/metropolitan-district-council/walsall,WC61- 611,31/10/2015,Childrens,CAPSTONE FOSTER CARE (SOUTH EAST) LIMITED,23/10/2015,"2,770.65",74037-INDEPENDENT FOSTER CARE-OTH AGENCY PROVISION,Third Party Payments,Private Contractor Fees,Revenue
Walsall Council,http://opendatacommunities.org/id/metropolitan-district-council/walsall,WC61- 612,31/10/2015,Childrens,CAPSTONE FOSTER CARE (SOUTH EAST) LIMITED,16/10/2015,"3,059.57",74037-INDEPENDENT FOSTER CARE-OTH AGENCY PROVISION,Third Party Payments,Private Contractor Fees,Revenue
Walsall Council,http://opendatacommunities.org/id/metropolitan-district-council/walsall,WC61- 613,31/10/2015,Childrens,CAPSTONE FOSTER CARE (SOUTH EAST) LIMITED,23/10/2015,"3,161.56",74037-INDEPENDENT FOSTER CARE-OTH AGENCY PROVISION,Third Party Payments,Private Contractor Fees,Revenue
Walsall Council,http://opendatacommunities.org/id/metropolitan-district-council/walsall,WC61- 614,31/10/2015,Childrens,CAPSTONE FOSTER CARE (SOUTH EAST) LIMITED,16/10/2015,"3,658.16",74037-INDEPENDENT FOSTER CARE-OTH AGENCY PROVISION,Third Party Payments,Private Contractor Fees,Revenue
Walsall Council,http://opendatacommunities.org/id/metropolitan-district-council/walsall,WC61- 615,31/10/2015,Childrens,CAPSTONE FOSTER CARE (SOUTH EAST) LIMITED,23/10/2015,"3,780.10",74037-INDEPENDENT FOSTER CARE-OTH AGENCY PROVISION,Third Party Payments,Private Contractor Fees,Revenue
Walsall Council,http://opendatacommunities.org/id/metropolitan-district-council/walsall,WC61- 616,31/10/2015,Social Care & Inclusion,CARE 2 U LIMITED,14/10/2015,"42,710.44",73372-DOMICILIARY CARE,Third Party Payments,Private Contractor Fees,Revenue
Walsall Council,http://opendatacommunities.org/id/metropolitan-district-council/walsall,WC61- 617,31/10/2015,Social Care & Inclusion,CARE AVENUES LTD,15/10/2015,"12,621.25",73372-DOMICILIARY CARE,Third Party Payments,Private Contractor Fees,Revenue
Walsall Council,http://opendatacommunities.org/id/metropolitan-district-council/walsall,WC61- 618,31/10/2015,Childrens,CARE LEAVERS,21/10/2015,90.24,63114-OTHER FEES & LICENCES-SERVICES-FEES,Supplies & Services,Other Supplies & Services,Revenue
Walsall Council,http://opendatacommunities.org/id/metropolitan-district-council/walsall,WC61- 619,31/10/2015,Childrens,CARE LEAVERS,21/10/2015,452.12,76010-ACCOMMODATION AND RELATED COSTS-ASSISTANCE TO S/S CLIENTS,Transfer Payments,Transfer Payments,Revenue
Walsall Council,http://opendatacommunities.org/id/metropolitan-district-council/walsall,WC61- 620,31/10/2015,Childrens,CARE LEAVERS,21/10/2015,"2,237.69",64002-OTHER EXPENSES-EXPENSES,Supplies & Services,Other Supplies & Services,Revenue
Walsall Council,http://opendatacommunities.org/id/metropolitan-district-council/walsall,WC61- 621,31/10/2015,Childrens,CARE LEAVERS,21/10/2015,"2,575.04",74500-CARE LEAVERS MTCE PAYMENTS,Third Party Payments,Private Contractor Fees,Revenue
Walsall Council,http://opendatacommunities.org/id/metropolitan-district-council/walsall,WC61- 622,31/10/2015,Childrens,CARE LEAVERS,21/10/2015,"5,012.00",76400-RESIDENTS PERSONAL EXPENSES-ALLOWANCES TO S/S CLIENTS,Transfer Payments,Transfer Payments,Revenue
Walsall Council,http://opendatacommunities.org/id/metropolitan-district-council/walsall,WC61- 623,31/10/2015,Childrens,CARE LEAVERS,21/10/2015,"6,264.70",76000-TRANSFER PAYMENTS - SOCIAL SERVICES CLIENTS,Transfer Payments,Transfer Payments,Revenue
Walsall Council,http://opendatacommunities.org/id/metropolitan-district-council/walsall,WC61- 624,31/10/2015,Social Care & Inclusion,CARE SHOP,14/10/2015,-222.89,60539-CLEANING MATERIALS,Supplies & Services,"Equip,Furniture & Materials",Revenue
Walsall Council,http://opendatacommunities.org/id/metropolitan-district-council/walsall,WC61- 625,31/10/2015,Social Care & Inclusion,CARE SHOP,14/10/2015,222.89,60539-CLEANING MATERIALS,Supplies & Services,"Equip,Furniture & Materials",Revenue
Walsall Council,http://opendatacommunities.org/id/metropolitan-district-council/walsall,WC61- 626,31/10/2015,Social Care & Inclusion,CARE SHOP,12/10/2015,395.60,61502-PROTECTIVE CLOTHING & UNIFORM,Supplies & Services,"Equip,Furniture & Materials",Revenue
Walsall Council,http://opendatacommunities.org/id/metropolitan-district-council/walsall,WC61- 627,31/10/2015,Social Care & Inclusion,CARE SHOP,23/10/2015,395.60,61502-PROTECTIVE CLOTHING & UNIFORM,Supplies & Services,"Equip,Furniture & Materials",Revenue
Walsall Council,http://opendatacommunities.org/id/metropolitan-district-council/walsall,WC61- 628,31/10/2015,Childrens,CARE TODAY CHILDRENS SERVICES,23/10/2015,"11,121.30",74036-EXTERNAL RESIDENTIAL CARE-OTH AGENCY PROVISION,Third Party Payments,Private Contractor Fees,Revenue
Walsall Council,http://opendatacommunities.org/id/metropolitan-district-council/walsall,WC61- 629,31/10/2015,Childrens,CARE TODAY CHILDRENS SERVICES,23/10/2015,"13,641.30",74036-EXTERNAL RESIDENTIAL CARE-OTH AGENCY PROVISION,Third Party Payments,Private Contractor Fees,Revenue
Walsall Council,http://opendatacommunities.org/id/metropolitan-district-council/walsall,WC61- 630,31/10/2015,Social Care & Inclusion,CARETECH COMMUNITY SERVICE,28/10/2015,"1,210.42",73374-SUPPORTED & OTHER ACCOMMODATION,Third Party Payments,Private Contractor Fees,Revenue
Walsall Council,http://opendatacommunities.org/id/metropolitan-district-council/walsall,WC61- 631,31/10/2015,Social Care & Inclusion,CAREVIEW SERVICES LTD,13/10/2015,"6,802.80",73373-RESIDENTIAL & NURSING CARE PLACEMENTS,Third Party Payments,Private Contractor Fees,Revenue
Walsall Council,http://opendatacommunities.org/id/metropolitan-district-council/walsall,WC61- 632,31/10/2015,Social Care & Inclusion,CARING CARE LIMITED,15/10/2015,"50,997.08",73372-DOMICILIARY CARE,Third Party Payments,Private Contractor Fees,Revenue
Walsall Council,http://opendatacommunities.org/id/metropolitan-district-council/walsall,WC61- 633,31/10/2015,Social Care & Inclusion,CARING HANDS LIMITED,09/10/2015,317.52,73372-DOMICILIARY CARE,Third Party Payments,Private Contractor Fees,Revenue
Walsall Council,http://opendatacommunities.org/id/metropolitan-district-council/walsall,WC61- 634,31/10/2015,Social Care & Inclusion,CARING HANDS LIMITED,09/10/2015,423.36,73372-DOMICILIARY CARE,Third Party Payments,Private Contractor Fees,Revenue
Walsall Council,http://opendatacommunities.org/id/metropolitan-district-council/walsall,WC61- 635,31/10/2015,Social Care & Inclusion,CARING HANDS LIMITED,09/10/2015,423.36,73372-DOMICILIARY CARE,Third Party Payments,Private Contractor Fees,Revenue
Walsall Council,http://opendatacommunities.org/id/metropolitan-district-council/walsall,WC61- 636,31/10/2015,Social Care & Inclusion,CARING HANDS LIMITED,09/10/2015,423.36,73372-DOMICILIARY CARE,Third Party Payments,Private Contractor Fees,Revenue
Walsall Council,http://opendatacommunities.org/id/metropolitan-district-council/walsall,WC61- 637,31/10/2015,Social Care & Inclusion,CARING HANDS LIMITED,19/10/2015,423.36,73372-DOMICILIARY CARE,Third Party Payments,Private Contractor Fees,Revenue
Walsall Council,http://opendatacommunities.org/id/metropolitan-district-council/walsall,WC61- 638,31/10/2015,Social Care & Inclusion,CARING HANDS LIMITED,09/10/2015,462.40,73372-DOMICILIARY CARE,Third Party Payments,Private Contractor Fees,Revenue
Walsall Council,http://opendatacommunities.org/id/metropolitan-district-council/walsall,WC61- 639,31/10/2015,Social Care & Inclusion,CARING HANDS LIMITED,09/10/2015,647.36,73372-DOMICILIARY CARE,Third Party Payments,Private Contractor Fees,Revenue
Walsall Council,http://opendatacommunities.org/id/metropolitan-district-council/walsall,WC61- 640,31/10/2015,Social Care & Inclusion,CARING HANDS LIMITED,09/10/2015,647.36,73372-DOMICILIARY CARE,Third Party Payments,Private Contractor Fees,Revenue
Walsall Council,http://opendatacommunities.org/id/metropolitan-district-council/walsall,WC61- 641,31/10/2015,Social Care & Inclusion,CARING HANDS LIMITED,09/10/2015,647.36,73372-DOMICILIARY CARE,Third Party Payments,Private Contractor Fees,Revenue
Walsall Council,http://opendatacommunities.org/id/metropolitan-district-council/walsall,WC61- 642,31/10/2015,Social Care & Inclusion,CARING HANDS LIMITED,09/10/2015,647.36,73372-DOMICILIARY CARE,Third Party Payments,Private Contractor Fees,Revenue
Walsall Council,http://opendatacommunities.org/id/metropolitan-district-council/walsall,WC61- 643,31/10/2015,Social Care & Inclusion,CARING HANDS LIMITED,09/10/2015,647.36,73372-DOMICILIARY CARE,Third Party Payments,Private Contractor Fees,Revenue
Walsall Council,http://opendatacommunities.org/id/metropolitan-district-council/walsall,WC61- 644,31/10/2015,Social Care & Inclusion,CARING HANDS LIMITED,09/10/2015,647.36,73372-DOMICILIARY CARE,Third Party Payments,Private Contractor Fees,Revenue
Walsall Council,http://opendatacommunities.org/id/metropolitan-district-council/walsall,WC61- 645,31/10/2015,Social Care & Inclusion,CARING HANDS LIMITED,09/10/2015,647.36,73372-DOMICILIARY CARE,Third Party Payments,Private Contractor Fees,Revenue
Walsall Council,http://opendatacommunities.org/id/metropolitan-district-council/walsall,WC61- 646,31/10/2015,Social Care & Inclusion,CARING HANDS LIMITED,09/10/2015,647.36,73372-DOMICILIARY CARE,Third Party Payments,Private Contractor Fees,Revenue
Walsall Council,http://opendatacommunities.org/id/metropolitan-district-council/walsall,WC61- 647,31/10/2015,Social Care & Inclusion,CARING HANDS LIMITED,09/10/2015,647.36,73372-DOMICILIARY CARE,Third Party Payments,Private Contractor Fees,Revenue
Walsall Council,http://opendatacommunities.org/id/metropolitan-district-council/walsall,WC61- 648,31/10/2015,Social Care & Inclusion,CARING HANDS LIMITED,09/10/2015,647.36,73372-DOMICILIARY CARE,Third Party Payments,Private Contractor Fees,Revenue
Walsall Council,http://opendatacommunities.org/id/metropolitan-district-council/walsall,WC61- 649,31/10/2015,Social Care & Inclusion,CARING HANDS LIMITED,09/10/2015,647.36,73372-DOMICILIARY CARE,Third Party Payments,Private Contractor Fees,Revenue
Walsall Council,http://opendatacommunities.org/id/metropolitan-district-council/walsall,WC61- 650,31/10/2015,Social Care & Inclusion,CARING HANDS LIMITED,09/10/2015,647.36,73372-DOMICILIARY CARE,Third Party Payments,Private Contractor Fees,Revenue
Walsall Council,http://opendatacommunities.org/id/metropolitan-district-council/walsall,WC61- 651,31/10/2015,Social Care & Inclusion,CARING HANDS LIMITED,09/10/2015,647.36,73372-DOMICILIARY CARE,Third Party Payments,Private Contractor Fees,Revenue
Walsall Council,http://opendatacommunities.org/id/metropolitan-district-council/walsall,WC61- 652,31/10/2015,Social Care & Inclusion,CARING HANDS LIMITED,14/10/2015,"52,226.57",73372-DOMICILIARY CARE,Third Party Payments,Private Contractor Fees,Revenue
Walsall Council,http://opendatacommunities.org/id/metropolitan-district-council/walsall,WC61- 653,31/10/2015,Social Care & Inclusion,REDACTED,14/10/2015,37.14,30030-EXTERNAL TRAINING,Employees,Training,Revenue
Walsall Council,http://opendatacommunities.org/id/metropolitan-district-council/walsall,WC61- 654,31/10/2015,Social Care & Inclusion,REDACTED,14/10/2015,831.40,73374-SUPPORTED & OTHER ACCOMMODATION,Third Party Payments,Private Contractor Fees,Revenue
Walsall Council,http://opendatacommunities.org/id/metropolitan-district-council/walsall,WC61- 655,31/10/2015,Social Care & Inclusion,REDACTED,09/10/2015,"4,912.20",73374-SUPPORTED & OTHER ACCOMMODATION,Third Party Payments,Private Contractor Fees,Revenue
Walsall Council,http://opendatacommunities.org/id/metropolitan-district-council/walsall,WC61- 656,31/10/2015,Social Care & Inclusion,REDACTED,28/10/2015,"4,912.20",73374-SUPPORTED & OTHER ACCOMMODATION,Third Party Payments,Private Contractor Fees,Revenue
Walsall Council,http://opendatacommunities.org/id/metropolitan-district-council/walsall,WC61- 657,31/10/2015,Social Care & Inclusion,REDACTED,12/10/2015,450.00,76422-DIRECT PAYMENTS TO SOCIAL SERVICES CLIENTS,Transfer Payments,Transfer Payments,Revenue
Walsall Council,http://opendatacommunities.org/id/metropolitan-district-council/walsall,WC61- 658,31/10/2015,Childrens,REDACTED,09/10/2015,469.80,74006-HOLIDAY/CHRISTMAS ALLOWANCE-FOSTER CARERS-OTH AGENCY PROVISION,Third Party Payments,Private Contractor Fees,Revenue
Walsall Council,http://opendatacommunities.org/id/metropolitan-district-council/walsall,WC61- 659,31/10/2015,Childrens,REDACTED,09/10/2015,540.20,62515-MISCELLANEOUS SUPPLIES,Supplies & Services,Other Supplies & Services,Revenue
Walsall Council,http://opendatacommunities.org/id/metropolitan-district-council/walsall,WC61- 660,31/10/2015,Childrens,REDACTED,26/10/2015,365.60,74006-HOLIDAY/CHRISTMAS ALLOWANCE-FOSTER CARERS-OTH AGENCY PROVISION,Third Party Payments,Private Contractor Fees,Revenue
Walsall Council,http://opendatacommunities.org/id/metropolitan-district-council/walsall,WC61- 661,31/10/2015,Childrens,CARTER BROWN LTD T/A CARTER BROWN THE EXPERT SERVICE,14/10/2015,675.34,73014-LEGAL FEES-PRIV CONTRACTOR FEES,Third Party Payments,Private Contractor Fees,Revenue
Walsall Council,http://opendatacommunities.org/id/metropolitan-district-council/walsall,WC61- 662,31/10/2015,Economy & Environment,CARTER SYNERGY LTD,28/10/2015,"9,939.41",40216-OTHER-PLAN MTCE,Premises,Premises-Repairs & Maintenance,Revenue
Walsall Council,http://opendatacommunities.org/id/metropolitan-district-council/walsall,WC61- 663,31/10/2015,Childrens,CASTLE BUSINESS AND ENTERPRISE COLLEGE,14/10/2015,"2,261.96",63000-PROFESSIONAL FEES AND SERVICES,Supplies & Services,Services,Revenue
Walsall Council,http://opendatacommunities.org/id/metropolitan-district-council/walsall,WC61- 664,31/10/2015,Childrens,CASTLE BUSINESS AND ENTERPRISE COLLEGE,14/10/2015,"9,566.86",63000-PROFESSIONAL FEES AND SERVICES,Supplies & Services,Services,Revenue
Walsall Council,http://opendatacommunities.org/id/metropolitan-district-council/walsall,WC61- 665,31/10/2015,Social Care & Inclusion,REDACTED,12/10/2015,622.68,76422-DIRECT PAYMENTS TO SOCIAL SERVICES CLIENTS,Transfer Payments,Transfer Payments,Revenue
Walsall Council,http://opendatacommunities.org/id/metropolitan-district-council/walsall,WC61- 666,31/10/2015,Social Care & Inclusion,REDACTED,12/10/2015,690.48,76422-DIRECT PAYMENTS TO SOCIAL SERVICES CLIENTS,Transfer Payments,Transfer Payments,Revenue
Walsall Council,http://opendatacommunities.org/id/metropolitan-district-council/walsall,WC61- 667,31/10/2015,Childrens,REDACTED,26/10/2015,425.08,74006-HOLIDAY/CHRISTMAS ALLOWANCE-FOSTER CARERS-OTH AGENCY PROVISION,Third Party Payments,Private Contractor Fees,Revenue
Walsall Council,http://opendatacommunities.org/id/metropolitan-district-council/walsall,WC61- 668,31/10/2015,Social Care & Inclusion,REDACTED,12/10/2015,388.40,76422-DIRECT PAYMENTS TO SOCIAL SERVICES CLIENTS,Transfer Payments,Transfer Payments,Revenue
Walsall Council,http://opendatacommunities.org/id/metropolitan-district-council/walsall,WC61- 669,31/10/2015,Childrens,REDACTED,12/10/2015,"1,014.26",76422-DIRECT PAYMENTS TO SOCIAL SERVICES CLIENTS,Transfer Payments,Transfer Payments,Revenue
Walsall Council,http://opendatacommunities.org/id/metropolitan-district-council/walsall,WC61- 670,31/10/2015,Childrens,REDACTED,26/10/2015,425.08,74006-HOLIDAY/CHRISTMAS ALLOWANCE-FOSTER CARERS-OTH AGENCY PROVISION,Third Party Payments,Private Contractor Fees,Revenue
Walsall Council,http://opendatacommunities.org/id/metropolitan-district-council/walsall,WC61- 671,31/10/2015,Change and Governance,CE RISK SAFETY AND SECURITY LTD,23/10/2015,"4,825.10",73002-SECURITY-PRIV CONTRACTOR FEES,Third Party Payments,Private Contractor Fees,Revenue
Walsall Council,http://opendatacommunities.org/id/metropolitan-district-council/walsall,WC61- 672,31/10/2015,Change and Governance,CELLOGLAS,28/10/2015,"2,530.00",62008-OUTWORK-PRINT ROOM,Supplies & Services,"Printing, Stationery & Office Exp",Revenue
Walsall Council,http://opendatacommunities.org/id/metropolitan-district-council/walsall,WC61- 673,31/10/2015,Economy & Environment,CENTRAL CONSTRUCTION TRAINING LTD,23/10/2015,"1,500.00",66500-GRANTS TO OTHER ORGS,Third Party Payments,Grants to Other Orgs,Revenue
Walsall Council,http://opendatacommunities.org/id/metropolitan-district-council/walsall,WC61- 674,31/10/2015,Economy & Environment,CERTAS ENERGY UK LIMITED,26/10/2015,412.40,50301-FUEL-TRANSPORT RUN COSTS,Transport,Other Transport,Revenue
Walsall Council,http://opendatacommunities.org/id/metropolitan-district-council/walsall,WC61- 675,31/10/2015,Economy & Environment,CERTAS ENERGY UK LIMITED,26/10/2015,620.10,50301-FUEL-TRANSPORT RUN COSTS,Transport,Other Transport,Revenue
Walsall Council,http://opendatacommunities.org/id/metropolitan-district-council/walsall,WC61- 676,31/10/2015,Economy & Environment,CERTAS ENERGY UK LIMITED,26/10/2015,"2,042.00",50301-FUEL-TRANSPORT RUN COSTS,Transport,Other Transport,Revenue
Walsall Council,http://opendatacommunities.org/id/metropolitan-district-council/walsall,WC61- 677,31/10/2015,Economy & Environment,CERTAS ENERGY UK LIMITED,26/10/2015,"17,320.57",50301-FUEL-TRANSPORT RUN COSTS,Transport,Other Transport,Revenue
Walsall Council,http://opendatacommunities.org/id/metropolitan-district-council/walsall,WC61- 678,31/10/2015,Economy & Environment,CERTAS ENERGY UK LIMITED,26/10/2015,"17,385.65",50301-FUEL-TRANSPORT RUN COSTS,Transport,Other Transport,Revenue
Walsall Council,http://opendatacommunities.org/id/metropolitan-district-council/walsall,WC61- 679,31/10/2015,Childrens,CF CORPORATE FINANCE LTD,23/10/2015,255.00,60006-NEW-FURNITURE & EQUIPMENT,Supplies & Services,"Equip,Furniture & Materials",Revenue
Walsall Council,http://opendatacommunities.org/id/metropolitan-district-council/walsall,WC61- 680,31/10/2015,Childrens,CFT FOSTERING LIMITED,13/10/2015,"3,045.30",74037-INDEPENDENT FOSTER CARE-OTH AGENCY PROVISION,Third Party Payments,Private Contractor Fees,Revenue
Walsall Council,http://opendatacommunities.org/id/metropolitan-district-council/walsall,WC61- 681,31/10/2015,Childrens,CFT FOSTERING LIMITED,13/10/2015,"3,146.81",74037-INDEPENDENT FOSTER CARE-OTH AGENCY PROVISION,Third Party Payments,Private Contractor Fees,Revenue
Walsall Council,http://opendatacommunities.org/id/metropolitan-district-council/walsall,WC61- 682,31/10/2015,Childrens,CFT FOSTERING LIMITED,13/10/2015,"6,136.45",74037-INDEPENDENT FOSTER CARE-OTH AGENCY PROVISION,Third Party Payments,Private Contractor Fees,Revenue
Walsall Council,http://opendatacommunities.org/id/metropolitan-district-council/walsall,WC61- 683,31/10/2015,Social Care & Inclusion,CHANDOS LODGE CARE HOME,20/10/2015,"1,668.72",73373-RESIDENTIAL & NURSING CARE PLACEMENTS,Third Party Payments,Private Contractor Fees,Revenue
Walsall Council,http://opendatacommunities.org/id/metropolitan-district-council/walsall,WC61- 684,31/10/2015,Social Care & Inclusion,CHANDOS LODGE CARE HOME,20/10/2015,"1,668.72",73373-RESIDENTIAL & NURSING CARE PLACEMENTS,Third Party Payments,Private Contractor Fees,Revenue
Walsall Council,http://opendatacommunities.org/id/metropolitan-district-council/walsall,WC61- 685,31/10/2015,Social Care & Inclusion,CHANDOS LODGE CARE HOME,20/10/2015,"1,668.72",73373-RESIDENTIAL & NURSING CARE PLACEMENTS,Third Party Payments,Private Contractor Fees,Revenue
Walsall Council,http://opendatacommunities.org/id/metropolitan-district-council/walsall,WC61- 686,31/10/2015,Social Care & Inclusion,CHANDOS LODGE CARE HOME,20/10/2015,"1,668.72",73373-RESIDENTIAL & NURSING CARE PLACEMENTS,Third Party Payments,Private Contractor Fees,Revenue
Walsall Council,http://opendatacommunities.org/id/metropolitan-district-council/walsall,WC61- 687,31/10/2015,Social Care & Inclusion,REDACTED,12/10/2015,748.00,76422-DIRECT PAYMENTS TO SOCIAL SERVICES CLIENTS,Transfer Payments,Transfer Payments,Revenue
Walsall Council,http://opendatacommunities.org/id/metropolitan-district-council/walsall,WC61- 688,31/10/2015,Childrens,REDACTED,26/10/2015,650.92,74006-HOLIDAY/CHRISTMAS ALLOWANCE-FOSTER CARERS-OTH AGENCY PROVISION,Third Party Payments,Private Contractor Fees,Revenue
Walsall Council,http://opendatacommunities.org/id/metropolitan-district-council/walsall,WC61- 689,31/10/2015,Childrens,CHARLES CODDY WALKER ACADEMY,19/10/2015,"5,724.65",66505-OTHER-GRANTS TO OTHER ORGS,Third Party Payments,Grants to Other Orgs,Revenue
Walsall Council,http://opendatacommunities.org/id/metropolitan-district-council/walsall,WC61- 690,31/10/2015,Childrens,REDACTED,12/10/2015,258.96,76422-DIRECT PAYMENTS TO SOCIAL SERVICES CLIENTS,Transfer Payments,Transfer Payments,Revenue
Walsall Council,http://opendatacommunities.org/id/metropolitan-district-council/walsall,WC61- 691,31/10/2015,Social Care & Inclusion,CHARMEND LTD,27/10/2015,"2,187.27",73373-RESIDENTIAL & NURSING CARE PLACEMENTS,Third Party Payments,Private Contractor Fees,Revenue
Walsall Council,http://opendatacommunities.org/id/metropolitan-district-council/walsall,WC61- 692,31/10/2015,Social Care & Inclusion,CHARMEND LTD,09/10/2015,"26,571.43",73019-PSE'S-PRIV CONTRACTOR FEES,Third Party Payments,Private Contractor Fees,Revenue
Walsall Council,http://opendatacommunities.org/id/metropolitan-district-council/walsall,WC61- 693,31/10/2015,Social Care & Inclusion,CHARTER CARE,14/10/2015,"35,249.09",73372-DOMICILIARY CARE,Third Party Payments,Private Contractor Fees,Revenue
Walsall Council,http://opendatacommunities.org/id/metropolitan-district-council/walsall,WC61- 694,31/10/2015,Social Care & Inclusion,CHASE HOUSE AND PARTNER,13/10/2015,"4,546.45",73373-RESIDENTIAL & NURSING CARE PLACEMENTS,Third Party Payments,Private Contractor Fees,Revenue
Walsall Council,http://opendatacommunities.org/id/metropolitan-district-council/walsall,WC61- 695,31/10/2015,Social Care & Inclusion,CHASE HOUSE AND PARTNER,13/10/2015,"4,555.68",73373-RESIDENTIAL & NURSING CARE PLACEMENTS,Third Party Payments,Private Contractor Fees,Revenue
Walsall Council,http://opendatacommunities.org/id/metropolitan-district-council/walsall,WC61- 696,31/10/2015,Social Care & Inclusion,CHASE HOUSE AND PARTNER,13/10/2015,"4,665.12",73373-RESIDENTIAL & NURSING CARE PLACEMENTS,Third Party Payments,Private Contractor Fees,Revenue
Walsall Council,http://opendatacommunities.org/id/metropolitan-district-council/walsall,WC61- 697,31/10/2015,Social Care & Inclusion,CHASE HOUSE AND PARTNER,13/10/2015,"4,860.72",73373-RESIDENTIAL & NURSING CARE PLACEMENTS,Third Party Payments,Private Contractor Fees,Revenue
Walsall Council,http://opendatacommunities.org/id/metropolitan-district-council/walsall,WC61- 698,31/10/2015,Economy & Environment,CHEMTECH WASTE MANAGEMENT LTD,12/10/2015,269.00,73029-HAZARDOUS WASTE REMOVAL/DISPOSAL-PRIV CONTRACTOR FEES,Third Party Payments,Private Contractor Fees,Revenue
Walsall Council,http://opendatacommunities.org/id/metropolitan-district-council/walsall,WC61- 699,31/10/2015,Social Care & Inclusion,REDACTED,12/10/2015,"1,601.60",76422-DIRECT PAYMENTS TO SOCIAL SERVICES CLIENTS,Transfer Payments,Transfer Payments,Revenue
Walsall Council,http://opendatacommunities.org/id/metropolitan-district-council/walsall,WC61- 700,31/10/2015,Childrens,CHILDCARE BUREAU LTD,27/10/2015,342.42,74037-INDEPENDENT FOSTER CARE-OTH AGENCY PROVISION,Third Party Payments,Private Contractor Fees,Revenue
Walsall Council,http://opendatacommunities.org/id/metropolitan-district-council/walsall,WC61- 701,31/10/2015,Childrens,CHILDCARE BUREAU LTD,16/10/2015,666.70,74037-INDEPENDENT FOSTER CARE-OTH AGENCY PROVISION,Third Party Payments,Private Contractor Fees,Revenue
Walsall Council,http://opendatacommunities.org/id/metropolitan-district-council/walsall,WC61- 702,31/10/2015,Childrens,CHILDCARE BUREAU LTD,22/10/2015,913.12,74037-INDEPENDENT FOSTER CARE-OTH AGENCY PROVISION,Third Party Payments,Private Contractor Fees,Revenue
Walsall Council,http://opendatacommunities.org/id/metropolitan-district-council/walsall,WC61- 703,31/10/2015,Childrens,CHILDCARE BUREAU LTD,27/10/2015,"3,195.92",74037-INDEPENDENT FOSTER CARE-OTH AGENCY PROVISION,Third Party Payments,Private Contractor Fees,Revenue
Walsall Council,http://opendatacommunities.org/id/metropolitan-district-council/walsall,WC61- 704,31/10/2015,Childrens,CHILDCARE BUREAU LTD,27/10/2015,"3,195.92",74037-INDEPENDENT FOSTER CARE-OTH AGENCY PROVISION,Third Party Payments,Private Contractor Fees,Revenue
Walsall Council,http://opendatacommunities.org/id/metropolitan-district-council/walsall,WC61- 705,31/10/2015,Childrens,CHILDCARE BUREAU LTD,14/10/2015,"3,731.00",74037-INDEPENDENT FOSTER CARE-OTH AGENCY PROVISION,Third Party Payments,Private Contractor Fees,Revenue
Walsall Council,http://opendatacommunities.org/id/metropolitan-district-council/walsall,WC61- 706,31/10/2015,Childrens,CHILDCARE BUREAU LTD,16/10/2015,"3,731.00",74037-INDEPENDENT FOSTER CARE-OTH AGENCY PROVISION,Third Party Payments,Private Contractor Fees,Revenue
Walsall Council,http://opendatacommunities.org/id/metropolitan-district-council/walsall,WC61- 707,31/10/2015,Childrens,CHILDCARE BUREAU LTD,14/10/2015,"3,733.52",74037-INDEPENDENT FOSTER CARE-OTH AGENCY PROVISION,Third Party Payments,Private Contractor Fees,Revenue
Walsall Council,http://opendatacommunities.org/id/metropolitan-district-council/walsall,WC61- 708,31/10/2015,Childrens,CHILDCARE BUREAU LTD,14/10/2015,"6,939.80",74037-INDEPENDENT FOSTER CARE-OTH AGENCY PROVISION,Third Party Payments,Private Contractor Fees,Revenue
Walsall Council,http://opendatacommunities.org/id/metropolitan-district-council/walsall,WC61- 709,31/10/2015,Childrens,CHILDCARE BUREAU LTD,16/10/2015,"6,939.80",74037-INDEPENDENT FOSTER CARE-OTH AGENCY PROVISION,Third Party Payments,Private Contractor Fees,Revenue
Walsall Council,http://opendatacommunities.org/id/metropolitan-district-council/walsall,WC61- 710,31/10/2015,Childrens,CHILDLINK,15/10/2015,6.00,63128-HIRE OF ROOM-SERVICES-FEES,Supplies & Services,Other Supplies & Services,Revenue
Walsall Council,http://opendatacommunities.org/id/metropolitan-district-council/walsall,WC61- 711,31/10/2015,Childrens,CHILDLINK,15/10/2015,6.00,63128-HIRE OF ROOM-SERVICES-FEES,Supplies & Services,Other Supplies & Services,Revenue
Walsall Council,http://opendatacommunities.org/id/metropolitan-district-council/walsall,WC61- 712,31/10/2015,Childrens,CHILDLINK,16/10/2015,8.00,63128-HIRE OF ROOM-SERVICES-FEES,Supplies & Services,Other Supplies & Services,Revenue
Walsall Council,http://opendatacommunities.org/id/metropolitan-district-council/walsall,WC61- 713,31/10/2015,Childrens,CHILDLINK,15/10/2015,23.20,53001-OTHER/VOLUNTEERS-CAR ALLOWANCES,Transport,Car Allowances,Revenue
Walsall Council,http://opendatacommunities.org/id/metropolitan-district-council/walsall,WC61- 714,31/10/2015,Childrens,CHILDLINK,15/10/2015,24.44,53001-OTHER/VOLUNTEERS-CAR ALLOWANCES,Transport,Car Allowances,Revenue
Walsall Council,http://opendatacommunities.org/id/metropolitan-district-council/walsall,WC61- 715,31/10/2015,Childrens,CHILDLINK,16/10/2015,24.80,53001-OTHER/VOLUNTEERS-CAR ALLOWANCES,Transport,Car Allowances,Revenue
Walsall Council,http://opendatacommunities.org/id/metropolitan-district-council/walsall,WC61- 716,31/10/2015,Childrens,CHILDLINK,15/10/2015,25.60,53001-OTHER/VOLUNTEERS-CAR ALLOWANCES,Transport,Car Allowances,Revenue
Walsall Council,http://opendatacommunities.org/id/metropolitan-district-council/walsall,WC61- 717,31/10/2015,Childrens,CHILDLINK,15/10/2015,31.28,53001-OTHER/VOLUNTEERS-CAR ALLOWANCES,Transport,Car Allowances,Revenue
Walsall Council,http://opendatacommunities.org/id/metropolitan-district-council/walsall,WC61- 718,31/10/2015,Childrens,CHILDLINK,16/10/2015,34.16,53001-OTHER/VOLUNTEERS-CAR ALLOWANCES,Transport,Car Allowances,Revenue
Walsall Council,http://opendatacommunities.org/id/metropolitan-district-council/walsall,WC61- 719,31/10/2015,Childrens,CHILDLINK,15/10/2015,39.00,53003-OTHER-TRAVEL ALLOWANCES,Transport,Car Allowances,Revenue
Walsall Council,http://opendatacommunities.org/id/metropolitan-district-council/walsall,WC61- 720,31/10/2015,Childrens,CHILDLINK,15/10/2015,43.20,53001-OTHER/VOLUNTEERS-CAR ALLOWANCES,Transport,Car Allowances,Revenue
Walsall Council,http://opendatacommunities.org/id/metropolitan-district-council/walsall,WC61- 721,31/10/2015,Childrens,CHILDLINK,16/10/2015,43.20,53001-OTHER/VOLUNTEERS-CAR ALLOWANCES,Transport,Car Allowances,Revenue
Walsall Council,http://opendatacommunities.org/id/metropolitan-district-council/walsall,WC61- 722,31/10/2015,Childrens,CHILDLINK,19/10/2015,43.20,53001-OTHER/VOLUNTEERS-CAR ALLOWANCES,Transport,Car Allowances,Revenue
Walsall Council,http://opendatacommunities.org/id/metropolitan-district-council/walsall,WC61- 723,31/10/2015,Childrens,CHILDLINK,19/10/2015,43.20,53001-OTHER/VOLUNTEERS-CAR ALLOWANCES,Transport,Car Allowances,Revenue
Walsall Council,http://opendatacommunities.org/id/metropolitan-district-council/walsall,WC61- 724,31/10/2015,Childrens,CHILDLINK,15/10/2015,52.00,53003-OTHER-TRAVEL ALLOWANCES,Transport,Car Allowances,Revenue
Walsall Council,http://opendatacommunities.org/id/metropolitan-district-council/walsall,WC61- 725,31/10/2015,Childrens,CHILDLINK,15/10/2015,52.00,53003-OTHER-TRAVEL ALLOWANCES,Transport,Car Allowances,Revenue
Walsall Council,http://opendatacommunities.org/id/metropolitan-district-council/walsall,WC61- 726,31/10/2015,Childrens,CHILDLINK,16/10/2015,52.00,53003-OTHER-TRAVEL ALLOWANCES,Transport,Car Allowances,Revenue
Walsall Council,http://opendatacommunities.org/id/metropolitan-district-council/walsall,WC61- 727,31/10/2015,Childrens,CHILDLINK,19/10/2015,52.00,53003-OTHER-TRAVEL ALLOWANCES,Transport,Car Allowances,Revenue
Walsall Council,http://opendatacommunities.org/id/metropolitan-district-council/walsall,WC61- 728,31/10/2015,Childrens,CHILDLINK,19/10/2015,52.00,53003-OTHER-TRAVEL ALLOWANCES,Transport,Car Allowances,Revenue
Walsall Council,http://opendatacommunities.org/id/metropolitan-district-council/walsall,WC61- 729,31/10/2015,Childrens,CHILDLINK,15/10/2015,53.40,53001-OTHER/VOLUNTEERS-CAR ALLOWANCES,Transport,Car Allowances,Revenue
Walsall Council,http://opendatacommunities.org/id/metropolitan-district-council/walsall,WC61- 730,31/10/2015,Childrens,CHILDLINK,16/10/2015,53.40,53001-OTHER/VOLUNTEERS-CAR ALLOWANCES,Transport,Car Allowances,Revenue
Walsall Council,http://opendatacommunities.org/id/metropolitan-district-council/walsall,WC61- 731,31/10/2015,Childrens,CHILDLINK,15/10/2015,61.75,53003-OTHER-TRAVEL ALLOWANCES,Transport,Car Allowances,Revenue
Walsall Council,http://opendatacommunities.org/id/metropolitan-district-council/walsall,WC61- 732,31/10/2015,Childrens,CHILDLINK,15/10/2015,61.75,53003-OTHER-TRAVEL ALLOWANCES,Transport,Car Allowances,Revenue
Walsall Council,http://opendatacommunities.org/id/metropolitan-district-council/walsall,WC61- 733,31/10/2015,Childrens,CHILDLINK,15/10/2015,65.00,53003-OTHER-TRAVEL ALLOWANCES,Transport,Car Allowances,Revenue
Walsall Council,http://opendatacommunities.org/id/metropolitan-district-council/walsall,WC61- 734,31/10/2015,Childrens,CHILDLINK,16/10/2015,65.00,53003-OTHER-TRAVEL ALLOWANCES,Transport,Car Allowances,Revenue
Walsall Council,http://opendatacommunities.org/id/metropolitan-district-council/walsall,WC61- 735,31/10/2015,Childrens,CHILDLINK,16/10/2015,71.50,53003-OTHER-TRAVEL ALLOWANCES,Transport,Car Allowances,Revenue
Walsall Council,http://opendatacommunities.org/id/metropolitan-district-council/walsall,WC61- 736,31/10/2015,Childrens,CHILDLINK,16/10/2015,74.75,53003-OTHER-TRAVEL ALLOWANCES,Transport,Car Allowances,Revenue
Walsall Council,http://opendatacommunities.org/id/metropolitan-district-council/walsall,WC61- 737,31/10/2015,Childrens,CHILDLINK,16/10/2015,86.40,53001-OTHER/VOLUNTEERS-CAR ALLOWANCES,Transport,Car Allowances,Revenue
Walsall Council,http://opendatacommunities.org/id/metropolitan-district-council/walsall,WC61- 738,31/10/2015,Childrens,CHILDLINK,15/10/2015,104.00,76003-SECTION 34 (CONTACT),Third Party Payments,Private Contractor Fees,Revenue
Walsall Council,http://opendatacommunities.org/id/metropolitan-district-council/walsall,WC61- 739,31/10/2015,Childrens,CHILDLINK,16/10/2015,104.00,53003-OTHER-TRAVEL ALLOWANCES,Transport,Car Allowances,Revenue
Walsall Council,http://opendatacommunities.org/id/metropolitan-district-council/walsall,WC61- 740,31/10/2015,Childrens,CHILDLINK,16/10/2015,104.00,76003-SECTION 34 (CONTACT),Third Party Payments,Private Contractor Fees,Revenue
Walsall Council,http://opendatacommunities.org/id/metropolitan-district-council/walsall,WC61- 741,31/10/2015,Childrens,CHILDLINK,15/10/2015,123.50,76003-SECTION 34 (CONTACT),Third Party Payments,Private Contractor Fees,Revenue
Walsall Council,http://opendatacommunities.org/id/metropolitan-district-council/walsall,WC61- 742,31/10/2015,Childrens,CHILDLINK,15/10/2015,123.50,76003-SECTION 34 (CONTACT),Third Party Payments,Private Contractor Fees,Revenue
Walsall Council,http://opendatacommunities.org/id/metropolitan-district-council/walsall,WC61- 743,31/10/2015,Childrens,CHILDLINK,15/10/2015,156.00,76003-SECTION 34 (CONTACT),Third Party Payments,Private Contractor Fees,Revenue
Walsall Council,http://opendatacommunities.org/id/metropolitan-district-council/walsall,WC61- 744,31/10/2015,Childrens,CHILDLINK,15/10/2015,156.00,76003-SECTION 34 (CONTACT),Third Party Payments,Private Contractor Fees,Revenue
Walsall Council,http://opendatacommunities.org/id/metropolitan-district-council/walsall,WC61- 745,31/10/2015,Childrens,CHILDLINK,16/10/2015,156.00,76003-SECTION 34 (CONTACT),Third Party Payments,Private Contractor Fees,Revenue
Walsall Council,http://opendatacommunities.org/id/metropolitan-district-council/walsall,WC61- 746,31/10/2015,Childrens,CHILDLINK,19/10/2015,156.00,76003-SECTION 34 (CONTACT),Third Party Payments,Private Contractor Fees,Revenue
Walsall Council,http://opendatacommunities.org/id/metropolitan-district-council/walsall,WC61- 747,31/10/2015,Childrens,CHILDLINK,19/10/2015,156.00,76003-SECTION 34 (CONTACT),Third Party Payments,Private Contractor Fees,Revenue
Walsall Council,http://opendatacommunities.org/id/metropolitan-district-council/walsall,WC61- 748,31/10/2015,Childrens,CHILDLINK,15/10/2015,221.00,76003-SECTION 34 (CONTACT),Third Party Payments,Private Contractor Fees,Revenue
Walsall Council,http://opendatacommunities.org/id/metropolitan-district-council/walsall,WC61- 749,31/10/2015,Childrens,CHILDLINK,15/10/2015,234.00,76003-SECTION 34 (CONTACT),Third Party Payments,Private Contractor Fees,Revenue
Walsall Council,http://opendatacommunities.org/id/metropolitan-district-council/walsall,WC61- 750,31/10/2015,Childrens,CHILDLINK,16/10/2015,312.00,76003-SECTION 34 (CONTACT),Third Party Payments,Private Contractor Fees,Revenue
Walsall Council,http://opendatacommunities.org/id/metropolitan-district-council/walsall,WC61- 751,31/10/2015,Childrens,CHILDLINK,16/10/2015,325.00,76003-SECTION 34 (CONTACT),Third Party Payments,Private Contractor Fees,Revenue
Walsall Council,http://opendatacommunities.org/id/metropolitan-district-council/walsall,WC61- 752,31/10/2015,Childrens,CHILDLINK,16/10/2015,325.00,76003-SECTION 34 (CONTACT),Third Party Payments,Private Contractor Fees,Revenue
Walsall Council,http://opendatacommunities.org/id/metropolitan-district-council/walsall,WC61- 753,31/10/2015,Social Care & Inclusion,REDACTED,12/10/2015,"1,489.62",76422-DIRECT PAYMENTS TO SOCIAL SERVICES CLIENTS,Transfer Payments,Transfer Payments,Revenue
Walsall Council,http://opendatacommunities.org/id/metropolitan-district-council/walsall,WC61- 754,31/10/2015,Social Care & Inclusion,REDACTED,12/10/2015,489.60,76422-DIRECT PAYMENTS TO SOCIAL SERVICES CLIENTS,Transfer Payments,Transfer Payments,Revenue
Walsall Council,http://opendatacommunities.org/id/metropolitan-district-council/walsall,WC61- 755,31/10/2015,Childrens,REDACTED,26/10/2015,256.36,74006-HOLIDAY/CHRISTMAS ALLOWANCE-FOSTER CARERS-OTH AGENCY PROVISION,Third Party Payments,Private Contractor Fees,Revenue
Walsall Council,http://opendatacommunities.org/id/metropolitan-district-council/walsall,WC61- 756,31/10/2015,Social Care & Inclusion,REDACTED,12/10/2015,"1,125.97",76422-DIRECT PAYMENTS TO SOCIAL SERVICES CLIENTS,Transfer Payments,Transfer Payments,Revenue
Walsall Council,http://opendatacommunities.org/id/metropolitan-district-council/walsall,WC61- 757,31/10/2015,Childrens,REDACTED,26/10/2015,757.76,74006-HOLIDAY/CHRISTMAS ALLOWANCE-FOSTER CARERS-OTH AGENCY PROVISION,Third Party Payments,Private Contractor Fees,Revenue
Walsall Council,http://opendatacommunities.org/id/metropolitan-district-council/walsall,WC61- 758,31/10/2015,Social Care & Inclusion,REDACTED,12/10/2015,822.16,76422-DIRECT PAYMENTS TO SOCIAL SERVICES CLIENTS,Transfer Payments,Transfer Payments,Revenue
Walsall Council,http://opendatacommunities.org/id/metropolitan-district-council/walsall,WC61- 759,31/10/2015,Social Care & Inclusion,REDACTED,12/10/2015,588.00,76422-DIRECT PAYMENTS TO SOCIAL SERVICES CLIENTS,Transfer Payments,Transfer Payments,Revenue
Walsall Council,http://opendatacommunities.org/id/metropolitan-district-council/walsall,WC61- 760,31/10/2015,Childrens,REDACTED,09/10/2015,354.48,62515-MISCELLANEOUS SUPPLIES,Supplies & Services,Other Supplies & Services,Revenue
Walsall Council,http://opendatacommunities.org/id/metropolitan-district-council/walsall,WC61- 761,31/10/2015,Childrens,REDACTED,09/10/2015,732.29,74006-HOLIDAY/CHRISTMAS ALLOWANCE-FOSTER CARERS-OTH AGENCY PROVISION,Third Party Payments,Private Contractor Fees,Revenue
Walsall Council,http://opendatacommunities.org/id/metropolitan-district-council/walsall,WC61- 762,31/10/2015,Economy & Environment,CILIP MOBILEMEET,26/10/2015,398.00,30030-EXTERNAL TRAINING,Employees,Training,Revenue
Walsall Council,http://opendatacommunities.org/id/metropolitan-district-council/walsall,WC61- 763,31/10/2015,Social Care & Inclusion,REDACTED,09/10/2015,"1,452.12",73374-SUPPORTED & OTHER ACCOMMODATION,Third Party Payments,Private Contractor Fees,Revenue
Walsall Council,http://opendatacommunities.org/id/metropolitan-district-council/walsall,WC61- 764,31/10/2015,Social Care & Inclusion,REDACTED,28/10/2015,"1,452.12",73374-SUPPORTED & OTHER ACCOMMODATION,Third Party Payments,Private Contractor Fees,Revenue
Walsall Council,http://opendatacommunities.org/id/metropolitan-district-council/walsall,WC61- 765,31/10/2015,Economy & Environment,CITRUS TRAINING LIMITED,21/10/2015,340.00,30030-EXTERNAL TRAINING,Employees,Training,Revenue
Walsall Council,http://opendatacommunities.org/id/metropolitan-district-council/walsall,WC61- 766,31/10/2015,Social Care & Inclusion,CIVICARE MIDLANDS LTD,15/10/2015,368.00,73372-DOMICILIARY CARE,Third Party Payments,Private Contractor Fees,Revenue
Walsall Council,http://opendatacommunities.org/id/metropolitan-district-council/walsall,WC61- 767,31/10/2015,Social Care & Inclusion,CIVICARE MIDLANDS LTD,15/10/2015,465.75,73372-DOMICILIARY CARE,Third Party Payments,Private Contractor Fees,Revenue
Walsall Council,http://opendatacommunities.org/id/metropolitan-district-council/walsall,WC61- 768,31/10/2015,Social Care & Inclusion,CIVICARE MIDLANDS LTD,15/10/2015,506.00,73372-DOMICILIARY CARE,Third Party Payments,Private Contractor Fees,Revenue
